{"text_format":"1","workbook":"xlsx","n_sheets":25,"sheets":["About this Report","Index","References","GHG Emissions","GHG Emissions - 2030 Targets","Energy Consumption - by site","2020 Energy Consumption - Type","2020 Indirect Energy - Source","2020 Direct Energy - Source","2020 Energy Use - Type","Air Emissions","Environmental Events","Water","Land","Tailings Impoundments","Mining.Mineral Processing Waste","Health & Safety","Workforce","Communities","Human Rights","Business Ethics","Economic Value Contribution","SASB","GRI Index; SDGs","ICMM"],"not_rendered":{"charts":0,"images":1,"macros":0,"external_links":0,"defined_names":33,"comments":0,"pivot_tables":0},"unopened":[],"bounds":{"document_bytes":16777216,"sheet_cells":100000,"rows_first":2000,"rows_last":500,"rows_between":2000,"halvings":0,"cell_chars":16384,"cell_head_chars":4096},"cells_cut":0,"cells_raw":0,"read":"whole","date_system":"1900"}

{"sheet":"About this Report","index":0,"n_rows":7,"n_cols":4,"rows_kept":7,"cut":false,"hidden":false,"merged":[[2,1,2,14],[6,1,6,14]]}
[]
[]
[null,"Environmental, Social and Governance (ESG) Performance Trend Data "]
[]
[null,"Date Updated: ","2021-04-22","(except for GHG Emissions and Energy Consumption file tabs, which were updated September 30, 2021)"]
[]
[null,"Freeport-McMoRan (FCX) is committed to communicating on our ESG performance regularly and transparently. We have been reporting on our sustainability performance since 2001. The data provided herein reflect FCX's historical performance for the past five years on key ESG topics. These data are intended to be a companion to our 2020 Annual Report on Sustainability and 2020 Climate Report, available on our website at fcx.com/sustainability.\n\nThis report focuses primarily on the most significant entities that FCX consolidates, including its 48.76 percent-owned subsidiary PT Freeport Indonesia, and the following wholly-owned subsidiaries: Freeport Minerals Corporation and Atlantic Copper, S.L.U. (Atlantic Copper), for the period January 1, 2020 to December 31, 2020, unless otherwise indicated. Data is as of December 31, 2020, unless otherwise noted.\n\nIn general, and unless otherwise noted, these data do not include assets divested prior to 2020, such as our Tenke Fungurume mine or oil and gas operations (FM O&G), non-managed joint ventures, exploration activities and projects and non-operating and discontinued sites. However, historical data related to our workforce, Principles of Business Conduct training, human rights, cash payments to governments and direct economic contributions includes FM O&G.  \n\nAs a result of methodology changes, corrections, or ongoing improvements to our data collection processes and quality, prior year data may be restated in future years. Non-financial data contained in this report have not been prepared in conformity with generally accepted accounting principles (GAAP) in the United States and, with the exception of the GHG Scope 1, 2, and 3 emissions data which has been third-party verified in accordance with ISO 14064 (Specifications 1 and 3) to a reasonable level of assurance, data have not been audited. Data herein have been assured in accordance with the International Standard on Assurance ISEA3000 (revised). Historical results are not necessarily indicative of future performance. All financial figures are quoted in U.S. dollars, unless otherwise noted. Reported amounts are approximate and due to rounding, some figures and percentages may not add up to the total figure or 100%. Data presented cover our performance for the years ending on December 31, which corresponds to our fiscal year. \n\nAdditional information about FCX is available on our website, fcx.com. For details on our financial performance and governance structure, please refer to our Annual Report on Form 10-K for the year ended December 31, 2020, filed with the SEC, and available on our website at investors.fcx.com/investors/financial-information/annual-reports-and-proxy."]

{"sheet":"Index","index":1,"n_rows":33,"n_cols":7,"rows_kept":33,"cut":false,"hidden":false,"merged":[]}
[null,"FCX - ESG PERFORMANCE TREND DATA - INDEX"]
[]
[]
[]
[null,"LINK TO TOPIC"]
[null,{"$f":"HYPERLINK(\"#'\"&G6&\"'!A1\",\"About this Report\")","v":"About this Report"},null,null,null,1,{"$f":"INDEX(SheetNames,F6)","v":"About this Report"}]
[null,{"$f":"HYPERLINK(\"#'\"&G7&\"'!A1\",\"References\")","v":"References"},null,null,null,3,{"$f":"INDEX(SheetNames,F7)","v":"References"}]
[null,"Environmental"]
[null,{"$f":"HYPERLINK(\"#'\"&G9&\"'!A1\",G9)","v":"GHG Emissions"},null,null,null,{"$f":"F7+1","v":4},{"$f":"INDEX(SheetNames,F9)","v":"GHG Emissions"}]
[null,{"$f":"HYPERLINK(\"#'\"&G10&\"'!A1\",G10)","v":"GHG Emissions - 2030 Targets"},null,null,null,{"$f":"F9+1","v":5},"GHG Emissions - 2030 Targets"]
[null,{"$f":"HYPERLINK(\"#'\"&G11&\"'!A1\",G11)","v":"Energy Consumption - by site"},null,null,null,{"$f":"F10+1","v":6},"Energy Consumption - by site"]
[null,{"$f":"HYPERLINK(\"#'\"&G12&\"'!A1\",G12)","v":"2020 Energy Consumption - Type"},null,null,null,7,"2020 Energy Consumption - Type"]
[null,{"$f":"HYPERLINK(\"#'\"&G13&\"'!A1\",G13)","v":"2020 Indirect Energy - Source"},null,null,null,8,"2020 Indirect Energy - Source"]
[null,"2020 Direct Energy - Source",null,null,null,9,"2020 Direct Energy - Source"]
[null,"2020 Energy Use - Type",null,null,null,10,"2020 Energy Use - Type"]
[null,"Air Emissions",null,null,null,11,"Air Emissions"]
[null,"Environmental Events",null,null,null,12,"Environmental Events"]
[null,"Water",null,null,null,13,"Water"]
[null,"Land",null,null,null,14,"Land"]
[null,{"$f":"HYPERLINK(\"#'\"&G20&\"'!A1\",G20)","v":"Tailings Impoundments"},null,null,null,15,"Tailings Impoundments"]
[null,"Mining.Mineral Processing Waste",null,null,null,16,"Mining.Mineral Processing Waste"]
[null,"Social"]
[null,{"$f":"HYPERLINK(\"#'\"&G23&\"'!A1\",\"Health & Safety\")","v":"Health & Safety"},null,null,null,{"$f":"F21+1","v":17},{"$f":"INDEX(SheetNames,F23)","v":"Health & Safety"}]
[null,{"$f":"HYPERLINK(\"#'\"&G24&\"'!A1\",\"Workforce\")","v":"Workforce"},null,null,null,{"$f":"F23+1","v":18},{"$f":"INDEX(SheetNames,F24)","v":"Workforce"}]
[null,{"$f":"HYPERLINK(\"#'\"&G25&\"'!A1\",\"Communities\")","v":"Communities"},null,null,null,{"$f":"F24+1","v":19},{"$f":"INDEX(SheetNames,F25)","v":"Communities"}]
[null,{"$f":"HYPERLINK(\"#'\"&G26&\"'!A1\",\"Human Rights\")","v":"Human Rights"},null,null,null,{"$f":"F25+1","v":20},{"$f":"INDEX(SheetNames,F26)","v":"Human Rights"}]
[null,"Governance"]
[null,{"$f":"HYPERLINK(\"#'\"&G28&\"'!A1\",\"Business Ethics\")","v":"Business Ethics"},null,null,null,{"$f":"F26+1","v":21},"Business Ethics"]
[null,{"$f":"HYPERLINK(\"#'\"&G29&\"'!A1\",\"Economic Value Contribution\")","v":"Economic Value Contribution"},null,null,null,{"$f":"F28+1","v":22},"Economic Value Contribution"]
[null,"Frameworks"]
[null,{"$f":"HYPERLINK(\"#'\"&G31&\"'!A1\",\"SASB\")","v":"SASB"},null,null,null,{"$f":"F29+1","v":23},{"$f":"INDEX(SheetNames,F31)","v":"SASB"}]
[null,{"$f":"HYPERLINK(\"#'\"&G32&\"'!A1\",\"GRI Index; SDGs\")","v":"GRI Index; SDGs"},null,null,null,{"$f":"F31+1","v":24},{"$f":"INDEX(SheetNames,F32)","v":"GRI Index; SDGs"}]
[null,{"$f":"HYPERLINK(\"#'\"&G33&\"'!A1\",\"ICMM\")","v":"ICMM"},null,null,null,{"$f":"F32+1","v":25},{"$f":"INDEX(SheetNames,F33)","v":"ICMM"}]

{"sheet":"References","index":2,"n_rows":48,"n_cols":3,"rows_kept":48,"cut":false,"hidden":false,"merged":[[0,1,0,2]]}
[null,"FCX - ESG PERFORMANCE TREND DATA - REFERENCES"]
[]
[]
[null,"Below is a list of documents and webpages mentioned in this databook. "]
[null,"DOCUMENT NAME","LINK TO DOCUMENT"]
[null,"Annual Report on Sustainability","2020 Annual Report on Sustainability"]
[null,"Form 10-K","2020 Form 10-K"]
[null,"About Us page on fcx.com","About Us"]
[null,"Proxy Statement","2021 Proxy Statement"]
[null,"Corporate Governance Guidelines","Corporate Governance Guidelines"]
[null,"Corporate Responsibility Committee Charter","Corporate Responsibility Committee Charter"]
[null,"Principles of Business Conduct (PBC)","Principles of Business Conduct"]
[null,"Supplier Code of Conduct","Supplier Code of Conduct"]
[null,"Global Supply Chain page on fcx.com","Global Supply Chain"]
[null,"Commodity Management page on fcx.com","Commodity Management"]
[null,"Social Performance Policy","Social Performance Policy"]
[null,"Environmental Policy","Environmental Policy"]
[null,"Human Rights Policy","Human Rights Policy"]
[null,"Responsible Sourcing of Minerals Policy","Responsible Sourcing of Minerals Policy"]
[null,"Stakeholder Engagement page on fcx.com","Stakeholder Engagement"]
[null,"Voluntary Memberships & Commitments page on fcx.com","Voluntary Memberships & Commitments"]
[null,"Economic Value Contributed page on fcx.com","Economic Value Contributed"]
[null,"People page on fcx.com","People"]
[null,"Health & Safety page on fcx.com","Health & Safety"]
[null,"Labor Relations page on fcx.com","Labor Relations"]
[null,"Indigenous Peoples page on fcx.com","Indigenous Peoples"]
[null,"Land Use and Customary Rights page on fcx.com","Land Use and Customary Rights"]
[null,"Human Rights page on fcx.com","Human Rights"]
[null,"OECD Step 5 Due Diligence Report","OECD Step 5 Due Diligence Report"]
[null,"UK Modern Slavery Act Statement","UK Modern Slavery Act Statement"]
[null,"Voluntary Principles (VPs) Report","Voluntary Principles on Security and Human Rights, Annual Report to the Plenary"]
[null,"Communities page on fcx.com","Communities"]
[null,"Community Engagement & Social Investments page on fcx.com","Community Engagement & Social Investments"]
[null,"Assessing & Managing Impacts page on fcx.com","Assessing & Managing Impacts"]
[null,"Public Health page on fcx.com","Public Health"]
[null,"FMJobs page on fcx.com","FMJobs"]
[null,"Environment page on fcx.com","Environment"]
[null,"2020 Climate Report","2020 Climate Report"]
[null,"2019 Climate Report","2019 Climate Report"]
[null,"Water Report","2019 Water Report"]
[null,"Tailings Management page on fcx.com","Tailings Management"]
[null,"Tailings Management and Stewardship","Tailings Management and Stewardship Summary"]
[null,"Tailings Management & Stewardship page on fcx.com","Tailings Management & Stewardship"]
[null,"Overview of Tailings Management and Stewardship Program","Overview of Tailings Management and Stewardship Program"]
[null,"Biodiversity page on fcx.com","Biodiversity"]
[null,"External Assurance page on fcx.com","External Assurance"]
[null,"Sustainability Reports and Documents Archive on fcx.com","Sustainability Reports and Documents Archive"]
[null,"ESG Performance Data","ESG Performance Data"]

{"sheet":"GHG Emissions","index":3,"n_rows":81,"n_cols":7,"rows_kept":81,"cut":false,"hidden":false,"merged":[[74,1,74,6],[75,1,75,6],[76,1,76,6],[77,1,77,6],[80,1,80,6],[79,1,79,6],[78,1,78,6]]}
[null,"FCX - ESG PERFORMANCE TREND DATA"]
[null,"ENVIRONMENT"]
[null,null,2016,2017,2018,2019,2020]
[]
[null,"GHG Emissions"]
[null,"Scope 1 (CO2e metric tons)"]
[null,"FMC Mining1"]
[null,"Bagdad",131101.45584196094,131304.71211147393,148112.33419329853,160559.35935181737,162715.27718697401]
[null,"Cerro Verde",465540.32782949082,492084.7737090576,578103.42689092038,638972.16179296304,564127.33893672901]
[null,"Chino / Cobre",173879.3886740052,159014.22621474866,167046.8930915099,148576.01007478239,53110.825370080682]
[null,"Climax",41365.860437646203,37165.349319662404,41949.709691534801,51414.355510893802,34558.290107248053]
[null,"El Abra",107513.22852607961,90178.4302505019,133702.95403146301,141452.3374177888,80540]
[null,"Henderson",18824.708121899501,17670.497736838002,18860.2571949015,19965.718109417601,17232]
[null,"Morenci",521925.49855069024,533444.17802100349,615255.74087460153,677159.49762990302,627797.12491947494]
[null,"Safford / Lone Star",168274.646217367,145393.85038890626,177236.37753587426,217855.42187862651,225196.54154938331]
[null,"Sierrita",107318.45496734904,123530.25839690815,133626.83822473773,151817.50695489277,119190.24176727961]
[null,"Tyrone",36564.815588950558,33621.022621100645,35825.672465501826,37226.993976821708,41910.10734752455]
[null,"Total FMC Mining",{"$f":"SUM(C8:C17)","v":1772308.3847554391},{"$f":"SUM(D8:D17)","v":1763407.2987702009},{"$f":"SUM(E8:E17)","v":2049720.2041943434},{"$f":"SUM(F8:F17)","v":2244999.3626979073},{"$f":"SUM(G8:G17)","v":1926377.7471846938}]
[]
[null,"Downstream Processing2"]
[null,"Atlantic Copper Smelter & Refinery",56040.474405219909,55128.724369579802,54007.82318040164,55253.548208032058,55745.024051548819]
[null,"Bayway Rod & Wire",1057.9090450670001,922.4221656279999,1115.7629692119999,916.12987498699999,"-"]
[null,"Ft. Madison Moly Special Products",17035.7950400628,17344.109865149199,14110.682272415201,16708.941673609952,17106.688314085011]
[null,"Kokkola Cobalt Refinery",5194.9360873382093,5286.9533185723003,4692.6057041829599,4277.1053652877899,3184.1571908596898]
[null,"Miami Smelter & Rod",86767.720580585243,83695.480008982995,99751.901175865394,93839.696296247479,98602.189321915808]
[null,"Norwich Rod ",18145.137124165998,18511.277480744,18463.445573285,17735.438632742003,"-"]
[null,"Rotterdam",5928.291981652601,7194.2120760688003,6925.2077124736006,8404.1893784479998,8238.1797351087989]
[null,"Stowmarket",86.414435782506004,136.09635026186402,113.40247693079999,119.2918284224,88.282037161599987]
[null,"El Paso Refinery & Rod",55584.910750167997,56170.077660597402,60472.645237665798,71105.397605391394,85612.885793596899]
[null,"Total Downstream Processing",{"$f":"SUM(C21:C29)","v":245841.58945004229},{"$f":"SUM(D21:D29)","v":244389.35329558435},{"$f":"SUM(E21:E29)","v":259653.47630243236},{"$f":"SUM(F21:F29)","v":268359.73886316805},{"$f":"SUM(G21:G29)","v":268577.40644427662}]
[]
[null,"Total PT-FI (Grasberg)3",2775114,2257149.1929172734,2651587.2895859582,2212265.3100425256,2034938.7278633281]
[]
[null,"Scope 1 Total - FCX Global",{"$f":"C18+C30+C32","v":4793263.9742054809},{"$f":"D18+D30+D32","v":4264945.844983059},{"$f":"E18+E30+E32","v":4960960.9700827338},{"$f":"F18+F30+F32","v":4725624.4116036007},{"$f":"G18+G30+G32","v":4229893.8814922981}]
[]
[null,"Scope 24 (CO2e metric tons)"]
[null,"FMC Mining1"]
[null,"Bagdad",237601.85893557101,238380.232147826,254016,231111.44,239608]
[null,"Cerro Verde",728463.97253630403,605993.03202899999,264777.61154999997,275538.58151159697,231339]
[null,"Chino / Cobre",415231,364726,228615.0398,226323.06590422301,100720]
[null,"Climax",87236,107602.500990701,98908.591320000007,96278.136569999959,66230.518384800002]
[null,"El Abra",463155.80300000001,406976.77,259702.86618700001,238719.93599999999,224033.16]
[null,"Henderson",113942,115481.87876090901,105672.1102,110116.49750639996,103584.4053552]
[null,"Morenci",1228179,1023518.08862453,985532.53269999998,970178.06382443057,949081]
[null,"Safford / Lone Star",161246,99909.569275286398,88718.253559999997,98252.265282077016,138629]
[null,"Sierrita",235800,233126.773810338,389041.30560000002,352222.09784848173,408617]
[null,"Tyrone",163945,154103.479456147,100009.2347,106392.02246518969,80071.025892984006]
[null,"Total FMC Mining",{"$f":"SUM(C38:C47)","v":3834800.6344718751},{"$f":"SUM(D38:D47)","v":3349818.3250947371},{"$f":"SUM(E38:E47)","v":2774993.5456170002},{"$f":"SUM(F38:F47)","v":2705132.1069123987},{"$f":"SUM(G38:G47)","v":2541913.1096329843}]
[]
[null,"Downstream Processing2"]
[null,"Atlantic Copper Smelter & Refinery",93064.986000000004,81987,86275.75,69957.75,95748]
[null,"Bayway Rod & Wire",788,767.83922732159999,764.35675509999999,772.96447730880016,"-"]
[null,"Ft. Madison Moly Special Products",21926,19837.137969835199,21088.332269999999,22136.273820424511,15698]
[null,"Kokkola Cobalt Refinery",22111.494999999999,22350.186249999999,21840.282449999999,22513.05,6674.78]
[null,"Miami Smelter & Rod",185073,175124.08299496301,235059.05429999999,204127.75678181031,207312]
[null,"Norwich Rod ",5497,5379.8105784527997,5448.7265719999996,4906.9195909776008,"-"]
[null,"Rotterdam5",0,0,0,0,0]
[null,"Stowmarket",658.64397122809999,740.5616627695,507.54734070000001,447.25060000000002,286.29592000000002]
[null,"El Paso Refinery & Rod",37141,35111.667460665602,18843.301510000001,13077.918000000001,18292.662864000002]
[null,"Total Downstream Processing",{"$f":"SUM(C51:C59)","v":366260.12497122813},{"$f":"SUM(D51:D59)","v":341298.2861440077},{"$f":"SUM(E51:E59)","v":389827.35119780002},{"$f":"SUM(F51:F59)","v":337939.88327052124},{"$f":"SUM(G51:G59)","v":344011.73878400004}]
[]
[null,"Total PT-FI (Grasberg)",0,0,0,0,0]
[]
[null,"Scope 2 Total - FCX Global",{"$f":"C48+C60+C62","v":4201060.7594431033},{"$f":"D48+D60+D62","v":3691116.611238745},{"$f":"E48+E60+E62","v":3164820.8968148003},{"$f":"F48+F60+F62","v":3043071.9901829199},{"$f":"G48+G60+G62","v":2885924.8484169841}]
[]
[null,"Scope 1 + 24 (CO2e metric tons)"]
[null,"FMC Mining1",{"$f":"+C48+C18","v":5607109.0192273147},{"$f":"+D48+D18","v":5113225.6238649376},{"$f":"+E48+E18","v":4824713.7498113438},{"$f":"+F48+F18","v":4950131.4696103055},{"$f":"+G48+G18","v":4468290.8568176776}]
[null,"Downstream Processing2",{"$f":"C30+C60","v":612101.71442127042},{"$f":"D30+D60","v":585687.63943959202},{"$f":"E30+E60","v":649480.82750023238},{"$f":"F30+F60","v":606299.62213368923},{"$f":"G30+G60","v":612589.14522827673}]
[null,"PT-FI (Grasberg)3",{"$f":"C32+C62","v":2775114},{"$f":"D32+D62","v":2257149.1929172734},{"$f":"E32+E62","v":2651587.2895859582},{"$f":"F32+F62","v":2212265.3100425256},{"$f":"G32+G62","v":2034938.7278633281}]
[null,"Scope 1 + 2 Total - FCX Global",{"$f":"+C67+C68+C69","v":8994324.7336485852},{"$f":"+D67+D68+D69","v":7956062.4562218031},{"$f":"+E67+E68+E69","v":8125781.8668975346},{"$f":"+F67+F68+F69","v":7768696.4017865201},{"$f":"+G67+G68+G69","v":7115818.7299092822}]
[]
[null,"Scope 36 (CO2e metric tons)"]
[null,"Scope 3 Total - FCX Global",618819,706214,750332,692336,1729251]
[]
[null,"1. FMC Mining includes Bagdad, Cerro Verde, Chino (including Cobre), Climax, El Abra, Henderson, Morenci, Safford (including Lone Star), Sierrita and Tyrone. "]
[null,"2. Downstream Processing includes Atlantic Copper Smelter & Refinery, Bayway Rod & Wire, Ft. Madison Moly Special Products, Kokkola Cobalt Refinery, Miami Smelter & Rod, Norwich Rod, Rotterdam, Stowmarket and El Paso Refinery & Rod. In 2020, our Bayway Rod & Wire and Norwich Rod facilities were closed and decommissioned and therefore data has not been included in the table for these entities for 2020."]
[null,"3. During the 2020 GHG verification process, an opportunity was identified to improve PT-FI Scope 1 emissions calculations by switching to actual heating value for coal. The calculations have been restated accordingly back to 2016."]
[null,"4. 2015-2017 Scope 2 emissions were calculated using a location-based method; 2018-2020 Scope 2 emissions were calculated using a market-based method with the exception of Bayway Rod & Wire, Norwich Rod, El Abra, Ft. Madison, Kokkola and Stowmarket which are calculated using location-based grid factors and amount to less than 9% of our total Scope 2 emissions."]
[null,"5. At our Rotterdam operation we purchase renewable energy certificates for all electricity."]
[null,"6. In 2021, we expanded our Scope 3 emissions calculations to include additional categories in line with the WRI/WBCSD GHG Protocol. As a result, our 2020 Scope 3 emissions\nfigures here are higher than the Scope 3 emissions reported in our 2020 Annual Report on Sustainability, with the figures in this report being the most current. Our Scope 3 emissions calculation effort is ongoing with the aim of identifying and reporting across all relevant Scope 3 emissions sources in 2022."]
[null,"Note: GHG emissions data have been prepared in accordance with the WRI/WBCSD GHG Protocol. FCX reports carbon emissions on 100% operational basis per the WRI/WBCSD GHG Protocol. However, FCX reports certain financial information, such as consolidated revenue, net of Morenci’s undivided joint venture partners’ interest. FCX owns a 72% undivided interest in Morenci. FCX's GHG emissions verification statement is available at fcx.com/sustainability. "]

{"sheet":"GHG Emissions - 2030 Targets","index":4,"n_rows":14,"n_cols":7,"rows_kept":14,"cut":false,"hidden":false,"merged":[[11,1,11,6],[12,1,12,6],[13,1,13,6]]}
[null,"FCX - ESG PERFORMANCE TREND DATA"]
[null,"ENVIRONMENT"]
[null,null,2016,2017,2018,2019,2020]
[]
[null,"2030 GHG Emissions Intensity Reduction Targets1"]
[null,"(CO2e metric tons / metric tons cu)"]
[null,"Freeport Americas Copper2 Intensity Target for 2030","N/A","N/A",3.17,3.17,3.17]
[null,"Freeport Americas Copper2 Intensity",3.67,3.73,3.72,3.7,3.81]
[null,"PT-FI (Grasberg)3 Intensity Target for 2030","N/A","N/A",3.34,3.34,3.34]
[null,"PT-FI (Grasberg)3 Intensity",5.7,4.93,4.76,7.73,5.4]
[]
[null,"1. Intensity targets include total (Scope 1 and Scope 2) emissions and do not include by-products in the denominator. Baseline and target are calculated (total emissions / payable copper) and therefore may differ due to rounding error."]
[null,"2. Freeport Americas Copper (for target) includes Bagdad, Cerro Verde, Chino (including Cobre), El Abra, Morenci, Safford (including Lone Star), Sierrita and Tyrone mines as well as the Miami Smelter and El Paso Refinery. The Freeport Americas Copper intensity target includes all payable copper forms up to cathode (which includes concentrate, anode, and cathode) but excludes rod and wire. "]
[null,"3. Our PT-FI intensity reduction target is based on payable copper produced in concentrate. PT-FI concentrate is currently smelted and refined by PTS and third-party smelters / refineries, which are currently accounted for in our Scope 3 emissions estimates (not included in the target). Upon completion of the PTS expansion for which PT-FI will have majority ownership and the construction of the new greenfield smelter at Gresik, GHG emissions for smelting and refining are expected to shift from Scope 3 to Scopes 1 and 2. We will adjust our target and baseline in line with the WRI/WBCSD GHG Protocol at such time. "]

{"sheet":"Energy Consumption - by site","index":5,"n_rows":72,"n_cols":7,"rows_kept":72,"cut":false,"hidden":false,"merged":[[71,1,71,6]]}
[null,"FCX - ESG PERFORMANCE TREND DATA"]
[null,"ENVIRONMENT"]
[null,null,2016,2017,2018,2019,2020]
[]
[null,"Energy Consumption by Site"]
[null,"Direct Energy (TJ)"]
[null,"FMC Mining"]
[null,"Bagdad",1673,1667,1873,2031,2077]
[null,"Cerro Verde",5784,6123,7193,7946,7093]
[null,"Chino / Cobre",2093,1918,2131,1803,706]
[null,"Climax",589,530,584,694,497]
[null,"El Abra",1321,1132,1676,1767,1031]
[null,"Henderson",355,305,319,324,325]
[null,"Morenci",6583,6834,7938,8749,8088]
[null,"Safford / Lone Star",704,629,1262,1667,2008]
[null,"Sierrita",1353,1586,1699,1924,1513]
[null,"Tyrone",452,414,443,456,515]
[null,"Total FMC Mining",20905,21138,25117,27361,23853]
[]
[null,"Downstream Processing"]
[null,"Atlantic Copper Smelter & Refinery",905,881,846,874,895]
[null,"Bayway Rod & Wire",21,18,22,18,"-"]
[null,"Ft. Madison Moly Special Products",325,332,276,325,339]
[null,"Kokkola Cobalt Refinery",87,88,78,71,53]
[null,"Miami Smelter & Rod",1672,1586,1921,1795,1910]
[null,"Norwich Rod ",360,367,366,351,"-"]
[null,"Rotterdam",117,143,137,164,163]
[null,"Stowmarket",1,1,2,2,1]
[null,"El Paso Refinery & Rod",1101,1112,1197,1408,1694]
[null,"Total Downstream Processing",4588,4529,4844,5009,5056]
[]
[null,"Total PT-FI (Grasberg)",32841,27132,31357,26066,24217]
[]
[null,"Direct Energy Total - FCX Global",58334,52799,61318,58436,53127]
[]
[null,"Indirect Energy (TJ)"]
[null,"FMC Mining"]
[null,"Bagdad",2011,2017,2072,2080,2088]
[null,"Cerro Verde",12253,12179,12731,12868,11005]
[null,"Chino / Cobre",2080,1827,1724,1641,886]
[null,"Climax",468,577,644,674,464]
[null,"El Abra",2175,1895,2233,2119,1988]
[null,"Henderson",611,619,689,771,726]
[null,"Morenci",10394,8662,8608,8521,8251]
[null,"Safford / Lone Star",1365,846,775,863,1203]
[null,"Sierrita",1996,1973,2067,1996,2315]
[null,"Tyrone",821,772,755,771,715]
[null,"Total FMC Mining",34173,31369,32297,32305,29642]
[]
[null,"Downstream Processing"]
[null,"Atlantic Copper Smelter & Refinery",1255,1181,1046,1007,1032]
[null,"Bayway Rod & Wire",11,11,12,12,"-"]
[null,"Ft. Madison Moly Special Products",173,157,155,163,145]
[null,"Kokkola Cobalt Refinery",325,328,321,331,98]
[null,"Miami Smelter & Rod",1566,1482,1917,1729,1889]
[null,"Norwich Rod ",87,85,85,76,"-"]
[null,"Rotterdam",55,60,64,61,46]
[null,"Stowmarket",5,6,6,6,4]
[null,"El Paso Refinery & Rod",279,264,278,191,269]
[null,"Total Downstream Processing",3757,3574,3884,3577,3483]
[]
[null,"Total PT-FI (Grasberg)",0,0,0,0,0]
[]
[null,"Indirect Energy Total - FCX Global",37930,34943,36182,35881,33125]
[]
[null,"Total Energy (TJ)"]
[null,"FMC Mining",55078,52507,57414,59666,53495]
[null,"Downstream Processing",8345,8103,8729,8586,8540]
[null,"PT-FI (Grasberg)",32841,27132,31357,26066,24217]
[null,"Total - FCX Global",96264,87741,97500,94317,86252]
[]
[null,"Note: In 2020, our Bayway Rod & Wire and Norwich Rod facilities were closed and decommissioned and therefore data has not been included in the table for these entities for 2020. Certain energy calculations have been restated back to 2016, including B20 biodiesel, and energy related to the divested Tenke Fungurume mine has been excluded."]

{"sheet":"2020 Energy Consumption - Type","index":6,"n_rows":31,"n_cols":12,"rows_kept":31,"cut":false,"hidden":false,"merged":[[1,11,2,11],[30,1,30,9],[1,2,1,4],[1,5,1,7],[1,8,1,10]]}
[null,"FCX - ESG PERFORMANCE TREND DATA"]
[null,"2020 ENERGY CONSUMPTION BY TYPE","Direct Energy",null,null,"Indirect Energy",null,null,"Total Energy",null,null,"% Renewable"]
[null,"(TJ, except percentages)","Renewable","Nonrenewable","Total","Renewable","Nonrenewable","Total","Renewable","Nonrenewable","Total"]
[null,"FMC Mining"]
[null,"Bagdad",96.802720972724998,1980.5484034817753,2077.3511244545002,394.67894760000001,1693.5694524,2088.2483999999999,491.48166857272503,3674.1178558817755,4165.5995244545002,0.11798581829276694]
[null,"Cerro Verde",351.30942372515,6741.98142077785,7093.2908445029998,6779.3606496000011,4226.0949504,11005.455599999999,7130.670073325151,10968.076371177849,18098.746444502998,0.39398695899687008]
[null,"Chino / Cobre",0,705.96867399999996,705.96867399999996,15.955639199999998,870.46876080000004,886.42439999999999,15.955639199999998,1576.4374348000001,1592.3930740000001,1.0019912457870938E-2]
[null,"Climax",0,497.17045999999999,497.17045999999999,104.84944560000001,359.08615440000005,463.93560000000002,104.84944560000001,856.25661439999999,961.10605999999996,0.10909248205135655]
[null,"El Abra",32.5,998.03320000000008,1030.5332000000001,391.72662000000003,1596.7333799999999,1988.46,424.22662000000003,2594.76658,3018.9931999999999,0.14051923667797597]
[null,"Henderson",9.9,314.62903783199999,324.52903783199997,163.98433439999999,561.61006559999998,725.59439999999995,173.8843344,876.23910343199998,1050.123437832,0.16558466189364132]
[null,"Morenci",353.89748647557502,7734.1224930359258,8088.0199795115004,668.30841720000001,7582.4127827999991,8250.7212,1022.205903675575,15316.535275835926,16338.7411795115,6.256332066496062E-2]
[null,"Safford / Lone Star",0,2007.7823020000001,2007.7823020000001,95.00942268,1107.6414973200001,1202.65092,95.00942268,3115.4237993200004,3210.4332220000006,2.9593956986531576E-2]
[null,"Sierrita",0,1513.4291061500001,1513.4291061500001,300.97220399999998,2014.1985960000002,2315.1707999999999,300.97220399999998,3527.62770215,3828.5999061500002,7.8611558109411978E-2]
[null,"Tyrone",0,515.03806899999995,515.03806899999995,10.725480000000001,704.30652000000009,715.03200000000004,10.725480000000001,1219.344589,1230.0700690000001,8.7194057235450064E-3]
[null,"Total FMC Mining",844.40963117344995,23008.703166277548,23853.112797450998,8925.5711602800002,20716.122159719998,29641.693319999998,9769.9807914534485,43724.825325997554,53494.806117451,0.18263419386926796]
[]
[null,"Downstream Processing"]
[null,"Atlantic Copper Smelter & Refinery",0,894.71615641999995,894.71615641999995,144,888,1032.0192,144,1783,1927,0.08]
[null,"Ft. Madison Moly Special Products",0,339.45238210000002,339.45238210000002,56.776953599999999,88.432646399999996,145.20959999999999,56.776953599999999,427.88502850000003,484.66198210000005,0.11714752899327936]
[null,"Kokkola Cobalt Refinery",0,53.338819100000002,53.338819100000002,36.877478400000001,61.200921600000001,98.078400000000002,36.877478400000001,114.53974070000001,151.41721910000001,0.24354877615104739]
[null,"Miami Smelter & Rod",0,1910.4912830000001,1910.4912830000001,219.14604,1670.04396,1889.19,219.14604,3580.5352430000003,3799.6812830000003,5.7674847882761227E-2]
[null,"Rotterdam",0,162.80355700000001,162.80355700000001,45.58,0,45.579599999999999,45.58,162.80355700000001,208.383557,0.21873168952901503]
[null,"Stowmarket",0,1.3340479999999999,1.3340479999999999,1.1007791999999998,3.3200208,4.4207999999999998,1.1007791999999998,4.6540688000000001,5.754848,0.19127858807044076]
[null,"El Paso Refinery & Rod",0,1694.2782520000001,1694.2782520000001,0,268.85160000000002,268.85160000000002,0,1963.129852,1963.129852,0]
[null,"Total Downstream Processing",0,5056.4144976200005,5056.4144976200005,503.48125119999997,2979.8491488,3483.3491999999997,503.48125119999997,8036.5474899999999,8540.0287411999998,5.8955451610020394E-2]
[]
[null,"Total PT-FI (Grasberg)",69.180000000000007,24148.129199999999,24217.3092,0,0,3.5999999999999999E-7,69.180000000000007,24148.129199999999,24217.3092,2.8566344604461676E-3]
[]
[null,"Total - FCX Global",913.58963117345002,52213.246863897548,53126.836495070995,9429.052411480001,23695.971308519998,33125.042520359995,10342.64204265345,75909.502015997554,86252.144058651,0.11991170950626466]
[]
[null,"Note: In 2020, our Bayway Rod & Wire and Norwich Rod facilities were closed and decommissioned and therefore data has not been included in the table for these entities for 2020."]

{"sheet":"2020 Indirect Energy - Source","index":7,"n_rows":30,"n_cols":13,"rows_kept":30,"cut":false,"hidden":false,"merged":[[28,1,28,12],[29,1,29,12]]}
[null,"FCX - ESG PERFORMANCE TREND DATA"]
[null,"2020 INDIRECT ENERGY CONSUMED BY SOURCE"]
[null,"Energy by Source (%)","Geothermal","Solar","Wind","Nuclear","Hydro ","Biomass","Other Fossil","Gas","Oil","Coal / Coke","Other"]
[null,"FMC Mining"]
[null,"Bagdad",3.2000000000000001E-2,4.0999999999999995E-2,1.7000000000000001E-2,0.17600000000000002,9.5000000000000001E-2,4.0000000000000001E-3,0,0.38500000000000001,0,0.25,0]
[null,"Cerro Verde",0,1.4999999999999999E-2,3.5000000000000003E-2,0,0.56100000000000005,5.0000000000000001E-3,0,0.38200000000000001,2E-3,0,0]
[null,"Chino / Cobre",5.0000000000000001E-3,6.0000000000000001E-3,2E-3,2.6000000000000002E-2,5.0000000000000001E-3,0,0,0.91900000000000004,0,3.7000000000000005E-2,0]
[null,"Climax",0,1.9E-2,0.17600000000000002,0,2.8000000000000001E-2,3.0000000000000001E-3,0,0.29600000000000004,0,0.47600000000000003,2E-3]
[null,"El Abra",0,0,2.1000000000000001E-2,0,0.17600000000000002,0,1.6E-2,0.25900000000000001,5.2000000000000005E-2,0.441,3.5000000000000003E-2]
[null,"Henderson",0,1.9E-2,0.17600000000000002,0,2.8000000000000001E-2,3.0000000000000001E-3,0,0.29600000000000004,0,0.47600000000000003,2E-3]
[null,"Morenci",0.02,2.6000000000000002E-2,1.3000000000000001E-2,0.111,0.02,2E-3,0,0.65099999999999991,0,0.157,0]
[null,"Safford / Lone Star",0.02,2.6000000000000002E-2,1.1000000000000001E-2,0.111,0.02,2E-3,0,0.65200000000000002,0,0.158,0]
[null,"Sierrita",0,7.0000000000000007E-2,0.06,0,0,0,0,0.3,0,0.55000000000000004,0.02]
[null,"Tyrone",4.0000000000000001E-3,5.0000000000000001E-3,2E-3,2.1000000000000001E-2,4.0000000000000001E-3,0,0,0.93400000000000005,0,0.03,0]
[]
[]
[null,"Downstream Processing"]
[null,"Atlantic Copper Smelter & Refinery",0,0.01,0.09,0.36,0.04,0,0.115,0.28299999999999997,2.7E-2,3.2000000000000001E-2,4.3999999999999997E-2]
[null,"Ft. Madison Moly Special Products",0,0,0.36899999999999999,8.5999999999999993E-2,1.7000000000000001E-2,5.0000000000000001E-3,0,5.4000000000000006E-2,5.0000000000000001E-3,0.46299999999999997,1E-3]
[null,"Kokkola Cobalt Refinery",0,0.05,0.188,0.20600000000000002,0.13800000000000001,1.3000000000000001E-2,0,0.16899999999999998,5.0999999999999997E-2,0.161,2.4E-2]
[null,"Miami Smelter & Rod",0,4.5999999999999999E-2,5.0000000000000001E-3,0.27899999999999997,6.3E-2,2E-3,0,0.33,0,0.27500000000000002,0]
[null,"Rotterdam1",0,0,0,0,0,0,0,0,0,0,1]
[null,"Stowmarket",4.9000000000000002E-2,4.9000000000000002E-2,5.0999999999999997E-2,0.21,5.0999999999999997E-2,4.9000000000000002E-2,1.1000000000000001E-2,0.42,0.01,0.09,0.01]
[null,"El Paso Refinery & Rod",0,0,0,0,0,0,0,0.99,0.01,0,0]
[]
[]
[null,"PT-FI (Grasberg)",0,0,0,0,0,0,0,0,0,0,0]
[]
[null,"1. At our Rotterdam operation we purchase renewable energy certificates for all electricity."]
[null,"Note: In 2020, our Bayway Rod & Wire and Norwich Rod facilities were closed and decommissioned and therefore data has not been included in the table for these entities for 2020. "]

{"sheet":"2020 Direct Energy - Source","index":8,"n_rows":32,"n_cols":13,"rows_kept":32,"cut":false,"hidden":false,"merged":[[30,1,30,12],[31,1,31,12]]}
[null,"FCX - ESG PERFORMANCE TREND DATA"]
[null,"2020 DIRECT ENERGY CONSUMED BY SOURCE"]
[null,"Energy by Source (TJ)","Coal / Coke","Diesel","B5 Biodiesel","B20 Biodiesel","B30 Biodiesel","Gasoline","Natural Gas","Propane / LPG","Aviation Fuel","Used Oil","Other"]
[null,"FMC Mining"]
[null,"Bagdad",0,0,1936.1,0,0,31,109.2,1,0,0,0]
[null,"Cerro Verde",0,32.299999999999997,7026.2,0,0,34.799999999999997,0,0,0,0,0]
[null,"Chino / Cobre",0,534.1,0,0,0,20.9,147.4,3.6,0,0,0]
[null,"Climax",0,295.2,0,0,0,9.1999999999999993,191.7,1,0,0,0]
[null,"El Abra1",0,988.3,0,0,0,4.8,0,5,0,0,33]
[null,"Henderson",0,12.6,0,0,33,4.0999999999999996,272.89999999999998,1.9,0,0,0]
[null,"Morenci",0,190.5,7077.9,0,0,137.6,680.5,1.5,0,0,0]
[null,"Safford / Lone Star",0,1917.9,0,0,0,51.3,0,38.6,0,0,0]
[null,"Sierrita",0,1330.6,0,0,0,33.799999999999997,143.6,5.4,0,0,0]
[null,"Tyrone",0,475.4,0,0,0,15.3,22.2,2.2000000000000002,0,0,0]
[null,"Total FMC Mining",0,5776.9,16040.2,0,33,342.7,1567.5,60.3,0,0,33]
[]
[null,"Downstream Processing"]
[null,"Atlantic Copper Smelter & Refinery",79.900000000000006,192.9,0,0,0,0,622,0,0,0,0]
[null,"Ft. Madison Moly Special Products",0,0.2,0,0,0,0.1,337.7,1.5,0,0,0]
[null,"Kokkola Cobalt Refinery",0,0.5,0,0,0,0,0,52.9,0,0,0]
[null,"Miami Smelter & Rod",0,58,0,0,0,12.6,1837.5,2.4,0,0,0]
[null,"Rotterdam",0,0.7,0,0,0,0,162.1,0,0,0,0]
[null,"Stowmarket",0,0.7,0,0,0,0,0.7,0,0,0,0]
[null,"El Paso Refinery & Rod",0,3.5,0,0,0,0.4,1681.7,8.8000000000000007,0,0,0]
[null,"Total Downstream Processing",79.900000000000006,256.39999999999998,0,0,0,13.1,4641.6000000000004,65.400000000000006,0,0,0]
[]
[null,"PT-FI (Grasberg)",16495.599999999999,7089.8,0,22.5,215.6,23.9,0,0,208,162,0]
[]
[null,"Total - FCX Global",16575.400000000001,13123.1,16040.2,22.5,248.6,379.7,6209.2,125.8,208,162,33]
[]
[null,"1. El Abra has a regenerative downhill conveyor system that is 20km in length that generates electricity for use on site as it transports material for processing. "]
[null,"Note: In 2020, our Bayway Rod & Wire and Norwich Rod facilities were closed and decommissioned and therefore data has not been included in the table for these entities for 2020. "]

{"sheet":"2020 Energy Use - Type","index":9,"n_rows":19,"n_cols":10,"rows_kept":19,"cut":false,"hidden":false,"merged":[[17,1,17,9],[18,1,18,9],[1,2,1,3],[1,4,1,5],[1,6,1,7],[1,8,1,9],[13,1,14,9],[15,1,15,9],[16,1,16,9]]}
[null,"FCX - ESG PERFORMANCE TREND DATA"]
[null,"2020 TOTAL ENERGY USE  BY TYPE","FMC Mining1 ",null,"Downstream Processing2",null,"PT-FI (Grasberg)3",null,"FCX GLOBAL"]
[null,"(PJ, except percentages)","Energy Consumed ","Percent of Total ","Energy Consumed ","Percent of Total ","Energy Consumed ","Percent of Total ","Energy Consumed ","Percent of Total "]
[null,"Scope 1"]
[null,"Liquid Hydrocarbons",22.192375424700003,{"$f":"C5/C11","v":0.41510618405944716},0.26947577391999999,{"$f":"E5/E11","v":3.1555413412094988E-2},7.7217422265540012,{"$f":"G5/G11","v":0.31885219606791498},{"$f":"C5+E5+G5","v":30.183593425174003},{"$f":"I5/I11","v":0.3500805433840915}]
[null,"Coal",0,{"$f":"C6/C11","v":0},0,{"$f":"E6/E11","v":0},16.49556699,{"$f":"G6/G11","v":0.68114780393208507},{"$f":"C6+E6+G6","v":16.49556699},{"$f":"I6/I11","v":0.19132172150422452}]
[null,"Gaseous Hydrocarbons",1.6278556421500001,{"$f":"C7/C11","v":3.0448878539628528E-2},4.7070882249999997,{"$f":"E7/E11","v":0.55119654262937601},0,{"$f":"G7/G11","v":0},{"$f":"C7+E7+G7","v":6.3349438671499998},{"$f":"I7/I11","v":7.3475035264354213E-2}]
[null,"Other4",0,{"$f":"C8/C11","v":0},7.9850498700000008E-2,{"$f":"E8/E11","v":9.3504342189531589E-3},0,{"$f":"G8/G11","v":0},{"$f":"C8+E8+G8","v":7.9850498700000008E-2},{"$f":"I8/I11","v":9.2613578445143482E-4}]
[null,"Scope 25"]
[null,"Purchased electricity ",29.641693319999998,{"$f":"C10/C11","v":0.55444493740092438},3.4833492000000001,{"$f":"E10/E11","v":0.40789760973957589},0,{"$f":"G10/G11","v":0},{"$f":"C10+E10","v":33.125042520000001},{"$f":"I10/I11","v":0.38419656406287833}]
[null,"Total Energy Use",53.461924386850001,{"$f":"D10+D8+D7+D6+D5","v":1},8.5397636976199998,{"$f":"F10+F8+F7+F6+F5","v":1},24.217309216554,{"$f":"H10+H8+H7+H6+H5","v":1},{"$f":"I10+I8+I7+I6+I5","v":86.218997301024004},{"$f":"J10+J8+J7+J6+J5","v":1}]
[]
[null,"1. FMC Mining includes Bagdad, Cerro Verde, Chino (including Cobre), Climax, El Abra, Henderson, Morenci, Safford (including Lone Star), Sierrita and Tyrone. "]
[null,"2. Downstream Processing includes Atlantic Copper Smelter & Refinery, Bayway Rod & Wire, Ft. Madison Moly Special Products, Kokkola Cobalt Refinery, Miami Smelter & Rod, Norwich Rod, Rotterdam, Stowmarket and El Paso Refinery & Rod. In 2020, our Bayway Rod & Wire and Norwich Rod facilities were closed and decommissioned and therefore data has not been included in the table for these entities for 2020."]
[]
[null,"3. During the 2020 GHG verification process, an opportunity was identified to improve PT-FI Scope 1 emissions calculations by switching to actual heating value for coal. The calculations have been restated accordingly back to 2016."]
[null,"4. El Abra has a regenerative downhill conveyor system that is 20km in length that generates electricity for use on site as it transports material for processing. Energy associated with the regenerative conveyor belt does not represent additive Scope 1 or 2 consumption and therefore is not included here or on page 89 of our 2020 Annual Report on Sustainability."]
[null,"5. 2015-2017 Scope 2 emissions were calculated using a location-based method; 2018-2020 Scope 2 emissions were calculated using a market-based method with the exception of Bayway Rod & Wire, Norwich Rod, El Abra, Ft. Madison, Kokkola and Stowmarket which are calculated using location-based grid factors and amount to less than 9% of our total Scope 2 emissions."]
[null,"Note: GHG emissions data have been prepared in accordance with the WRI/WBCSD GHG Protocol. FCX reports carbon emissions on 100% operational basis per the WRI/WBCSD GHG Protocol. However, FCX reports certain financial information, such as consolidated revenue, net of Morenci’s undivided joint venture partners’ interest. FCX owns a 72% undivided interest in Morenci. FCX's GHG emissions verification statement is available at fcx.com/sustainability. "]

{"sheet":"Air Emissions","index":10,"n_rows":12,"n_cols":7,"rows_kept":12,"cut":false,"hidden":false,"merged":[[13,1,13,6]]}
[null,"FCX - ESG PERFORMANCE TREND DATA"]
[null,"ENVIRONMENT"]
[null,null,2016,2017,2018,2019,2020]
[null,"Air Emissions (thousand metric tons)"]
[null,"CO, carbon monoxide",119.4,102.8,109.7,117.6,98.183999999999997]
[null,"NOX (excluding N2O), oxides of nitrogen",42.1,39.095829999999999,41.527200000000001,47.883989999999997,39.884459999999997]
[null,"SOX, oxides of sulfur",12.5,11.110430000000001,12.245209999999998,7.1691400000000005,7.2745200000000008]
[null,"PM10, particulate matter",25.1,15.3484,17.256619999999998,14.197569999999999,13.083170000000001]
[null,"Hg, mercury",1.4000000000000001E-4,2.0999999999999998E-4,5.9999999999999995E-5,1E-4,5.9999999999999995E-5]
[null,"Pb, lead",2.9870000000000001E-2,2.5059999999999999E-2,2.7789999999999999E-2,2.0059999999999998E-2,1.9620000000000002E-2]
[null,"VOCs, non-methane volatile organic compounds",10.199999999999999,8.8000000000000007,9.4,10.132190000000001,8.3268799999999992]
[null,"Ozone Depleting Substances,  CFC-11 equivalent",5.9999999999999995E-5,1.1999999999999999E-4,8.0000000000000007E-5,2.0000000000000002E-5,2.0000000000000002E-5]

{"sheet":"Environmental Events","index":11,"n_rows":13,"n_cols":7,"rows_kept":13,"cut":false,"hidden":false,"merged":[[15,1,15,6],[9,1,9,6],[10,1,10,6],[11,1,11,6],[12,1,14,6]]}
[null,"FCX - ESG PERFORMANCE TREND DATA"]
[null,"ENVIRONMENT"]
[null,null,2016,2017,2018,2019,2020]
[null,"Environmental Events"]
[null,"Reportable spills or releases of hazardous or toxic chemicals1,2",33,25,17,33,19]
[null,"NOVs related to permit exceedances, spills, releases or other compliance matters3",5,5,10,5,7]
[null,"# of Significant Environmental Events \n(as defined on the Risk Register)",0,0,1,0,0]
[null,"Cumulative environmental penalties ($ thousands)4",0,317,0,125,67.099999999999994]
[]
[null,"1. Reportable spills excludes spills at PT-FI associated with pipeline sabotage. Due to increased security efforts, the number of sabotage-related spills reported at PT-FI decreased from 68 in 2018, to 16 in 2019, to 8 in 2020."]
[null,"2. 2020 reportable spills included four releases of 75 kg (or less) of NH3 or SO2 at our Rotterdam molybdenum plant associated with malfunctions of the catalytic oxidizer, down from 14 such events in 2019. "]
[null,"3. NOV is Notice of Violation. As NOVs are rescinded based on the legal appeals process, prior year data are updated. "]
[null,"4. 2017 penalties paid were from NOVs at Cerro Verde in 2006 and 2008. 2019 penalties paid were from NOVs at Sierrita for dust events in 2018 ($30,000) and a NOV at Cerro Verde in 2007 ($94,682). In addition, we agreed to fund a $200,000 Supplemental Environmental Project associated with the Sierrita dust events. The Cerro Verde fine was paid in 2019 from a regulatory inspection conducted in 2007 due to an extended legal appeal process. 2020 penalties paid were principally from a Sierrita dust event ($55,000) and the failure to obtain a CO2 permit at Rotterdam ($12,000). "]

{"sheet":"Water","index":12,"n_rows":118,"n_cols":7,"rows_kept":118,"cut":false,"hidden":false,"merged":[[54,2,54,6],[55,2,55,6],[56,2,56,6],[49,1,49,4],[96,2,98,2],[62,1,63,1],[62,2,63,2],[62,3,63,3],[57,1,57,6],[54,1,55,1],[117,1,117,6],[62,4,62,6],[113,1,113,6],[114,1,114,6],[115,1,115,6],[116,1,116,6],[16,1,16,6],[17,1,17,6],[18,1,18,6],[19,1,19,6],[45,1,45,4],[44,1,44,6],[41,1,41,3],[42,1,42,3],[43,1,43,3],[46,1,46,4],[51,1,51,4],[50,1,50,4],[47,1,47,4],[48,1,48,4]]}
[null,"FCX - ESG PERFORMANCE TREND DATA"]
[null,"ENVIRONMENT"]
[null,null,2016,2017,2018,2019,2020]
[null,"Water Utilization (thousand cubic meters)"]
[null,"Groundwater",100922.82400000001,94316.051000000007,111722.615853,99323.441650000008,96749.452000000005]
[null,"Surface water",121826.689,110042.645,68177.043892200003,60475.317999999999,49787.892999999996]
[null,"Sea water",0,0,46843.615387200007,48578.18,49217.925000000003]
[null,"Stormwater",49032.061200000004,43863.976999999999,52750.215124599999,57153.051017999998,41982.817999999999]
[null,"Third-party Sources",30682.005100000002,26814.467000000001,31126.656659299999,37033.731,23560.609]
[null,"Total New Water Withdrawn1 ",302463.57930000004,275037.14,310620.1469163,302563.72166799998,261298.69700000001]
[null,"Total Water Recycled / Reused",1399835.09396,1285205.6869999999,1377971.2770751,1408513.2650000001,1231053.2290000001]
[null,"Total Utilized Water (Withdrawn + Recycled / Reused)",1702298.6732600001,1560242.827,1688591.4239914,1711076.986668,1492351.926]
[null,"Water Recycle / Reuse Rate2 ",0.82232049871673518,0.82372158023066488,0.81604777656511296,0.82317351935333682,0.82490812492173515]
[null,"Total Water Discharged3","N/A","N/A",106182.5231912,95884.563999999998,101962.79800000001]
[null,"Water Use Efficiency4 (%)","N/A","N/A",0.87080607065486104,0.87204053537682902,0.88540193835577807]
[]
[null,"1. New water withdrawal includes new water that is received or extracted by operation and used for the first time. New water withdrawals include high quality freshwater and lower quality water and are categorized by type: groundwater, surface water, stormwater, sea water or third-party water. Water withdrawals exclude water diverted away from operational areas without use."]
[null,"2. Water recycle/reuse rate = (total water recycled + reused) / total water utilized."]
[null,"3. Water discharged is water removed from an operation and returned to the environment or a third-party after meeting all required treatment and discharge standards. In 2018, we began calculating water discharged and water use efficiency rate."]
[null,"4. Water use efficiency rate = total water recycled + reused / (total water utilization – discharged water)."]
[]
[null,"2020 Water Quality (thousand cubic meters)"," High Quality1"," Low Quality1"," Total "]
[null,"Water Withdrawals"]
[null,"Groundwater",83662.171999999991,13087.28,96749.45199999999]
[null,"Surface Water",49787.892999999996,0,49787.892999999996]
[null,"Sea Water",0,49217.925000000003,49217.925000000003]
[null,"Stormwater",37882.606,4100.2119999999995,41982.817999999999]
[null,"Third-party Sources",21350.512999999999,2210.096,23560.609]
[null,"Total New Water Withdrawn2",192683.18400000001,68615.513000000006,261298.69699999996]
[]
[null,"Water Discharged Off-site3"]
[null,"To Surface",10144.316000000001,2392.5509999999999,12536.867]
[null,"To Sea, Ocean, or Estuary",18011.043000000001,"70,421 4",88432.185000000012]
[null,"To Third-party",0,993.74599999999998,993.74599999999998]
[null,"Total Water Discharged Off-site",28155.359000000004,73807.439000000013,101962.79800000001]
[]
[null,"Change in Water Storage Volume",null,null,-7416.3040000000001]
[null,"Total Water Consumption5",100135.84023100001,66616.362204999998,166752.20243599999]
[]
[null,"Total Water Recycled / Reused",null,null,1231053.2290000001]
[null,"Total Utilized Water (Withdrawan + Recycled / Reused)",null,null,{"$f":"E29+E40","v":1492351.926}]
[null,"Water Recycle / Reuse Rate6",null,null,{"$f":"E40/E41","v":0.82490812492173515}]
[null,"Water Use Efficiency Rate7",null,null,0.89]
[]
[]
[null,"1. Per ICMM guidance, we differentiate the quality of water withdrawn and discharged into high quality and low quality. ICMM high quality is equivalent to freshwater as defined by SASB. See table below for more information."]
[null,"2. New water withdrawal includes new water that is received or extracted by operation and used for the first time. This includes high quality freshwater and lower quality water and are categorized by type: groundwater, surface water, stormwater, sea water or third-party water. Water withdrawals exclude water diverted away from operational areas without use."]
[null,"3. Approximately 49% of water quantities discharged were associated with our Atlantic Copper Smelter where estuarine water is used for cooling and then returned to its source, 38% associated with PT-FI’s controlled riverine tailings management system and the remaining 13% is associated with our Climax and Henderson mines in Colorado."]
[null,"4. Per ICMM guidelines, this quantity of discharged water is categorized as low quality due primarily to (a) the estuarine source water used at Atlantic Copper, which is already low quality due to salinity, and (b) the discharged water associated with the function of PT-FI’s controlled riverine Tailings system, which contains alkaline pH."]
[null,"5. Water consumption = Total water withdrawn - discharged water - change in water storage volume."]
[null,"6. Water recycle / reuse rate = total water reused + recycled / total water utilized."]
[null,"7. Water use efficiency rate = total water reused + recycled / (total water utilization – discharged water)."]
[]
[null,"ICMM WATER QUALITY CATEGORIES","MCA WATER ACCOUNTING FRAMEWORK (WAF) QUALITY CATEGORIES"]
[null,"High Quality\n(Freshwater1)","Category 1 \n\nHigh-quality water that may require minimal and inexpensive treatment to raise quality\nto appropriate drinking water standard (e.g., near potable water quality)."]
[null,null,"Category 2\nMedium-quality water that would require a moderate level of treatment to meet\nappropriate drinking water standard (e.g., agricultural use)."]
[null,"Low Quality","Category 3\nLow-quality water that would require significant treatment to raise quality to appropriate\ndrinking water standards (e.g., industrial and wastewater)."]
[null,"1. High quality water, as defined by ICMM, is equivalent to Fresh Water as defined by SASB.  "]
[]
[]
[]
[null,"WATER SUPPLY RISKS"]
[null,"OPERATION","CLIMATE CONDITIONS1","WATER SOURCES2","WATER SUPPLY RISKS"]
[null,null,null,null,"WATER STRESS3","EXCESS WATER","ACCESS CHALLENGES4"]
[null,"Bagdad","Arid; Semi-desert","Groundwater","Low-Med"]
[null,"Arizona",null,"Surface water"]
[null,null,null,"Stormwater"]
[null,null,null,"Third-party5"]
[null,"Cerro Verde","Arid; Desert","Groundwater","High",null,"X"]
[null,"Arequipa, Peru",null,"Surface water"]
[null,null,null,"Stormwater"]
[null,null,null,"Third-party5"]
[null,"Chino","Arid; Semi-desert","Groundwater","Low-Med"]
[null,"New Mexico",null,"Stormwater"]
[null,null,null,"Third-party5"]
[]
[null,"Climax","Snow; Fully humid","Groundwater","Low-Med","X"]
[null,"Colorado",null,"Surface water"]
[null,null,null,"Stormwater"]
[]
[null,"El Abra","Arid; Desert","Groundwater","Extremely High",null,"X"]
[null,"Calama, Chile",null,"Stormwater"]
[]
[]
[null,"Henderson","Snow; Fully humid","Groundwater","Med-High","X"]
[null,"Colorado",null,"Surface water"]
[null,null,null,"Stormwater"]
[]
[null,"Miami","Arid; Semi-desert","Groundwater","Med-High","X","X"]
[null,"Arizona",null,"Surface water"]
[null,null,null,"Stormwater"]
[null,null,null,"Third-party5"]
[null,"Morenci","Arid; Semi-desert","Groundwater","Med-High",null,"X"]
[null,"Arizona",null,"Surface water"]
[null,null,null,"Stormwater"]
[null,null,null,"Third-party5"]
[null,"PT-FI","Tropical; Fully humid","Groundwater","Low","X"]
[null,"Papua, Indonesia",null,"Surface water"]
[null,null,null,"Stormwater"]
[]
[null,"Safford","Arid; Semi-desert","Groundwater","Med-High",null,"X"]
[null,"Arizona",null,"Stormwater"]
[]
[]
[null,"Sierrita","Arid; Semi-desert","Groundwater","Med-High",null,"X"]
[null,"Arizona",null,"Stormwater"]
[]
[]
[null,"Tyrone","Arid; Semi-desert","Groundwater","Low-Med"]
[null,"New Mexico",null,"Stormwater"]
[null,null,null,"Stormwater"]
[]
[]
[null,"1. Climate conditions based on the Köppen-Geiger climate classification terminology. "]
[null,"2. Water sources can include groundwater, surface water, stormwater, sea water, or third-party sources (including effluent)."]
[null,"3. Baseline water stress ratings are defined by a combination of the World Resources Institute’s (WRI) Aqueduct tool and its associated descriptors for baseline water stress, as well as our own qualitative assessments and local knowledge of the site-specific circumstances of withdrawal at each operation. For a more in-depth discussion, see our 2019 Water Report. "]
[null,"4. Access challenges can include legal challenges or potential changes in law or regulations that could impact our access to certain water supplies."]
[null,"5. Third-party water sources are primarily sourced from wastewater effluent. "]

{"sheet":"Land","index":13,"n_rows":7,"n_cols":7,"rows_kept":7,"cut":false,"hidden":false,"merged":[[8,1,8,6]]}
[null,"FCX - ESG PERFORMANCE TREND DATA"]
[null,"ENVIRONMENT"]
[null,null,2016,2017,2018,2019,2020]
[null,"Land (in hectares)"]
[null,"New land disturbed during the year ",540,761,971,1465.14,586.55899999999997]
[null,"Land rehabilitated during the year ",101,65,84,80,89.62]
[null,"Total land disturbed to be rehabilitated",58286,58982,59870,61255,61862.433299999997]

{"sheet":"Tailings Impoundments","index":14,"n_rows":10,"n_cols":7,"rows_kept":10,"cut":false,"hidden":false,"merged":[[8,1,8,6],[9,1,9,6]]}
[null,"FCX - ESG PERFORMANCE TREND DATA"]
[null,"ENVIRONMENT"]
[null,null,2016,2017,2018,2019,2020]
[null,"Number of Tailings Impoundments1,2"]
[null,"Total Active",18,19,19,18,17]
[null,"Total Closed / Inactive",52,56,55,58,56]
[null,"Total Tailings Impoundments",{"$f":"+C6+C5","v":70},{"$f":"+D6+D5","v":75},{"$f":"+E6+E5","v":74},{"$f":"+F6+F5","v":76},{"$f":"+G6+G5","v":73}]
[]
[null,"1. Tailings impoundment counts include non-operating sites and are reviewed at least annually and updated according to construction of new facilities, changes in operating conditions, closure, business transactions, and legal reviews. FCX provides a full disclosure of tailings facilities, location, status, construction type and hazard categorization available at fcx.com/sites/fcx/files/documents/sustainability/supporting_data.pdf. "]
[null,"2. In 2020, facilities at Dante, a discontinued operation, were determined to not contain tailings material. One Tailings Storage Facility (TSF) at Morenci was fully integrated into another TSF. Another Morenci TSF’s status changed to inactive."]

{"sheet":"Mining.Mineral Processing Waste","index":15,"n_rows":25,"n_cols":7,"rows_kept":25,"cut":false,"hidden":false,"merged":[[24,1,24,6]]}
[null,"FCX - ESG PERFORMANCE TREND DATA"]
[null,"ENVIRONMENT"]
[null,null,2016,2017,2018,2019,2020]
[null,"Mining & Mineral Processing Waste (million metric tons)"]
[null,"Tailings ",304,298,324,309,259]
[null,"Overburden and Waste Rock ",191,154,371,445,349]
[null,"Slags1",0.56999999999999995,0.50570000000000004,0.58730000000000004,0.53200000000000003,0.62949999999999995]
[null,"Non-Mining Waste & Recyclable Material1"]
[null,"Non-Hazardous (thousand metric tons)"]
[null,"Recycled",57.975226999999997,64.244118400000005,74.58587999999996,92.08583923999997,61.307735000000001]
[null,"Disposed - Landfill ",58.7,55.9,58.9,77.7,52.7]
[null,"Disposed - Other",4.3,2.8,4.3,4,16.100000000000001]
[null,"Disposed On-site",55,44.6,41.9,61.4,25]
[null,"Total Non-Hazardous Waste and Recyclable Material",{"$f":"C10+C11+C12+C13","v":175.97522700000002},{"$f":"D10+D11+D12+D13","v":167.5441184},{"$f":"E10+E11+E12+E13","v":179.68587999999997},{"$f":"F10+F11+F12+F13","v":235.18583923999998},{"$f":"G10+G11+G12+G13","v":155.10773499999999}]
[null,"Hazardous (thousand metric tons)"]
[null,"Recycled",37.158117000000004,27.809763,48.083181000000003,51.412273999999996,52.675684800000013]
[null,"Disposed - Landfill ",35.4,28.9,27.3,26.6,4]
[null,"Stored On-site",0.4,0.2,0,0,0]
[null,"Treated",27.5,20.2,22.6,25.7,17.5]
[null,"Total Hazardous Waste and Recyclable Material",{"$f":"C16+C17+C18+C19","v":100.45811700000002},{"$f":"D16+D17+D18+D19","v":77.109763000000001},{"$f":"E16+E17+E18+E19","v":97.983181000000002},{"$f":"F16+F17+F18+F19","v":103.71227399999999},{"$f":"G16+G17+G18+G19","v":74.175684800000013}]
[]
[null,"Total Non-Mining Waste Generated",{"$f":"C20+C14","v":276.43334400000003},{"$f":"D20+D14","v":244.65388139999999},{"$f":"E20+E14","v":277.66906099999994},{"$f":"F20+F14","v":338.89811323999999},{"$f":"G20+G14","v":229.28341979999999}]
[null,"% Recycled",{"$f":"(C10+C16)/C22","v":0.34414569032598319},{"$f":"(D10+D16)/D22","v":0.37626168394808884},{"$f":"(E10+E16)/E22","v":0.4417815242296656},{"$f":"(F10+F16)/F22","v":0.42342553007480993},{"$f":"(G10+G16)/G22","v":0.49712892410373938}]
[]
[null,"1. Certain waste streams (sludges and residues) that were previously reported as mining and mineral processing wastes have been reclassified and reported under the appropriate non-mining hazardous or non-hazardous category. Used oil is incorporated in respective recycled waste categories. "]

{"sheet":"Health & Safety","index":16,"n_rows":39,"n_cols":7,"rows_kept":39,"cut":false,"hidden":false,"merged":[[34,1,34,6],[39,1,39,6],[33,1,33,6],[35,1,35,6],[38,1,38,6],[37,1,37,6],[36,1,36,6]]}
[null,"FCX - ESG PERFORMANCE TREND DATA"]
[null,"SOCIAL"]
[null,null,2016,2017,2018,2019,2020]
[null,"Health & Safety Performance1"]
[null,"Total Number of Recordable Events",459,433,466,528,418]
[null,"% High Risk2",0.13200000000000001,0.22800000000000001,0.107,0.107,6.7000000000000004E-2]
[]
[null,"Number of Workplace Fatalities"]
[null,"Full-time Employees",5,3,1,1,2]
[null,"Contract Employees",1,2,0,2,3]
[null,"Total Workplace Fatalities",6,5,1,3,5]
[]
[null,"Total Recordable Incident Rate (TRIR)3"]
[null,"Full-time Employees",0.91,0.92,0.85,0.85,0.8]
[null,"Contract Employees",0.39,0.47,0.46,0.56999999999999995,0.5]
[null,"Total Workforce",0.71,0.75,0.71,0.74,0.69]
[null," "]
[null,"Fatality Rate4"]
[null,"Full-time Employees",1.2E-2,8.9999999999999993E-3,2E-3,2E-3,5.0000000000000001E-3]
[null,"Contract Employees",4.0000000000000001E-3,8.9999999999999993E-3,0,7.0000000000000001E-3,1.4E-2]
[null,"Total Workforce",8.9999999999999993E-3,8.9999999999999993E-3,2E-3,4.0000000000000001E-3,8.0000000000000002E-3]
[]
[null,"Near Miss Frequency Rate (NMFR)5"]
[null,"Full-time Employees",3.81,4.03,2.95,2.64,1.96]
[null,"Contract Employees",0.89768862011980777,1,1.47,1.21,0.99]
[null,"Total Workforce",2.72,2.84,2.41,2.08,1.61]
[]
[null,"Lost Time Injury Frequency Rate (LTIR)6"]
[null,"Full-time Employees",0.46,0.46,0.4,0.38,0.32]
[null,"Contract Employees",0.15,0.2,0.21,0.25,0.2]
[null,"Total Workforce",0.35,0.36,0.33,0.33,0.28000000000000003]
[]
[]
[null,"1. All health and safety performance data includes employees and contractors, unless otherwise noted. All data performance rates are calculated per 200,000 hours worked, except where indicated. "]
[null,"2. Our Risk Register defines \"high risk\" events as incidents that have the potential to result in permanent disabilities or fatalities."]
[null,"3. TRIR = [(Fatalities + Lost-time Incidents + Restricted-duty Incidents + Medical Treatment) x 200,000] / Total Hours Worked. TRIR is equivalent to MSHA All-Incidence Rate (AIR). TRIR presented here may differ from reported TRIR in FCX's Form 10-K filings because data have been adjusted to exclude disposed assets for comparison purposes. "]
[null,"4. Fatality Rate =  (Number of Fatalities x 200,000) / Total Hours Worked."]
[null,"5. NMFR = (Number of Near Miss Events x 200,000) / Total Hours Worked."]
[null,"6. LTIR = (Number of Lost Time Injuries x 200,000) / Total Hours Worked."]

{"sheet":"Workforce","index":17,"n_rows":79,"n_cols":7,"rows_kept":79,"cut":false,"hidden":false,"merged":[[79,1,79,6],[75,1,75,6],[78,1,78,6],[24,2,24,6],[77,1,77,6],[76,1,76,6]]}
[null,"FCX - ESG PERFORMANCE TREND DATA"]
[null,"SOCIAL"]
[null,null,2016,2017,2018,2019,2020]
[null,"Workforce"]
[null,"Number of Employees",30000,25200,26800,27500,24500]
[null,"Number of Contractors",29100,28000,38800,40600,33800]
[]
[null,"Employees Under Collective Labor Agreements (CLA)1"]
[null,"Indonesia",0.77609980302035453,0.7124164414734746,0.70603156708004511,0.73050058207217694,0.73032336790726049]
[null,"Europe/Other",0.66216216216216217,0.72786647314949204,0.71848739495798319,0.66134185303514381,0.67034834324553949]
[null,"South America",0.67226263756761795,0.657529493407356,0.65298142717497554,0.64952910297977462,0.65572315882874888]
[null,"North America",0,0,0,0,0]
[null,"Global Employees Under CLA",0.46655328798185941,0.38960213045033587,0.37414788601229282,0.36761479964902016,0.37777053455019555]
[]
[null,"Employee Demographics2"]
[null,"Employees by Age Group"]
[null,"<30 Years",0.13,0.12,0.14000000000000001,0.14000000000000001,0.12]
[null,"30-50 Years",0.68,0.67,0.65,0.64,0.66]
[null,">50 Years",0.19,0.21,0.21,0.22,0.22]
[]
[null,"Employees by Nationality"]
[null,"Local Country National",0.99,0.99,0.99,0.99,0.99]
[null,"Expatriates/Third-Country Nationals",0.01,0.01,0.01,0.01,0.01]
[]
[null,"North America Consolidated Demographic Info3"]
[null,"White",0.5884751291111715,0.56435463316948842,0.54838709677419351,0.54403576190102743,0.53328561202576952]
[null,"Hispanic/Latino",0.34846425659146507,0.37256508283269618,0.37897069687269147,0.38271508117010433,0.39504294917680743]
[null,"American Indian/Alaskan Native",2.6184651626347741E-2,3.1039504824321863E-2,3.4720512189115982E-2,3.4742373147204138E-2,3.8027916964924836E-2]
[null,"Asian",1.4677901603696657E-2,1.4290915710904788E-2,1.5595501928917344E-2,1.5292918202493922E-2,1.395848246241947E-2]
[null,"Black or African American",1.8120866177403279E-2,1.5019115237575096E-2,1.6662562587211688E-2,1.5606619088698925E-2,1.3600572655690766E-2]
[null,"Native Hawaiian or Other Pacific Islander",1.359064963305246E-3,1.0922992900054614E-3,1.8057949601904292E-3,2.3527566465375263E-3,2.5053686471009306E-3]
[null,"Two or more races",9.9664763975718042E-4,0,0,3.2154340836012861E-3,3.4001431639226914E-3]
[null,"Undisclosed",1.7214822868533116E-3,1.6384489350081922E-3,3.8578346876795536E-3,2.0390557603325228E-3,1.7895490336435218E-4]
[]
[null,"PT-FI Demographic Info "]
[null,"Indonesian Representation","-","-","-",0.98,0.98]
[null,"Indigenous Papuan Representation","-","-","-",0.4,0.4]
[]
[null,"Women Employed by Location"]
[null,"North America",0.17,0.17,0.18,0.19,0.18]
[null,"Chile",0.08,0.09,0.1,0.12,0.11]
[null,"Peru",0.06,0.06,7.0000000000000007E-2,7.0000000000000007E-2,0.06]
[null,"Indonesia",0.05,0.06,7.0000000000000007E-2,7.0000000000000007E-2,7.0000000000000007E-2]
[null,"Europe/Other",0.17,0.17,0.17,0.17,0.18]
[null,"Total Women in Workforce",0.1,0.12,0.13,0.13,0.13]
[]
[null,"Women in Leadership Positions"]
[null,"Board of Directors",0.25,0.25,0.4,0.33,0.33]
[null,"Executive Management ",0.11,0.08,0.1,0.11,0.13]
[null,"Management ",0.11,0.11,0.12,0.12,0.13]
[null,"Non-Management ",0.1,0.12,0.13,0.13,0.13]
[null,"Total Women in Workforce",0.1,0.12,0.13,0.13,0.13]
[]
[null,"% of New Hires - women ",0.15,0.22,0.21,0.21,0.22]
[]
[null,"Talent Attraction and Retention"]
[null,"Employee Turnover by Age Group"]
[null,"<30 Years",0.13,0.23,0.13,0.16,0.22]
[null,"30-50 Years",0.06,0.28000000000000003,0.05,0.06,0.09]
[null,">50 Years",0.19,0.31,0.08,0.11,0.26]
[]
[null,"Employee Turnover by Gender"]
[null,"Men",0.09,0.28999999999999998,0.06,0.08,0.14000000000000001]
[null,"Women",0.17,0.19,0.09,0.12,0.22]
[]
[null,"Employee Turnover by Region"]
[null,"North America4",0.18,0.16,0.1,0.11,0.2]
[null,"South America",0.05,0.03,0.05,0.06,0.15]
[null,"Indonesia",0.03,0.55000000000000004,0.03,0.04,0.05]
[null,"Europe/Other",0.11,0.06,0.05,0.25,0.1]
[null,"Total Employee Turnover",0.1,0.28000000000000003,7.0000000000000007E-2,0.09,0.15]
[]
[null,"Voluntary Turnover Rate","-","-","-","-",0.09]
[]
[]
[null,"1. In North America, our hourly employees continue to elect to work directly with company management rather than through union representation using our Guiding Principles contract, which adds value to the workforce and the company."]
[null,"2. Data includes employees only and does not include contractors."]
[null,"3. Our 2020 consolidated North America diversity metrics relate to employees only and are in line with the categories set forth by United States Equal Employment Opportunity Commission. "]
[null,"4. Higher turnover in 2020 is related to Voluntary Separation Packages offered to North America employees. "]

{"sheet":"Communities","index":18,"n_rows":38,"n_cols":7,"rows_kept":38,"cut":false,"hidden":false,"merged":[[37,1,37,6],[38,1,38,6],[32,1,32,6],[33,1,34,6],[35,1,35,6],[36,1,36,6]]}
[null,"FCX - ESG PERFORMANCE TREND DATA"]
[null,"SOCIAL"]
[null,null,2016,2017,2018,2019,2020]
[null,"Communities"]
[null,"Community Investments ($ millions)",129.4,153,155,100,108]
[null,"Community Trust Funds",0.26,0.3,0.4,0.28999999999999998,0.35]
[null,"Safety, Health & Environment ",0.12,0.19,0.15,0.21,0.17]
[null,"Education & Training ",0.16,0.14000000000000001,0.12,0.18,0.12]
[null,"Economic Development & Infrastructure",0.19,0.19,0.15,0.17,0.15]
[null,"Other1",0.13,0.15,0.15,0.14000000000000001,0.17]
[null,"Administration",0.14000000000000001,0.03,0.03,0.01,0.04]
[]
[null,"Community Grievances2"]
[null,"Community Grievances by Geography"]
[null,"Chile",8,33,37,29,17]
[null,"Europe",0,0,5,5,1]
[null,"Indonesia",64,64,76,60,53]
[null,"Peru3",8,17,15,9,10]
[null,"United States4",30,50,106,87,59]
[null,"Total Community Grievances",{"$f":"+C19+C18+C17+C16+C15","v":110},{"$f":"+D19+D18+D17+D16+D15","v":164},{"$f":"+E19+E18+E17+E16+E15","v":239},{"$f":"+F19+F18+F17+F16+F15","v":190},{"$f":"+G19+G18+G17+G16+G15","v":140}]
[]
[null,"Community Grievances by Type (%)"]
[null,"Community Benefits ",0.2818181818181818,0.40853658536585363,0.33891213389121339,0.24736842105263157,0.27142857142857141]
[null,"Employment ",0,0.01,1.6736401673640166E-2,3.0000000000000002E-2,4.2857142857142858E-2]
[null,"Environment",8.1818181818181818E-2,0.06,0.28033472803347281,0.25263157894736843,0.22]
[null,"Health & Safety",0.04,0.10000000000000002,0.11715481171548117,0.12000000000000001,0.15]
[null,"Cultural Heritage",8.1818181818181818E-2,0.12195121951219512,3.3472803347280332E-2,7.8947368421052627E-2,4.2857142857142858E-2]
[null,"Land Rights",0.21818181818181817,0.1402439024390244,5.0209205020920501E-2,6.3157894736842107E-2,0.1]
[null,"Physical Damage ",0.02,4.2682926829268296E-2,3.3472803347280332E-2,8.9999999999999983E-2,6.0000000000000005E-2]
[null,"Other5",0.28000000000000003,0.12195121951219512,0.1297071129707113,0.11578947368421053,0.12142857142857143]
[]
[]
[null,"1. Includes arts, culture, mitigation, stakeholder engagement and employee programs such as Matching Gifts and United Way."]
[null,"2. Prior year grievances were updated to include neighbor complaints in the U.S. We began reporting grievances from minority-owned Indonesian smelter and from Europe in 2020 and 2018, respectively."]
[]
[null,"3. In 2016, 146 grievances that were received in relation to a waste water treatment facility at our Cerro Verde operation were excluded from the total as they were reported separately."]
[null,"4. In 2018, approximately 630 grievances related to dust incidents at our Sierrita operation in Arizona were excluded from the total count as they were reported separately."]
[null,"5. Other includes security, town site or housing and other grievances not listed above."]

{"sheet":"Human Rights","index":19,"n_rows":7,"n_cols":7,"rows_kept":7,"cut":false,"hidden":false,"merged":[[6,1,6,6],[7,1,7,6]]}
[null,"FCX - ESG PERFORMANCE TREND DATA"]
[null,"SOCIAL"]
[null,null,2016,2017,2018,2019,2020]
[null,"Human Rights"]
[null,"Gross Human Rights Violations1",0,0,0,0,0]
[]
[null,"1. There is no uniform definition of gross human rights violations under international law; however, the United Nations Office of the High Commissioner report: The Corporate Responsibility to Respect Human Rights - An Interpretive Guide, provides guidance on identifying such types of violations."]

{"sheet":"Business Ethics","index":20,"n_rows":9,"n_cols":7,"rows_kept":9,"cut":false,"hidden":false,"merged":[[8,1,9,6],[10,1,10,6]]}
[null,"FCX - ESG PERFORMANCE TREND DATA"]
[null,"GOVERNANCE"]
[null,null,2016,2017,2018,2019,2020]
[null,"Business Ethics"]
[null,"Principles of Business Conduct Training1\nCompletion Rate",0.97,1,1,1,0.57999999999999996]
[null,"Anti-Corruption Training1\nCompletion Rate",0.97,0.98,1,1,0.82]
[null,"FCX Compliance Line Reports",218,235,257,285,270]
[]
[null,"1. Because of operational challenges as a result of the COVID-19 pandemic, including the inability to provide in-person classroom training, our 2020 business ethics and anti-corruption training was voluntary for employees. Training will be mandatory in 2021."]

{"sheet":"Economic Value Contribution","index":21,"n_rows":21,"n_cols":7,"rows_kept":21,"cut":false,"hidden":false,"merged":[[19,1,19,6],[21,1,21,6],[20,1,20,6]]}
[null,"FCX - ESG PERFORMANCE TREND DATA"]
[null,"GOVERNANCE"]
[null,null,2016,2017,2018,2019,2020]
[null,"Economic Value Contributed ($ millions)"]
[null,"Direct Economic Contributions1",{"$f":"13414-726","v":12688},12158,14663,13556,11374]
[null,"Cash Payments to Governments1,2",{"$f":"1428-204","v":1224},1346,2409,1412,1038]
[null,"Community Investments ",129.4,153,155,100,108]
[]
[null,"Procurement Spend Distribution ($ millions)"]
[null,"Local",2451,2549,3201,3552,2923.4940042409116]
[null,"National",3857,4150,5115,5437,4590.2961765461969]
[null,"Outside Home Country",751,7158,1288,1566,1197.6146661459645]
[null,"Total Procurement Spend Distribution",7059,{"$f":"D10+D11+D12","v":13857},{"$f":"E10+E11+E12","v":9604},10555,8711.4048469330737]
[null,"% Local","35% ",0.34,0.33,0.34,0.33559386294280119]
[null,"% National","55% ",0.56000000000000005,0.53,0.51,0.52692949727416827]
[null,"% Outside Home Country","10% ",0.1,0.14000000000000001,0.15,0.13747663978303057]
[]
[null,"Number of Local Suppliers","3,845 ","3,794 ",3727,3649,3379]
[]
[null,"1. For further information, please see our 2020 Annual Report on Sustainability and FCX’s 2020 Form 10-K."]
[null,"2. Amounts presented do not reflect payments on assessment under dispute.  Amounts presented reflect credits from prior years as applicable."]

{"sheet":"SASB","index":22,"n_rows":30,"n_cols":8,"rows_kept":30,"cut":false,"hidden":false,"merged":[[28,1,29,1],[26,1,27,1],[23,1,24,1],[21,1,22,1],[18,1,20,1],[0,1,0,7],[16,2,17,2],[5,1,6,1],[9,1,10,1],[14,1,17,1],[16,3,17,3],[16,4,17,4],[16,5,17,5],[11,1,13,1],[16,7,17,7],[2,1,2,7]]}
[null,"SUSTAINABILITY ACCOUNTING STANDARDS BOARD (SASB) INDEX"]
[]
[null,"The Sustainability Accounting Standards Board (SASB) is an independent, nonprofit organization that sets standards to guide the disclosure of financially material, industry-specific sustainability information by companies to their investors. We disclose in alignment with SASB’s Metals & Mining Sustainability Accounting Standard (EM-MM; version 2018-10) as defined by Sustainable Industry Classification System® (SICS®) with information as of the year ended December 31, 2020. For further information on the topics covered, please see our 2020 Annual Report on Sustainability, 2020 Form 10-K and the documents and pages on fcx.com referenced below. "]
[null,"Note: Reported amounts are approximate. "]
[null,"TOPIC","ACCOUNTING METRIC","CATEGORY","UNIT OF MEASURE ","CODE","FCX RESPONSE","REFERENCES"]
[null,"Greenhouse Gas Emissions","(1) Gross global Scope 1 emissions \n(2) Percentage covered under emissions-limiting regulations","Quantitative","Metric tons (t) CO2-e, Percentage (%)","EM-MM-110a.1","(1) 4,229,894 metric tons of carbon dioxide equivalent\n(2) 1.5% ","(1) ESG Performance Trend Data: Climate"]
[null,null,"Discussion of long-term and short-term strategy or plan to manage Scope 1 emissions, emissions reduction targets, and an analysis of performance against those targets","Discussion and Analysis","N/A","EM-MM-110a.2","FCX is dedicated to supplying the world with responsibly produced copper, which includes operating in a way that manages and mitigates our greenhouse gas (GHG) emissions and other climate-related risks. In 2020, we published our inaugural climate report, formalized our climate strategy and established our first GHG emissions reduction target for the Americas, which includes both Scope 1 and Scope 2 emissions. In the short term, we are committed to working towards aligning our strategy and disclosures with the recommendations of the Taskforce on Climate-related Financial Disclosures (TCFD). By 2030, we aim to reduce our GHG emissions by 15% in the Americas (as compared to our 2018 baseline), or 3.1 metric tons of GHG emissions per metric ton of copper cathode produced.\n\nFor more information on our commitments and progress, please see reference documents. We plan to publish an updated climate report later in 2021.","(1) 2020 Annual Report on Sustainability: Climate\n(2) 2019 Climate Report "]
[null,"Air Quality","Air emissions of the following pollutants: \n(1) CO, (2) NOx (excluding N2O), \n(3) SOx, (4) particulate matter (PM10), \n(5) mercury (Hg), (6) lead (Pb), and \n(7) volatile organic compounds  (VOCs)","Quantitative","Metric tons (t)","EM-MM-120a.1","(1) 98.2 thousand metric tons of CO\n(2) 39.9 thousand metric tons of NOx\n(3) 7.3 thousand metric tons of SOx\n(4) 13.1 thousand metric tons of PM10\n(5) Less than one metric ton of Hg\n(6) 20 metric tons of Pb\n(7) 8.3 thousand metric tons of VOCs","(1) ESG Performance Trend Data: Air Emissions"]
[null,"Energy Management","(1) Total energy consumed, (2) percentage grid electricity, (3) percentage renewable","Quantitative","Gigajoules (GJ), Percentage (%)","EM-MM-130a.1","(1) Total energy consumed: 86,219 TJ\n(2) Percentage grid electricity: 38%  \n(3) Percentage renewable: 3.8%*\n\n*These data include renewable energy sources such as wind, solar and geothermal contracts for energy consumption, and a percentage associated with biofuels used onsite. Our Americas operations also receive power from hydro and biomass sources, which are not included in the SASB EM-MM standard definition of renewable energy, but are considered low-emission sources.","(1) ESG Performance Trend Data: Climate"]
[null,"Water Management","(1) Total freshwater withdrawn\n(2) Total freshwater consumed,\n+ percentage of each in regions with High or Extremely High Baseline Water Stress","Quantitative","Thousand cubic meters (m³), Percentage (%)","EM-MM-140a.1","(1) Total freshwater withdrawn: 192,683 thousand cubic meters; 23% with High or Extremely High Baseline Water Stress \n(2) Total freshwater consumed: 100,136 thousand cubic meters; 39% with High or Extremely High Baseline Water Stress\n\nFreshwater totals above are defined by SASB and equivalent to high quality freshwater as defined by ICMM. For more comprehensive information on our water performance and the water stress classifications, please see reference documents.  ","(1) ESG Performance Trend Data: Water"]
[null,null,"Number of incidents of non-compliance associated with water quality permits, standards, and regulations","Quantitative","Number","EM-MM-140a.2","No incidents of non-compliance associated with water quality permits, standards, and regulations occurred in 2020."]
[null,"Waste & Hazardous Materials Management","(1) Total weight of tailings waste \n(2) Percentage recycled","Quantitative","Metric tons (t), Percentage (%)","EM-MM-150a.1","(1) 259 million metric tons\n(2) 0.5% recycled","(1) 2020 Form 10-K, Item 1A: Risk Factors: Operational Risks\n(2) ESG Performance Trend Data: Mining.Mineral Processing Waste"]
[null,null,"(1) Total weight of mineral processing waste\n(2) Percentage recycled","Quantitative","Metric tons (t), Percentage (%)","EM-MM-150a.2","(1) 229 thousand metric tons\n(2) 50% recycled","(1) ESG Performance Trend Data: Mining.Mineral Processing Waste"]
[null,null,"Number of tailings impoundments, broken down by MSHA hazard potential","Quantitative","Number","EM-MM-150a.3","25 Extreme\n20 Very High\n3 High\n15 Significant\n10 Low\n73 Total\n\nFor the purposes of our tailings dam classification disclosures, we use the dam classification system published in Canadian Dam Association (CDA) Dam Safety Guidelines (2013).","(1) Overview of Tailings Management and Stewardship Program\n(2) Tailings Management and Stewardship Summary\n(3) ESG Performance Trend Data: Tailings Impoundments"]
[null,"Biodiversity Impacts","Description of environmental management policies and practices for active sites","Discussion and Analysis","N/A","EM-MM-160a.1","FCX is committed to sound environmental practices at all of our operations. Our Environmental Policy serves as the framework for the protection of natural resources in the regions where we live and work. In addition to maintaining compliance with laws and regulations, we utilize risk management strategies based on valid data and sound science throughout the mining life cycle, and we plan and conduct our operations in a manner that optimizes the economic use of resources while minimizing the adverse environmental effects. All our mining and mineral processing operations and technology centers maintain Environmental Management Systems (EMS) certified to ISO 14001:2015. Our practices and policies apply to all active sites across the portfolio and address critical environmental aspects including biodiversity, water stewardship, waste and hazardous chemicals, air emissions, and natural resource conservation and recycling. The environmental management programs implemented at our sites are based upon corporate policies, regulatory compliance, and voluntary commitments to good international industrial practices and standards, and are verified through independent third-party assurance reviews. These programs are enabled through implementation of our Risk Register and project development sustainability review processes as well as project-specific environmental and social impact assessments (ESIA). ","(1) 2020 Annual Report on Sustainability: Environment\n(2) Sustainability > Environment page on fcx.com"]
[null,null,"Percentage of mine sites where acid rock drainage is: (1) predicted to occur, (2) actively mitigated, and (3) under treatment or remediation","Quantitative","Percentage (%)","EM-MM-160a.2","FCX implements robust programs to identify, mitigate and manage acid rock drainage (ARD) from waste rock and tailings. ARD is a geochemical process that releases sulfate, acid and/or metals into the environment when certain rock materials are exposed to water and oxygen. ARD forms either naturally or following human caused activities when metal sulfide minerals present in host rock are exposed to air and natural precipitation. The resulting acid that forms can dissolve metals from the surrounding rock and be a source of pollution to surface water or groundwater resources if not properly managed. The formation of ARD can be exacerbated by large earth moving activities, like mining or construction, particularly when these activities expose sulfide bearing minerals to additional air and water, which can accelerate the oxidation process.  \n\nHowever, through implementation of targeted management practices, environmental impacts from ARD can be prevented or minimized. Our environmental policy requires that we review and account for environmental effects of each activity, throughout the mine life cycle. Based on material classifications and geochemical characterizations of our ore bodies, ARD is predicted to occur to some degree at nearly all of our operations and is actively mitigated in those locations throughout the mine life cycle utilizing best available control technologies. \n\nWhen potentially acid generating materials are identified in the planning phase, we implement strategies for prevention of ARD formation or management of ARD if it occurs. These strategies include, but are not limited to, designing storage facilities to prevent or minimize ARD formation, blending acid generating materials with materials with sufficient buffering capacity to eliminate the net acid generating potential during operations, installing engineering controls to manage stormwater that infiltrates or runs-off from these facilities, and monitoring controls systems over the mine life cycle including the closure and post-closure phases. Additionally, we consider site specific factors such as rock type, climate, and other geographic considerations in order to minimize operations risk and reduce post mining closure and reclamation liability.   \n\nFinally, if the formation of ARD cannot be eliminated, FCX implements mitigation measures such as water management, water treatment, reclamation and, at our PT-FI operations, studies that include risk assessments to determine additional monitoring and mitigation efforts that may be effective. The objective of these controls is to limit or eliminate the exposure of sulfide minerals to the atmosphere, minimize the amount of water contacting mine materials, including waste rock or tailings, and ensure effective monitoring and maintenance systems are in place to minimize the potential ARD generation. Mitigation strategies at our mining operations are also subject to regulatory review, approval and oversight to ensure the effectiveness of the selected control measures."]
[null,null,"Percentage of (1) proved and (2) probable reserves in or near sites with protected conservation status or endangered species habitat","Quantitative","Percentage (%)","EM-MM-160a.3","Protected Areas\n0% of total 2P reserves are in protected areas \n9.9% of total 2P reserves are near (within 5 kilometers of) protected areas (100% PT-FI and 100% Henderson)\n\nFCX's proven and probable (2P) reserves near protected areas are associated with our Henderson mine in Colorado and PT-FI operations in Indonesia. Both are underground operations and therefore have reduced potential to affect the protected areas. ","(1) 2020 Form 10-K, Items 1 and 2. Business and Properties: MINERAL RESERVES\n(2) 2020 Annual Report on Sustainability: Biodiversity\n(3) Sustainability > Environment page on fcx.com"]
[null,null,null,null,null,null,"Endangered Species Habitat\n0.3% of total 2P reserves are in endangered species habitat (1% Sierrita; <1% Cerro Verde)\n70.8% of total 2P reserves are near (within 5 kilometers of) endangered species habitat (100% of PT-FI, Cerro Verde, Climax and Sierrita; 82% Morenci; 20% Chino)\n\nFCX's proven and probable (2P) reserves that are located near endangered species habitats do not affect those habitats. The endangered species habitats near Morenci, Chino, and Climax reserves are located on federal lands managed by the U.S. Forest Service; we do not conduct activities within the habitat. Cerro Verde’s reserves qualify due to an endangered bat species that is known to occur and forage in the general region of the operations and we actively seek to protect the species. PT-FI’s reserves qualify due to the district’s proximity to Lorentz National Park, however, we have not and will not conduct any mining or exploration activities in Lorentz National Park, which is a UNESCO World Heritage Site. As part of our ICMM commitment, we will not explore nor mine at any UNESCO World Heritage Sites. Furthermore, PT-FI mining operations have fully transitioned underground.\n\nPercentages reported above are based on ore tonnages. Refer to page 33 of FCX's 2020 10-K for average ore grades."]
[null,"Security, Human Rights & Rights of Indigenous Peoples","Percentage of (1) proved and (2) probable reserves in or near areas of conflict","Quantitative","Percentage (%)","EM-MM-210a.1","At the time of this report publication, FCX did not have operations located in \"active areas of conflict\" as defined by the latest available data from the 2019 Uppsala Conflict Data Program.\n\nAt our PT-FI operations in Papua, Indonesia, there have been attacks on civilians by separatists and highly publicized conflicts between separatists and the Indonesia military and police, some of which have occurred in or near our project area. FCX is a founding member, guided by, and implements The Voluntary Principles on Security and Human Rights for our security and human rights programs, including interactions with host government police, military personnel and private security contractors. \n\nFor more information on our approach to human rights and security, please see the relevant sections of our 2020 Annual Report on Sustainability and the human rights section of our website.","(1) Voluntary Principles on Security and Human Rights, Annual Reports to the Plenary\n(2) 2020 Annual Report on Sustainability: Communities\n(3) 2020 Annual Report on Sustainability: Indigenous Peoples \n(4) 2020 Annual Report on Sustainability: Responsible Value Chains \n(5) 2020 Form 10-K, Items 1 and 2. Business and Properties: MINERAL RESERVES"]
[null,null,"Percentage of (1) proved and (2) probable reserves in or near indigenous land","Quantitative","Percentage(%)","EM-MM-210a.2","9.6% of total proven and probable (2P) reserves are in or near (within 5 kilometers of) indigenous lands, representing PT-FI in Indonesia, which is located where Indigenous Peoples of Papua hold customary land rights.  \n\nIndigenous lands for purposes of this calculation are defined by Article 33 of the United Nations Declaration on the Rights of Indigenous Peoples and the International Labor Organization Convention No. 169. While they do not meet the SASB threshold for inclusion, Indigenous Peoples in Chile and Native Americans in the United States either currently or have historically occupied lands in proximity to our operations, or have ancestral connections to these lands. We are committed to constructively engaging with all Indigenous Peoples to support shared value for all stakeholders.\n\nPercentages reported above are based on ore tonnages. Refer to page 33 of FCX's 2020 10-K for average ore grades.","(1) 2020 Form 10-K, Items 1 and 2. Business and Properties: MINERAL RESERVES\n(2) 2020 Annual Report on Sustainability: Indigenous Peoples \n(3) Sustainability > People > Indigenous Peoples > Land Use & Customary Rights page on fcx.com\n(4) Sustainability > People > Indigenous Peoples page on fcx.com"]
[null,null,"Discussion of engagement processes and due diligence practices with respect to human rights, indigenous rights, and operation in areas of conflict","Discussion and Analysis","N/A","EM-MM-210a.3","For information on our engagement processes and due diligence practices with respect to human rights and indigenous rights, please refer to the Communities, Indigenous Peoples, Land Use & Customary Rights and Human Rights sections of our 2020 Annual Report on Sustainability and materials on fcx.com. \n\nPT-FI has engaged with Papua’s indigenous populations – the Amungme and Kamoro, as well as the five neighboring ethnic groups – Dani, Damal, Nduga, Mee and Moni (collectively known as the “seven suku”) – for decades through multiple formal agreements that promote capacity building through workforce skills training as well as health, education, economic development, public infrastructure development, and participatory monitoring and evaluation of PT-FI funded projects. In addition, we are continuously investing in our local communities in Papua by implementing programs to support capacity building through the development of their skills and employability. \n\nFor information on the above-mentioned engagement processes and how PT-FI operates in this context, please see reference documents. ","(1) Voluntary Principles on Security and Human Rights, Annual Reports to the Plenary \n(2) 2020 Annual Report on Sustainability section People: Communities\n(3) 2020 Annual Report on Sustainability: Indigenous Peoples \n(4) 2020 Annual Report on Sustainability: Responsible Value Chains \n(5) 2019 OECD Step 5 Due Diligence Report"]
[null,"Community Relations","Discussion of process to manage risks and opportunities associated with community rights and interests","Discussion and Analysis","N/A","EM-MM-210b.1","FCX is committed to responsibly manage our relationships with host communities and indigenous neighbors. Constructive dialogue is at the foundation of our relationships with host communities and stakeholders. Our engagements help to inform understanding of our actual, potential and perceived impacts. It also helps us build a localized understanding of what contributes to community welfare and long-term sustainability, and mutually identify relevant social investment and development priorities to support any gaps. Engagements also enable us to share information about our own operational activities, facilitate dialogue and ultimately build trust. \n\nWhile our community programs are tailored to the site-specific dynamics of the operation and host community, our overarching objectives in partnership with our local stakeholders are to: (1) build enduring trust, (2) minimize or mitigate any negative impacts from our operations, (3) maximize the positive benefits, (4) support our communities in building resiliency and well-being over the life of the mine, and (5) develop the skills and capacity to thrive beyond the mine.\n\nFor more information on our approach to management of risks and opportunities associated with community rights and interests, please see reference documents. ","(1) 2020 Annual Report on Sustainability: Communities > Our Approach \n(2) Sustainability > People > Communities > Assessing & Managing Impacts page on fcx.com\n(3) Sustainability > People > Communities > Land Use and Customary Rights page on fcx.com\n(4) Sustainability > People > Communities > Public Health page on fcx.com"]
[null,null,"Number and duration of non-technical delays","Quantitative","Number, Days","EM-MM-210b.2","In mid-March 2020, the Peru government issued a Supreme Decree and declaration of a National Emergency in its efforts to contain the outbreak of COVID-19. To comply with government requirements, we temporarily transitioned our Cerro Verde mine to care and maintenance status and adjusted operations to prioritize critical activities. A plan for Cerro Verde to restore operations was approved by the Peru government in second-quarter 2020, and strict health protocols have been implemented. This plan has allowed Cerro Verde to run both concentrators at their aggregate average design capacity of 360,000 metric ton-per-day in the second half of 2020. \n\nIn third-quarter 2020, we experienced a five-day labor-related work stoppage related to COVID-19 travel restrictions when a group of workers at PT-FI staged protests and a blockade restricting access to the main road to the mining operations area. We reached an amicable resolution with the group of workers while upholding our COVID-19 safety protocols.  ","(1) 2020 Form 10-K, Items 1 and 2. Business and Properties: GENERAL: Mining Operations\n(2) 2020 Form 10-K, Items 1 and 2. Business and Properties: Human Capital: Workforce"]
[null,"Labor Relations","Percentage of active workforce covered under collective bargaining agreements, broken down by U.S. and foreign employees","Quantitative","Percentage (%)","EM-MM-310a.1","Approximately 38% of our global full-time employees were covered by collective labor agreements at December 31, 2020, broken down as follows: \n0% North America\n73% Indonesia\n66% South America\n67% Europe/Other\n\nWhile our North American workforce is not represented by unions, our hourly employees elect to work directly with company management rather than through union representation using our Guiding Principles agreement, which outlines how we work together within the values of the company to achieve our collective goals. \n\nPlease see references for more information on our approach to labor relations.","(1) 2020 Form 10-K, Items 1 and 2. Business and Properties: Human Capital: Workforce\n(2) 2020 Form 10-K, Note 16: Business Segment Information: Labor Matters\n(3) ESG Performance Trend Data: Workforce\n(4) 2020 Annual Report on Sustainability: Workforce"]
[null,null,"Number and duration of strikes and lockouts","Quantitative","Number, Days","EM-MM-310a.2","There were no strikes or lockouts at any of our operations in 2020. ","(1) 2020 Form 10-K, Items 1 and 2. Business and Properties: Human Capital: Workforce\n(2) 2020 Annual Report on Sustainability: Workforce"]
[null,"Workforce Health & Safety","(1) MSHA all-incidence rate, (2) fatality rate, (3) near miss frequency rate (NMFR) and (4) average hours of health, safety, and emergency response training for (a) full-time employees and (b) contract employees","Quantitative","Rate","EM-MM-320a.1","For full year 2020: \n(1)(a) MSHA all-incidence rate for full-time employees: 0.80\n(1)(b) MSHA all-incidence rate contract employees: 0.50\n(2)(a) fatality rate for full-time employees: 0.005\n(2)(b) fatality rate for contract employees: 0.014\n(3)(a) near miss frequency rate (NMFR) for full-time employees:  1.96\n(3)(b) near miss frequency rate (NMFR) for contract employees: 0.99\n(4) We do not currently disclose this information.","(1) 2020 Form 10-K, Item 4: Mine Safety Disclosures\n(2) ESG Performance Trend Data: Health & Safety"]
[null,"Business Ethics & Transparency","Description of the management system for prevention of corruption and bribery throughout the value chain","Discussion and Analysis","N/A","EM-MM-510a.1","FCX uses a combination of tools to help gather critical data on suppliers with regard to compliance, ESG and other related risks. In recognition of the potential legal and reputational liability that could result from actions of our business partners and contractors under the Foreign Corrupt Practices Act (FCPA) and other laws, the company implemented an online due diligence platform, the Freeport Compliance eXchange (FCeX). This survey-based software platform is designed to assess risk in areas of anti-corruption, international trade and human rights. FCeX has enhanced our ability to identify, assess and mitigate compliance risks. In 2020, we added a Responsible Sourcing section to the survey to gather information from each supplier on their ESG programs, including sustainability-related management systems and certifications, human rights, health and safety, and environmental commitments, among others.  \n\nIn 2020, we also initiated implementing a software system, called Ariba Supplier Risk Management, that will be integrated into our central purchasing system. The new software enhances our supplier risk assessment using data from external sources – including operations, regulatory (anti-corruption and human rights), environmental and financial – and will provide more in-depth risk-based assessments through targeted questionnaires and audits. We will track these assessments and resulting actions, engagement and approvals for ongoing supplier life cycle management. \n\nAnnually, we perform company-wide program and risk assessments with assistance from our internal audit firm, Deloitte, to assess risk and plan for the following year’s audit strategy. Business controls resulting from periodic fraud risk assessments are tested and reviewed annually at our corporate offices as well as at PT-FI, Cerro Verde, El Abra and Atlantic Copper.","(1) 2020 Annual Report on Sustainability: Responsible Value Chains"]
[null,null,"Production in countries that have the 20 lowest rankings in Transparency International’s Corruption Perception Index","Quantitative","Metric tons (t) saleable","EM-MM-510a.2","FCX has no production in the countries that have the 20 lowest rankings in Transparency International's Corruption Perception Index.","(1) 2020 Form 10-K, Items 1 and 2. Business and Properties: GENERAL"]
[null,"Activity Metric","Production of (1) metal ores and (2) finished metal products","Quantitative","Metric tons (t) saleable","EM-MM-000.A","(1) Full year 2020 consolidated production from our mines:\n3,206 million recoverable pounds or 1,454,217 metric tons of copper;\n857 thousand recoverable ounces or 24 metric tons of gold; and\n76 million recoverable pounds or 34,473 metric tons of molybdenum","(1) 2020 Form 10-K, Items 1 and 2. Business and Properties: MINING PRODUCTION AND SALES DATA"]
[null,null,"Total number of employees, percentage contractors","Quantitative","Number, Percentage (%)","EM-MM-000.B","Total workforce (employees and contractors) at year-end 2020 approximated 58,300, 58% of whom were contractors. ","(1) 2020 Form 10-K, Items 1 and 2. Business and Properties: HUMAN CAPITAL: Workforce"]

{"sheet":"GRI Index; SDGs","index":23,"n_rows":209,"n_cols":7,"rows_kept":209,"cut":false,"hidden":false,"merged":[[0,1,0,6],[208,1,208,6],[2,1,2,6]]}
[null,"GRI CONTENT INDEX"]
[]
[null,"Freeport-McMoRan maintains a sustainability reporting prioritization assessment process to define topics and their level of priority to the company and its stakeholders for inclusion in its sustainability reporting. The process allows for:\n• A structured and objective approach for decision-making and planning around sustainability reporting\n• Selecting topics to include in annual sustainability reporting based on a documented measurement approach and evaluation of sustainability topics of importance to internal and external stakeholders\n• Monitoring trends in sustainability topics of importance to stakeholders over time\n• Adherence to the GRI Standards framework\n\nThe prioritization process requires a cross-review of documents and systems that summarize stakeholder engagements, such as queries received from value chain members, as well as community and employee grievance reports, community engagement processes and reports, environmental and social impact assessment reports, employee surveys, and meetings with financial stakeholders, NGOs and industry groups. These reviews are used to prioritize the level of importance of reporting topics to key groups with whom we regularly engage as part of our business at the corporate and operational levels.\n\nTo align prioritization of reporting topics from the perspective of importance to our business, we review the outputs of our operations’ Sustainable Development Risk Register process and consider the topics addressed in our corporate public reporting, including our filings with the U.S. Securities and Exchange Commission. In most instances, key sustainability topics prioritized by our business are also of high importance to stakeholders. On occasion, we have chosen to report on GRI Standards indicators that may not be of high importance to internal or external stakeholders because our reporting systems historically have captured the information, which is used by certain groups, such as sustainability analysts.\n\nWe are reporting in accordance with the GRI Standards core option and the G4 Mining and Metals Sector Supplement. We have reported under GRI guidelines annually since 2005. A Sustainability Reporting Prioritization Assessment process that focuses on risks and opportunities, both to the business and to stakeholders, is used to delineate the reported topics and disclosures.\n\nData presented in this section include the primary operations of Freeport-McMoRan’s mining subsidiaries: Freeport Minerals Company (FMC) and PT Freeport Indonesia (PTFI) for the period January 1, 2020 to December 31, 2020, unless otherwise stated. The table below provides an overview of the relevant GRI Standards for our most material topics and where to find information in our Annual Report on Sustainability, website or from other sources through our most material topics.  \n\nThis index also highlights alignment to the UN Sustainable Development Goals.  "]
[]
[null,"SERIES","MATERIAL TOPIC","DISCLOSURE","DISCLOSURE DESCRIPTION","FCX RESPONSE","\nUN SDGs"]
[null,"GRI 102 GENERAL DISCLOSURES","Universal: Organizational Profile","102-1","Name of the organization","Freeport-McMoRan Inc."]
[null,"GRI 102 GENERAL DISCLOSURES","Universal: Organizational Profile","102-2","Activities, brands, products, and services ","Freeport-McMoRan (FCX) is a leading international mining company with headquarters in Phoenix, Arizona. Our company was incorporated under the laws of the state of Delaware on November 10, 1987. We operate large, long-lived geographically diverse assets with significant proven and probable reserves of copper, gold and molybdenum. Our portfolio of assets includes the Grasberg minerals district in Indonesia, one of the world’s largest copper and gold deposits; and significant mining operations in the Americas, including the large-scale Morenci minerals district in North America and the Cerro Verde operation in South America.\n\nAbout Us on fcx.com\n\nForm 10-K: Part I General"]
[null,"GRI 102 GENERAL DISCLOSURES","Universal: Organizational Profile","102-3","Location of headquarters","Phoenix, Arizona, USA\n\nAbout Us on fcx.com"]
[null,"GRI 102 GENERAL DISCLOSURES","Universal: Organizational Profile","102-4","Location of operations.\nNumber of countries where the organization operates, and names of countries where either the organization has significant operations or that are specifically relevant to the sustainability topics covered in the report","Our operating mines are located in Chile, Indonesia, Peru and the United States. For further information on our operations, please see:\n\nAbout Us on fcx.com\n\nForm 10-K: Part I, General\n\nForm 10-K: Part I, Mining Operations"]
[null,"GRI 102 GENERAL DISCLOSURES","Universal: Organizational Profile","102-5","Ownership and legal form","Form 10-K: Part I, General"]
[null,"GRI 102 GENERAL DISCLOSURES","Universal: Organizational Profile","102-6","Markets served","Form 10-K: Part I, Products and Sales","SDG 8: Decent Work and Economic Growth"]
[null,"GRI 102 GENERAL DISCLOSURES","Universal: Organizational Profile","102-7","Scale of the organization","Annual Report on Sustainability: People - Workforce\n\nForm 10-K: Part I, Mining Production and Sales Data\n\nForm 10-K: Part II, Revenues"]
[null,"GRI 102 GENERAL DISCLOSURES","Universal: Organizational Profile","102-8","Information on employees and other workers\n\na. Total number of employees by employment contract, by gender\nb. Total number of employees by employment contract, by region\nc. Total number of employees by employment type, by gender\nd. Whether a significant portion of the organization's activities are performed by workers who are not employees. If applicable, a description of the nature and scale of work performed by workers who are not employees.\ne. Any significant variations in the numbers reported in Disclosures 102-8-a, 102-8-b, and 102-8-c.\nf. An explanation of how the data have been compiled, including any assumptions made","Form 10-K: Items 1 and 2. Business and Properties: Human Capital: Workforce\n\nAnnual Report on Sustainability: People - Workforce","SDG 8: Decent Work and Economic Growth\nSDG 10: Reduced Inequalities"]
[null,"GRI 102 GENERAL DISCLOSURES","Universal: Organizational Profile","102-9","Supply chain","Form 10-K: Part I, Sources and Availability of Energy, Natural Resources and Raw Materials\n\nAnnual Report on Sustainability: Responsible Value Chains\n\nGlobal Supply Chain webpage on fcx.com\n\nCommodity Management webpage on fcx.com\n\nEconomic Value Contributed > Local Suppliers webpage on fcx.com\n\nESG Performance data"]
[null,"GRI 102 GENERAL DISCLOSURES","Universal: Organizational Profile","102-10","Significant changes to the organization and its supply chain","Form 10-K: Part II, Management's Discussion and Analysis of Financial Condition and Results of Operations and Quantitative and Qualitative Disclosures About Market Risk\n\nAnnual Report on Sustainability: Responsible Value Chains"]
[null,"GRI 102 GENERAL DISCLOSURES","Universal: Organizational Profile","102-11","Precautionary Principle or approach","Freeport-McMoRan is a leading responsible copper producer. Our commitment to responsible copper production is visible in everything we do, driven by our core values of Safety, Respect, Integrity, Excellence and Commitment. Our values direct the decisions we make as a company and as individual employees. These values represent who we are and how we work – everyone, everywhere, every day. Our focus on responsible production is critical to establish and maintain acceptance from our local stakeholders through shared value creation and to meet society's responsible sourcing objectives necessary to supply the world with copper.\n\nAnnual Report on Sustainability: Our Approach; The Risk Register; People; Environment"]
[null,"GRI 102 GENERAL DISCLOSURES","Universal: Organizational Profile","102-12","External initiatives","Annual Report on Sustainability: Voluntary Memberships & Commitments; Performance Targets; Environment\n\nVoluntary Memberships & Commitments on fcx.com\n\nESG Performance Data","SDG 17: Partnerships for the Goals"]
[null,"GRI 102 GENERAL DISCLOSURES","Universal: Organizational Profile","102-13","Membership of associations","Annual Report on Sustainability: Voluntary Memberships & Commitments\n\nVoluntary Memberships & Commitments on fcx.com","SDG 17: Partnerships for the Goals"]
[null,"GRI 102 GENERAL DISCLOSURES","Universal: Strategy","102-14","Statement from the most senior decision-maker of the organization","Annual Report on Sustainability: Letter to Stakeholders; Message from our Corporate Responsibility Committee Chair"]
[null,"GRI 102 GENERAL DISCLOSURES","Universal: Strategy","102-15","Key impacts, risks, and opportunities","Annual Report on Sustainability: Our Approach; Focus Areas; Materiality\n\nForm 10-K: Part I, Risk Factors\n\nClimate Report\n\nWater Report"]
[null,"GRI 102 GENERAL DISCLOSURES","Universal: Ethics and Integrity","102-16","Values, principles, standards, and norms of behavior","Annual Report on Sustainability: Our Approach; Business Integrity; Values, Policies & Practices; Voluntary \n\nMemberships & Commitments\n\nVoluntary Memberships & Commitments on fcx.com\n","SDG 16: Peace, Justice and Strong Institutions"]
[null,"GRI 102 GENERAL DISCLOSURES","Universal: Ethics and Integrity","102-17","Mechanisms for advice and concerns about ethics","Annual Report on Sustainability: Values, Policies & Practices; Business Integrity; Grievance Mechanisms and Remedy; Community Grievance Mechanisms","SDG 16: Peace, Justice and Strong Institutions"]
[null,"GRI 102 GENERAL DISCLOSURES","Universal: Governance","102-18","Governance structure","Annual Report on Sustainability: Governance\n\nCorporate Governance Guidelines\n\nProxy Statement: Corporate Governance"]
[null,"GRI 102 GENERAL DISCLOSURES","Universal: Governance","102-19","Delegating authority","Annual Report on Sustainability: Our Approach\n\nProxy Statement: Sustainability"]
[null,"GRI 102 GENERAL DISCLOSURES","Universal: Governance","102-20","Executive-level responsibility for economic, environmental, and social topics","Annual Report on Sustainability: Our Approach\n\nProxy Statement: Sustainability"]
[null,"GRI 102 GENERAL DISCLOSURES","Universal: Governance","102-21","Consulting stakeholders on economic, environmental, and social topics","Annual Report on Sustainability: Our Approach\n\nProxy Statement: Stakeholder Engagement","SDG 16: Peace, Justice and Strong Institutions\nSDG 17: Partnerships for the Goals"]
[null,"GRI 102 GENERAL DISCLOSURES","Universal: Governance","102-22","Composition of the highest governance body and its committees","Annual Report on Sustainability: Governance\n\nProxy Statement: Board Composition Overview","SDG 5: Gender Equality\nSDG 16: Peace, Justice and Strong Institutions"]
[null,"GRI 102 GENERAL DISCLOSURES","Universal: Governance","102-23","Chair of the highest governance body","Mr. Gerald J. Ford was the Non-Executive Chairman of the Board of Freeport-McMoRan Inc.through 2020. Richard C. Adkerson was appointed as Chairman of the Board in 2021.\n\nProxy Statement: Information About Director Nominees","SDG 16: Peace, Justice and Strong Institutions"]
[null,"GRI 102 GENERAL DISCLOSURES","Universal: Governance","102-24","Nominating and selecting the highest governance body","Proxy Statement: Corporate Governance\n\nCorporate Governance Guidelines","SDG 5: Gender Equality\nSDG 16: Peace, Justice and Strong Institutions"]
[null,"GRI 102 GENERAL DISCLOSURES","Universal: Governance","102-25","Conflicts of interest","Freeport-McMoRan maintains Conflicts of Interest Guidelines that are designed to provide guidance to directors, officers and employees so that conflicts of interest may be avoided. The guidelines establish procedures for disclosure of actual or potential conflicts of interest so that concerns may be addressed and any necessary corrective action may be taken.\n\nCorporate Governance Guidelines\n\nPrinciples of Business Conduct on fcx.com\n\nProxy Statement: Certain Transactions","SDG 16: Peace, Justice and Strong Institutions"]
[null,"GRI 102 GENERAL DISCLOSURES","Universal: Governance","102-26","Role of highest governance body in setting purpose, values, and strategy","Annual Report on Sustainability: Our Approach\n\nAnnual Report on Sustainability: Business Integrity\n\nProxy Statement: Corporate Governance"]
[null,"GRI 102 GENERAL DISCLOSURES","Universal: Governance","102-27","Collective knowledge of highest governance body","Annual Report on Sustainability: Our Approach\n\nProxy Statement: Information About Director Nominees","SDG 4: Quality Education"]
[null,"GRI 102 GENERAL DISCLOSURES","Universal: Governance","102-28","Evaluating the highest governance body’s performance","Corporate Governance Guidelines\n\nProxy Statement: Board and Committee Evaluation Proces\n\nProxy Statement: Executive Compensation Philosophy"]
[null,"GRI 102 GENERAL DISCLOSURES","Universal: Governance","102-29","Identifying and managing economic, environmental, and social impacts","Annual Report on Sustainability: Our Approach\n\nProxy Statement: Board’s Role in Oversight of Strategy and Risk Management\n\nCorporate Governance Guidelines\n\nCorporate Responsibility Committee Charter ","SDG 16: Peace, Justice and Strong Institutions\n"]
[null,"GRI 102 GENERAL DISCLOSURES","Universal: Governance","102-30","Effectiveness of risk management processes","Annual Report on Sustainability: Our Approach\n\nProxy Statement: Board’s Role in Oversight of Strategy and \nRisk Management"]
[null,"GRI 102 GENERAL DISCLOSURES","Universal: Governance","102-31","Review of economic, environmental, and social topics","Annual Report on Sustainability: Our Approach\n\nProxy Statement: Sustainability\n\nCorporate Governance Guidelines\n\nCorporate Responsibility Committee Charter "]
[null,"GRI 102 GENERAL DISCLOSURES","Universal: Governance","102-32","Highest governance body’s role in sustainability reporting","Our Chairman and CEO has ultimate responsibility for the company’s sustainability performance. The company’s cross-functional Sustainability Leadership Team (SLT) includes members of the management team tasked with defining the sustainability strategy and implementing our sustainability policies, systems and programs across the organization. The SLT is sponsored by our Senior Vice President and Chief Administrative Officer and is led by our Vice President and Chief Sustainability Officer, with active participation from other members of the SLT, including our four operational business unit Presidents. SLT membership also includes Vice Presidents or senior representatives from functional groups, including health and safety, security, supply chain, human resources, sales, legal, compliance, sustainability and finance. Executive officers are held accountable for the company’s sustainability performance through the company’s performance-based annual incentive program (AIP). In 2020, ESG metrics collectively accounted for 25% of the AIP (15% safety and 10% sustainability).\n\nAnnual Report on Sustainability: Our Approach; Letter to Stakeholders; Message from our Corporate Responsibility Committee Chair\n\nGRI Content Index (this index)"]
[null,"GRI 102 GENERAL DISCLOSURES","Universal: Governance","102-33","Communicating critical concerns","Annual Report on Sustainability: Our Approach; Compliance Line\n\nProxy Statement: Stockholder and Stakeholder Engagement\n\nProxy Statement: Communications with the Board\n"]
[null,"GRI 102 GENERAL DISCLOSURES","Universal: Governance","102-34","Nature and total number of critical concerns","Proxy Statement: Key Topics Discussed in 2020\nCompany strategy and capital structure\n• COVID-19 response and management\n• Climate strategy (including greenhouse gas (GHG) emissions reduction target for the Americas and inaugural climate report)\n• ESG initiatives, including enhanced disclosures and commitment to align with Sustainable Accounting Standards Board (SASB) and Task Force on Climate related Disclosures (TCFD) reporting frameworks\n• Inclusion and diversity efforts\n• Board composition and ongoing recruitment efforts\n• Executive compensation practices\n• Water report\n• Human capital management, including safety and health and employee engagement and development\n• Succession planning\n\nAnnual Report on Sustainability: Human Rights; Communities; Compliance Line\n\nFCX.com: Human Rights; Communities"]
[null,"GRI 102 GENERAL DISCLOSURES","Universal: Governance","102-35","Remuneration policies","Proxy Statement: Process of Setting Director Compensation\n\nAnnual Report on Sustainability: Workforce - Fair & Equitable Remuneration; Diversity & Inclusion","SDG 8: Decent Work and Economic Growth"]
[null,"GRI 102 GENERAL DISCLOSURES","Universal: Governance","102-36","Process for determining remuneration","We focus on attracting and retaining talented people by offering quality employment with competitive compensation and opportunities for professional development. Our approach to compensation and benefits is market-based and competitive and informed by annual benchmarking and analysis. We are committed to respecting the rights of our workforce, including paying fair wages. This includes equal pay for equal work, and compensation levels that support the acquisition of the goods and services necessary for an average size family to meet their basic needs in the geographic locations where we operate.\n\nProxy Statement: Process of Setting Director Compensation\n\nAnnual Report on Sustainability: Workforce - Fair & Equitable Remuneration; Diversity & Inclusion","SDG 8: Decent Work and Economic Growth"]
[null,"GRI 102 GENERAL DISCLOSURES","Universal: Governance","102-37","Stakeholders’ involvement in remuneration","Proxy Statement: Stockholder and Stakeholder Engagement","SDG 8: Decent Work and Economic Growth\nSDG 16: Peace, Justice and Strong Institutions"]
[null,"GRI 102 GENERAL DISCLOSURES","Universal: Governance","102-40","List of stakeholder groups","Annual Report on Sustainability: Our Approach; Voluntary Memberships & Commitments\n\nVoluntary Memberships & Commitments, Communities, Stakeholder Engagement and Human Rights on fcx.com","SDG 17: Partnerships for the Goals"]
[null,"GRI 102 GENERAL DISCLOSURES","Universal: Governance","102-41","Collective bargaining agreements","Workforce > Labor Relations on fcx.com\nForm 10-K: Part I, Labor Matters\n","SDG 8: Decent Work and Economic Growth"]
[null,"GRI 102 GENERAL DISCLOSURES","Universal: Governance","102-42","Identifying and selecting stakeholders","We believe effective stakeholder engagement is founded on transparency and meaningful dialogue. Our goal is to foster mutual understanding, trust and cooperation with our broad range of stakeholders including our stockholders, employees, communities, customers and suppliers, regulators and policymakers, host governments and nongovernmental organizations.\n\nProxy Statement: Stockholder and Stakeholder Engagement\n\nAnnual Report on Sustainability: Our Approach; Communities; Stakeholder Engagement; Human Rights"]
[null,"GRI 102 GENERAL DISCLOSURES","Universal: Governance","102-43","Approach to stakeholder engagement","We believe effective stakeholder engagement is founded on transparency and meaningful dialogue. Our goal is to foster mutual understanding, trust and cooperation with our broad range of stakeholders including our stockholders, employees, communities, customers and suppliers, regulators and policymakers, host governments and nongovernmental organizations.\n\nProxy Statement: Stockholder and Stakeholder Engagement\n\nAnnual Report on Sustainability: Letter to Stakeholders; Message from our Corporate Responsibility Committee Chair; Our Approach; Communities; Stakeholder Engagement; Human Rights","SDG 11: Sustainable Cities and Communities"]
[null,"GRI 102 GENERAL DISCLOSURES","Universal: Governance","102-44","Key topics and concerns raised","Annual Report on Sustainability: Letter to Stakeholders; Message from our Corporate Responsibility Committee Chair; Our Approach\n\nCommunities; Stakeholder Engagement\n\nHuman Rights on fcx.com","SDG 11: Sustainable Cities and Communities"]
[null,"GRI 102 GENERAL DISCLOSURES","Universal: Reporting Practice","102-45","Entities included in the consolidated financial statements","Form 10-K: Part I, General"]
[null,"GRI 102 GENERAL DISCLOSURES","Universal: Reporting Practice","102-46","Defining report content and topic Boundaries","Freeport-McMoRan is committed to communicating regularly and transparently with our stakeholders about how we do business. Annually, we publish a report on sustainability. Our sustainability report provides information on how we address the environmental, social and governance matters we and our stakeholders view as most important to our business. This report is intended to be a companion to our 2020 Annual Report and 2021 Proxy Statement as well as the Sustainability section of our website.\n\nThe 2020 report focuses primarily on the operations of Freeport-McMoRan’s subsidiaries: Freeport Minerals Corporation (FMC) in the Americas and PT Freeport Indonesia (PT-FI) in Indonesia for the period January 1, 2020, to December 31, 2020, unless otherwise indicated. All data is effective as of December 31, 2020, unless otherwise noted. For additional information on all topics that are important to Freeport-McMoRan, please visit our website.\n\nAnnual Report on Sustainability: About this Report; Our Approach \n\nGRI Content Index (this index)"]
[null,"GRI 102 GENERAL DISCLOSURES","Universal: Reporting Practice","102-47","List of material topics","ENVIRONMENTAL\nEnvironmental Management\nClimate\nWater Stewardship\nTailings Management & Stewardship\nBiodiversity\nWaste Management & Reclamation\nSOCIAL\nHealth & Safety\nHuman Rights\nWorkforce\nCommunity Engagement & Development\nEngaging with Indigenous Peoples\nGOVERNANCE\nAnti-Corruption\nEthics & Integrity\nBoard & CRC Leadership\nResponsible Value Chains\nProduct Stewardship\nPolitical Spending\n\nAnnual Report on Sustainability: Focus Areas; The Risk Register; Materiality\n\nGRI Content Index (this index)"]
[null,"GRI 102 GENERAL DISCLOSURES","Universal: Reporting Practice","102-48","Restatements of information","As a result of methodology changes or corrections, prior year data may be updated. Data presentation and comparisons may not meet the direct needs of all stakeholders, and we encourage users of this information to contact our Sustainability Department with inquiries, sustainability@fmi.com."]
[null,"GRI 102 GENERAL DISCLOSURES","Universal: Reporting Practice","102-49","Changes in reporting","Annual Report on Sustainability: About this Report"]
[null,"GRI 102 GENERAL DISCLOSURES","Universal: Reporting Practice","102-50","Reporting period","Fiscal year ended December 31, 2020"]
[null,"GRI 102 GENERAL DISCLOSURES","Universal: Reporting Practice","102-51","Date of most recent report","2020 Annual Report on Sustainability"]
[null,"GRI 102 GENERAL DISCLOSURES","Universal: Reporting Practice","102-52","Reporting cycle","Annual"]
[null,"GRI 102 GENERAL DISCLOSURES","Universal: Reporting Practice","102-53","Contact point for questions regarding the report","sustainability@fmi.com "]
[null,"GRI 102 GENERAL DISCLOSURES","Universal: Reporting Practice","102-54","Claims of reporting in accordance with the GRI Standards","GRI Content Index (this index)\n\nExternal Assurance\n\nAnnual Report on Sustainability: About this Report"]
[null,"GRI 102 GENERAL DISCLOSURES","Universal: Reporting Practice","102-55","GRI content index","GRI Content Index (this index)"]
[null,"GRI 102 GENERAL DISCLOSURES","Universal: Reporting Practice","102-56","External assurance","Our Annual Reports on Sustainability have been independently verified since 2005. External assurance of our 2020 reporting was conducted by Corporate Integrity Ltd. in accordance with the ICMM Mining Principles Assurance and Validation Procedure and the Copper Mark Assurance Process. Since 2009, site-level external assurance has been completed multiple times at all active mining and metals processing operations. We conduct site-level external assurance at each of our operations at least once every three years and annually at PT-FI and Cerro Verde\n\nAnnual Report on Sustainability: External Assurance; Our Approach\n\nExternal Assurance on fcx.com"]
[null,"GRI 103 MANAGEMENT APPROACH","Universal: Management Approach","103-1","Explanation of the material topic and its Boundary","Our management approach is described in each relevant section.\n\nAnnual Report on Sustainability: About this Report; Our Approach\n\nForm 10-K: Part I, General\n\nGRI Content Index (this index)"]
[null,"GRI 103 MANAGEMENT APPROACH","Universal: Management Approach","103-2","The management approach and its components","Our management approach is described in each relevant section and focus area.\n\nAnnual Report on Sustainability: About this Report; Our Approach; Business Integrity; Letter to Stakeholders; Message from our Corporate Responsibility Committee Chair\n\nForm 10-K: Part I, General\n\nGRI Content Index (this index)","SDG 1: No Poverty\nSDG 5: Gender Equality\nSDG 8: Decent Work and Economic Growth\nSDG 12: Responsible Consumption and Production\nSDG 13: Climate Action\nSDG 15: Life on Land\nSDG 16: Peace, Justice and Strong Institutions"]
[null,"GRI 103 MANAGEMENT APPROACH","Universal: Management Approach","103-3","Evaluation of the management approach","Our management approach is described in each relevant section.\n\nAnnual Report on Sustainability: About this Report; Our Approach\n\nGRI Content Index (this index)"]
[null,"GRI 200 ECONOMIC","201 Economic Performance","103-1","Explanation of the material topic and its Boundary","Form 10-K: Part II, Consolidated Results\n\nAnnual Report on Sustainability: Our Approach\n\nEconomic Value Contributed on fcx.com"]
[null,"GRI 200 ECONOMIC","201 Economic Performance","103-2","The management approach and its components\n","Form 10-K: Part II, Consolidated Results\n\nAnnual Report on Sustainability: About this Report; Our Approach; Business Integrity; Community Grievance Mechanisms; Letter to Stakeholders; Message from our Corporate Responsibility Committee Chair\n\nGRI Content Index (this index)\n"]
[null,"GRI 200 ECONOMIC","201 Economic Performance","103-3","Evaluation of the management approach","Form 10-K\n\nAnnual Report on Sustainability: Our Approach"]
[null,"GRI 200 ECONOMIC","201 Economic Performance","201-1","Direct economic value generated and distributed","Form 10-K: Part II, Consolidated Results\n\nAnnual Report on Sustainability: Community Engagement; Social Investments; Transparency of Government Payments\n\nEconomic Value Contributed on fcx.com","SDG 1: No Poverty\nSDG 2: Zero Hunger\nSDG 5: Gender Equality\nSDG 7: Affordable and Clean Energy\nSDG 8: Decent Work and Economic Growth\nSDG 9: Industry, Innovation and Infrastructure"]
[null,"GRI 200 ECONOMIC","201 Economic Performance","201-2","Financial implications and other risks and opportunities due to climate change","Form 10-K: Environmental Risks\n\nAnnual Report on Sustainability: Climate; Water Stewardship\n\nClimate Report\n\nWater Report ","SDG 13: Climate Action"]
[null,"GRI 200 ECONOMIC","203 Indirect Economic Impacts","103-1","Explanation of the material topic and its Boundary","Annual Report on Sustainability: Our Approach; Community Engagement; Social Investments; Economic Value Contributed\n\nForm 10-K: Part II, Consolidated Results\n\nEconomic Value Contributed on fcx.com"]
[null,"GRI 200 ECONOMIC","203 Indirect Economic Impacts","103-2","The management approach and its components","Annual Report on Sustainability: Our Approach; Community Engagement; Social Investments; Business Integrity; Letter to Stakeholders; Message from our Corporate Responsibility Committee Chair\n\nForm 10-K: Part II, Consolidated Results\n\nEconomic Value Contributed and Assessing & Managing Impacts > Community Grievance Mechanisms on fcx.com"]
[null,"GRI 200 ECONOMIC","203 Indirect Economic Impacts","103-3","Evaluation of the management approach","Annual Report on Sustainability: Our Approach\n\nForm 10-K: Part II, Consolidated Results"]
[null,"GRI 200 ECONOMIC","203 Indirect Economic Impacts","203-1","Infrastructure investments and services supported","Community Engagement, Social Investments, Public Health, Environment and Economic Value Contributed on fcx.com\n\nESG Performance Data","SDG 2: Zero Hunger\nSDG 5: Gender Equality\nSDG 7: Affordable and Clean Energy\nSDG 9: Industry Innovation and Infrastructure\nSDG 11: Sustainable Cities and Communities"]
[null,"GRI 200 ECONOMIC","203 Indirect Economic Impacts","203-2","Significant indirect economic impacts","Community Engagement & Social Investments and Economic Value Contributed on fcx.com\n\nESG Performance Data","SDG 1: No Poverty\nSDG 2: Zero Hunger\nSDG 3: Good Health and Well-Being\nSDG 8: Decent Work and Economic Growth\nSDG 10: Reduced Inequalities\nSDG 17: Partnerships for the Goals"]
[null,"GRI 200 ECONOMIC","204 Procurement Practices","103-1","Explanation of the material topic and its Boundary","Annual Report on Sustainability: Our Approach; Responsible Value Chains\n\nCommunity Engagement, Social Investments and Economic Value Contributed on fcx.com\n\nForm 10-K: Part I, Sources and Availability of Energy, Natural Resources and Raw Materials\n"]
[null,"GRI 200 ECONOMIC","204 Procurement Practices","103-2","The management approach and its components","Annual Report on Sustainability: Our Approach; Business Integrity; Letter to Stakeholders; Message from our Corporate Responsibility Committee Chair;  Responsible Value Chains\nEconomic Value Contributed, Community Engagement & Social Investments, Community Grievance Mechanisms on fcx.com\nForm 10-K: Part I, Sources and Availability of Energy, Natural Resources and Raw Materials"]
[null,"GRI 200 ECONOMIC","204 Procurement Practices","103-3","Evaluation of the management approach","Annual Report on Sustainability: Our Approach\n\nForm 10-K: Part I, Sources and Availability of Energy, Natural Resources and Raw Materials"]
[null,"GRI 200 ECONOMIC","204 Procurement Practices","204-1","Proportion of spending on local suppliers","2020 Procurement Spend Distribution:\nLocal = 34%\nNational = 53%\nOutside Home Country = 14%\n\nEconomic Value Contributed > Local Suppliers on fcx.com\n\nESG Performance Data","SDG 12: Responsible Consumption and Production"]
[null,"GRI 200 ECONOMIC","205 Anti-Corruption","103-1","Explanation of the material topic and its Boundary","Annual Report on Sustainability: Our Approach; Business Integrity\n\nEconomic Value Contributed on fcx.com\n\nForm 10-K: Part I, Risk Factors\n"]
[null,"GRI 200 ECONOMIC","205 Anti-Corruption","103-2","The management approach and its components","Annual Report on Sustainability: Our Approach; Business Integrity; Letter to Stakeholders; Message from our Corporate Responsibility Committee Chair\n\nEconomic Value Contributed and Assessing & managing Impacts > Community Grievance Mechanisms on fcx.com\n\nForm 10-K: Part I, Risk Factors"]
[null,"GRI 200 ECONOMIC","205 Anti-Corruption","103-3","Evaluation of the management approach","Annual Report on Sustainability: Our Approach; Business Integrity\n\nForm 10-K: Part I, Risk Factors"]
[null,"GRI 200 ECONOMIC","205 Anti-Corruption","205-1","Operations assessed for risks related to corruption","Every year, our internal audit firm performs a company-wide, global business risk assessment to assist in planning the next year’s audit projects. This overall risk assessment includes corruption as a risk factor.\n\nAnnual Report on Sustainability: Bisiness Integrity; Focus Areas","SDG 16: Peace, Justice and Strong Institutions"]
[null,"GRI 200 ECONOMIC","205 Anti-Corruption","205-2","Communication and training about anti-corruption policies and procedures","Annual Report on Sustainability: Business Integrity\n","SDG 16: Peace, Justice and Strong Institutions"]
[null,"GRI 200 ECONOMIC","302 Energy","103-1","Explanation of the material topic and its Boundary","Annual Report on Sustainability: Our Approach; Environment; Climate\n\nClimate Report\n\nForm 10-K: Part I, General\n"]
[null,"GRI 200 ECONOMIC","302 Energy","103-2","The management approach and its components","Annual Report on Sustainability: Letter to Stakeholders\nMessage from our Corporate Responsibility Committee Chair; \nOur Approach; Environment; Business Integrity; Climate\n\nForm 10-K: Part I, General\n\nClimate Report"]
[null,"GRI 200 ECONOMIC","302 Energy","103-3","Evaluation of the management approach","Annual Report on Sustainability: Our Approach\n\nForm 10-K"]
[null,"GRI 200 ECONOMIC","302 Energy","302-1","Energy consumption within the organization\n\nThe reporting organization shall report the following information:\na. Total fuel consumption within the organization from non-renewable sources, in joules\nor multiples, and including fuel types used.\nb. Total fuel consumption within the organization from renewable sources, in joules\nor multiples, and including fuel types used.\nc. In joules, watt-hours or multiples, the total:\ni. electricity consumption\nii. heating consumption\niii. cooling consumption\niv. steam consumption\nd. In joules, watt-hours or multiples, the total:\ni. electricity sold\nii. heating sold\niii. cooling sold\niv. steam sold\ne. Total energy consumption within the organization, in joules or multiples.\nf. Standards, methodologies, assumptions, and/or calculation tools used.\ng. Source of the conversion factors used.","Annual Report on Sustainability: Climate\n\nClimate Report\n\nForm 10-K: Part I, General\n\nESG Performance Data","SDG 7: Affordable and Clean Energy\nSDG 8: Decent Work and Economic Growth\nSDG 12: Responsible Consumption and Production\nSDG 13: Climate Action"]
[null,"GRI 200 ECONOMIC","302 Energy","302-3","Energy Intensity","Annual Report on Sustainability: Climate\nClimate Report\n\nESG Performance Data","SDG 7: Affordable and Clean Energy\nSDG 8: Decent Work and Economic Growth\nSDG 13: Climate Action"]
[null,"GRI 200 ECONOMIC","302 Energy","302-4","Reduction of energy consumption","Annual Report on Sustainability: Climate\n\nClimate Report","SDG 7: Affordable and Clean Energy\nSDG 8: Decent Work and Economic Growth\nSDG 12: Responsible Consumption and Production\nSDG 13: Climate Action"]
[null,"GRI 200 ECONOMIC","303 Water and Effluents","103-1","Explanation of the material topic and its Boundary","Annual Report on Sustainability: Our Approach; Environment; Water Stewardship\n\nWater Report\n\nForm 10-K: Part I, General\n\nESG Performance Data"]
[null,"GRI 200 ECONOMIC","303 Water and Effluents","103-2","The management approach and its components","Annual Report on Sustainability: Letter to Stakeholders; \nMessage from our Corporate Responsibility Committee Chair; Our Approach; Environment; Business Integrity; Water Stewardship\n\nForm 10-K: Part I, General\n\nWater Report"]
[null,"GRI 200 ECONOMIC","303 Water and Effluents","103-3","Evaluation of the management approach","Annual Report on Sustainability: Our Approach\n\nForm 10-K: Part I, General"]
[null,"GRI 200 ECONOMIC","303 Water and Effluents","303-1","Water withdrawal by source","Annual Report on Sustainability: Water Stewardship\nWater Report","SDG 6: Clean Water and Sanitation"]
[null,"GRI 200 ECONOMIC","303 Water and Effluents","303-3","Water recycled and reused","Annual Report on Sustainability: Water Stewardship\nWater Report\n\nESG Performance Data","SDG 6: Clean Water and Sanitation\nSDG 8: Decent Work and Economic Growth\nSDG 12: Responsible Consumption and Production"]
[null,"GRI 200 ECONOMIC","303 Water and Effluents","303-5","Water consumption","Annual Report on Sustainability: Water Stewardship\n\nWater Report","SDG 6: Clean Water and Sanitation\nSDG 12: Responsible Consumption and Production"]
[null,"GRI 200 ECONOMIC","304 Biodiversity","103-1","Explanation of the material topic and its Boundary","Annual Report on Sustainability: Our Approach\n\nBiodiversity on fcx.com\n\nForm 10-K: Part I, Risk Factors"]
[null,"GRI 200 ECONOMIC","304 Biodiversity","103-2","The management approach and its components","Annual Report on Sustainability: Letter to Stakeholders; Message from our Corporate Responsibility Committee Chair; Our Approach; Environment; Business Integrity\n\nForm 10-K\n\nCommunity Grievance Mechanisms and Biodiversity on fcx.com"]
[null,"GRI 200 ECONOMIC","304 Biodiversity","103-3","Evaluation of the management approach","Annual Report on Sustainability: Our Approach\n\nForm 10-K: Part I, Risk Factors"]
[null,"GRI 200 ECONOMIC","304 Biodiversity","304-2","Significant impacts of activities, products, and services","A nnual Report on Sustainability: Biodiversity; Tailings Stewardship\n\nBiodiversity and Tailings Management on fcx.com","SDG 6: Clean Water and Sanitation\nSDG 13: Climate Action\nSDG 14: Life Below Water\nSDG 15: Life on Land"]
[null,"GRI 200 ECONOMIC","304 Biodiversity","304-3","Habitats protected or restored","Annual Report on Sustainability: Environment; Mine Closure & Reclamation; Biodiversity\n\nBiodiversity on fcx.com","SDG 6: Clean Water and Sanitation\nSDG 13: Climate Action\nSDG 14: Life Below Water\nSDG 15: Life on Land"]
[null,"GRI 200 ECONOMIC","304 Biodiversity","MM1","Amount of land (owned or leased, and managed for production activities or extractive use) disturbed or rehabilitated","Annual Report on Sustainability: Mine Closure & Reclamation\n\nBiodiversity on fcx.com","SDG 3: Good Health and Well-Being\nSDG 6: Clean Water and Sanitation\nSDG 12: Responsible Consumption and Production\nSDG 13: Climate Action\nSDG 14: Life Below Water \nSDG 15: Life on Land"]
[null,"GRI 200 ECONOMIC","304 Biodiversity","MM2","The number and percentage of total sites identified as requiring biodiversity management plans according to stated criteria, and the number (percentage) of those sites with plans in place","Biodiversity on fcx.com","SDG 6: Clean Water and Sanitation\nSDG 13: Climate Action\nSDG 14: Life Below Water \nSDG 15: Life on Land"]
[null,"GRI 200 ECONOMIC","305 Emissions","103-1","Explanation of the material topic and its Boundary","Annual Report on Sustainability: Our Approach; Environment; Climate\n\nClimate Report\n\nForm 10-K: Part I, Risk Factors"]
[null,"GRI 200 ECONOMIC","305 Emissions","103-2","The management approach and its components","Annual Report on Sustainability: Letter to Stakeholders; Message from our Corporate Responsibility Committee Chair; Our Approach; Environment; Business Integrity; Climate\n\nForm 10-K: Part I, Risk Factors\n\nAssessing & Managing impacts > Community Grievance Mechanisms on fcx.com\n\nClimate Report"]
[null,"GRI 200 ECONOMIC","305 Emissions","103-3","Evaluation of the management approach","Annual Report on Sustainability: Our Approach\n\nForm 10-K: Part I, Risk Factors"]
[null,"GRI 200 ECONOMIC","305 Emissions","305-1","1 Direct (Scope I) GHG emissions","Annual Report on Sustainability: Climate\n\nClimate Report\n\nESG Performance Data","SDG 3: Good Health and Well-Being\nSDG 12: Responsible Consumption and Production\nSDG 13: Climate Action\nSDG 14: Life Below Water\nSDG 15: Life on Land"]
[null,"GRI 200 ECONOMIC","305 Emissions","305-2","Energy Indirect (Scope II) GHG emissions","Annual Report on Sustainability: Climate\n\nClimate Report\n\nESG Performance Data","SDG 3: Good Health and Well-Being\nSDG 12: Responsible Consumption and Production\nSDG 13: Climate Action\nSDG 14: Life Below Water\nSDG 15: Life on Land"]
[null,"GRI 200 ECONOMIC","305 Emissions","305-3","Other indirect (Scope III) GHG emissions","Annual Report on Sustainability: Climate\n\nClimate Report\n\nESG Performance Data","SDG 3: Good Health and Well-Being\nSDG 12: Responsible Consumption and Production\nSDG 13: Climate Action\nSDG 14: Life Below Water\nSDG 15: Life on Land"]
[null,"GRI 200 ECONOMIC","305 Emissions","305-4","GHG emissions intensity","Annual Report on Sustainability: Climate\n\nClimate Report","SDG 12: Responsible Consumption and Production\nSDG 13: Climate Action\nSDG 14: Life Below Water\nSDG 15: Life on Land"]
[null,"GRI 200 ECONOMIC","305 Emissions","305-5","Reduction of GHG emissions","ESG Performance Data","SDG 12: Responsible Consumption and Production\nSDG 13: Climate Action\nSDG 14: Life Below Water\nSDG 15: Life on Land"]
[null,"GRI 200 ECONOMIC","305 Emissions","305-6","Emissions of ozone-depleting substances (ODS)","ESG Performance Data","SDG 3: Good Health and Well-Being\nSDG 12: Responsible Consumption and Production\nSDG 13: Climate Action"]
[null,"GRI 200 ECONOMIC","305 Emissions","305-7","Nitrogen oxides (NOX), sulfur oxides (SOX), and other significant air emissions","ESG Performance Data","SDG 3: Good Health and Well-Being\nSDG 12: Responsible Consumption and Production\nSDG 13: Climate Action\nSDG 14: Life Below Water\nSDG 15: Life on Land"]
[null,"GRI 200 ECONOMIC","306 Effluents and Waste","103-1","Explanation of the material topic and its Boundary","Annual Report on Sustainability: Our Approach; Environment; \nWaste Management; Tailings Management; Water Stewardship\n\nForm 10-K: Part I, Risk Factors"]
[null,"GRI 200 ECONOMIC","306 Effluents and Waste","103-2","The management approach and its components","Annual Report on Sustainability: Letter to Stakeholders;\nMessage from our Corporate Responsibility Committee Chair; Our Approach; Environment; Business Integrity; Waste Management; Tailings Management; Water Stewardship; Community Grievance Mechanisms\n\nForm 10-K: Part I, Risk Factors\n\nAssessing & Managing Impacts > Community Grievance Mechanisms on fcx.com\n"]
[null,"GRI 200 ECONOMIC","306 Effluents and Waste","103-3","Evaluation of the management approach","Annual Report on Sustainability: Our Approach\n\nForm 10-K: Part I, Risk Factors"]
[null,"GRI 200 ECONOMIC","306 Effluents and Waste","306-1","Water discharged by quality and destination","Annual Report on Sustainability: Water Stewardship\n\nTailings Management & Stewardship > Controlled Riverine \n\nTailings Management on fcx.com","SDG 3: Good Health and Well-Being\nSDG 6: Clean Water and Sanitation\nSDG 12: Responsible Consumption and Production\nSDG 13: Climate Action\nSDG 14: Life Below Water"]
[null,"GRI 200 ECONOMIC","306 Effluents and Waste","306-2","Waste by type and disposal method","Annual Report on Sustainability: Waste Management\n","SDG 3: Good Health and Well-Being\nSDG 6: Clean Water and Sanitation\nSDG 12: Responsible Consumption and Production\nSDG 13: Climate Action"]
[null,"GRI 200 ECONOMIC","306 Effluents and Waste","306-3","Significant spills","Annual Report on Sustainability: Performance Targets; Environment\n\nESG Performance Data","SDG 3: Good Health and Well-Being\nSDG 6: Clean Water and Sanitation\nSDG 12: Responsible Consumption and Production\nSDG 13: Climate Action\nSDG 14: Life Below Water\nSDG 15: Life on Land"]
[null,"GRI 200 ECONOMIC","306 Effluents and Waste","306-5","Water bodies affected by water discharges and/or runoff","Biodiversity and Tailings Management & Stewardship > \n\nControlled Riverine Tailings Management on fcx.com\n","SDG 6: Clean Water and Sanitation\nSDG 12: Responsible Consumption and Production\nSDG 13: Climate Action\nSDG 14: Life Below Water\nSDG 15: Life on Land"]
[null,"GRI 200 ECONOMIC","306 Effluents and Waste","MM3","Total amounts of overburden, rock, tailings and sludges, and, their associated risks","Annual Report on Sustainability: Tailings Stewardship; Waste Management\n\nTailings Management on fcx.com\n\nForm 10-K: Part I, Operational Risks","SDG 3: Good Health and Well-Being\nSDG 6: Clean Water and Sanitation\nSDG 11: Sustainable Cities and Communities\nSDG 12: Responsible Consumption and Production"]
[null,"GRI 300 ENVIRONMENTAL","307 Environmental Compliance","103-1","Explanation of the material topic and its Boundary","Annual Report on Sustainability: Our Approach; Environment\n\nForm 10-K"]
[null,"GRI 300 ENVIRONMENTAL","307 Environmental Compliance","103-2","The management approach and its components","Annual Report on Sustainability: Letter to Stakeholders; Message from our Corporate Responsibility Committee Chair; Our Approach; Environment; Business Integrity\n\nForm 10-K: Part I, Operational Risks\n\nAssessing & Managing Impacts > Community Grievance Mechanisms on fcx.com\n"]
[null,"GRI 300 ENVIRONMENTAL","307 Environmental Compliance","103-3","Evaluation of the management approach","Annual Report on Sustainability: Our Approach\n\nForm 10-K: Part I, Operational Risks"]
[null,"GRI 300 ENVIRONMENTAL","307 Environmental Compliance","307-1","Non-compliance with environmental laws and regulations","Annual Report on Sustainability: Environment\n","SDG 6: Clean Water and Sanitation\nSDG 12: Responsible Consumption and Production\nSDG 13: Climate Action\nSDG 14: Life Below Water\nSDG 15: Life on Land\nSDG 16: Peace, Justice and Strong Institutions"]
[null,"GRI 300 ENVIRONMENTAL","308 Supplier Environmental Assessment","103-1","Explanation of the material topic and its Boundary","Annual Report on Sustainability: Our Approach; Environment\nEnvironmental Policy\n"]
[null,"GRI 300 ENVIRONMENTAL","308 Supplier Environmental Assessment","103-2","The management approach and its components","Annual Report on Sustainability: Our Approach; Environment; Business Integrity; Responsible Value Chains\n\n"]
[null,"GRI 300 ENVIRONMENTAL","308 Supplier Environmental Assessment","103-3","Evaluation of the management approach","Annual Report on Sustainability: Our Approach\n\n"]
[null,"GRI 300 ENVIRONMENTAL","308 Supplier Environmental Assessment","308-1","New suppliers that were screened using environmental criteria","Annual Report on Sustainability: Business Integrity; Defining Responsible Production","SDG 12: Responsible Consumption and Production"]
[null,"GRI 400 SOCIAL","401 Employment","103-1","Explanation of the material topic and its Boundary","Annual Report on Sustainability: Our Approach; Workforce"]
[null,"GRI 400 SOCIAL","401 Employment","103-2","The management approach and its components","Annual Report on Sustainability: Our Approach"]
[null,"GRI 400 SOCIAL","401 Employment","103-3","Evaluation of the management approach","Annual Report on Sustainability: Our Approach"]
[null,"GRI 400 SOCIAL","401 Employment","401-1","New employee hires and employee turnover","Annual Report on Sustainability: Workforce","SDG 5: Gender Equality\nSDG 8: Decent Work and Economic Growth\nSDG 10: Reduced Inequalities\n"]
[null,"GRI 400 SOCIAL","402 Labor/Management Relations","103-1","Explanation of the material topic and its Boundary","Annual Report on Sustainability: Our Approach; Workforce"]
[null,"GRI 400 SOCIAL","402 Labor/Management Relations","103-2","The management approach and its components","Annual Report on Sustainability: Our Approach; Labor Relations"]
[null,"GRI 400 SOCIAL","402 Labor/Management Relations","103-3","Evaluation of the management approach","Annual Report on Sustainability: Our Approach"]
[null,"GRI 400 SOCIAL","402 Labor/Management Relations","402-1","Minimum notice periods regarding operational changes","Workforce > Labor Relations on fcx.com\n","SDG 8: Decent Work and Economic Growth"]
[null,"GRI 400 SOCIAL","402 Labor/Management Relations","MM4","Number of strikes and lock-outs exceeding one week's duration, by country","Although there were no formal strikes or lockouts at any of our operations in 2020, in third-quarter 2020, we experienced a five-day labor-related work stoppage related to COVID-19 travel restrictions when a group of workers at PT-FI staged protests and a blockade restricting access to the main road to the mining operations area. We quickly reached an amicable resolution with the group of workers, while upholding our COVID-19 safety protocols.","SDG 3: Good Health and Well-Being\nSDG 8: Decent Work and Economic Growth\nSDG 10: Reduced Inequalities"]
[null,"GRI 400 SOCIAL","403 Occupational Health and Safety","103-1","Explanation of the material topic and its Boundary","Annual Report on Sustainability: Our Approach; Health & Safety"]
[null,"GRI 400 SOCIAL","403 Occupational Health and Safety","103-2","The management approach and its components","Annual Report on Sustainability: Letter to Stakeholders; Message from our Corporate Responsibility Committee Chair; Our Approach"]
[null,"GRI 400 SOCIAL","403 Occupational Health and Safety","103-3","Evaluation of the management approach","Annual Report on Sustainability: Our Approach\n\n"]
[null,"GRI 400 SOCIAL","403 Occupational Health and Safety","403-1","Occupational health and safety management system","Annual Report on Sustainability: Health & Safety\n\n","SDG 3: Good Health and Well-Being\nSDG 8: Decent Work and Economic Growth"]
[null,"GRI 400 SOCIAL","403 Occupational Health and Safety","403-2","Hazard identification, risk assessment, and incident investigation","Annual Report on Sustainability: Health & Safety; The Risk Register\n\n","SDG 3: Good Health and Well-Being\nSDG 8: Decent Work and Economic Growth"]
[null,"GRI 400 SOCIAL","403 Occupational Health and Safety","403-3","Occupational health services","Annual Report on Sustainability: Health & Safety; The Risk Register\n\n","SDG 3: Good Health and Well-Being\nSDG 8: Decent Work and Economic Growth"]
[null,"GRI 400 SOCIAL","403 Occupational Health and Safety","403-4","Worker participation, consultation, and communication on occupational health and safety","Annual Report on Sustainability: Health & Safety\n\n","SDG 3: Good Health and Well-Being\nSDG 8: Decent Work and Economic Growth"]
[null,"GRI 400 SOCIAL","403 Occupational Health and Safety","403-5","Worker training on occupational health and safety","Annual Report on Sustainability: Health & Safety\n\n","SDG 3: Good Health and Well-Being\nSDG 8: Decent Work and Economic Growth"]
[null,"GRI 400 SOCIAL","403 Occupational Health and Safety","403-6","Promotion of worker health","Annual Report on Sustainability: Health & Safety\n\n","SDG 3: Good Health and Well-Being\nSDG 8: Decent Work and Economic Growth"]
[null,"GRI 400 SOCIAL","403 Occupational Health and Safety","403-7","Prevention and mitigation of occupational health and safety impacts directly linked by business relationships","Annual Report on Sustainability: Health & Safety\n\n","SDG 3: Good Health and Well-Being\nSDG 8: Decent Work and Economic Growth"]
[null,"GRI 400 SOCIAL","404 Training and Education","103-1","Explanation of the material topic and its Boundary","Annual Report on Sustainability: Our Approach; Workforce\n\n"]
[null,"GRI 400 SOCIAL","404 Training and Education","103-2","The management approach and its components","Annual Report on Sustainability: Our Approach; Communities\n\nCommunities on fcx.com"]
[null,"GRI 400 SOCIAL","404 Training and Education","103-3","Evaluation of the management approach","Annual Report on Sustainability: Our Approach; Communities\n\nCommunities on fcx.com"]
[null,"GRI 400 SOCIAL","404 Training and Education","404-2","Programs for upgrading employee skills and transition assistance programs","Annual Report on Sustainability: Talent Development & Training; Diversity & Local Hiring\n\nFMJobs.com","SDG 4: Quality Education\nSDG 8: Decent Work and Economic Growth"]
[null,"GRI 400 SOCIAL","405 Diversity and Equal Opportunity","103-1","Explanation of the material topic and its Boundary","Annual Report on Sustainability: Our Approach; Workforce; Inclusion & Diversity"]
[null,"GRI 400 SOCIAL","405 Diversity and Equal Opportunity","103-2","The management approach and its components","Annual Report on Sustainability: Our Approach"]
[null,"GRI 400 SOCIAL","405 Diversity and Equal Opportunity","103-3","Evaluation of the management approach","Annual Report on Sustainability: Our Approach"]
[null,"GRI 400 SOCIAL","405 Diversity and Equal Opportunity","405-1","Diversity of governance bodies and employees","Annual Report on Sustainability: Inclusion & Diversity\n\nProxy Statement: Information About Director Nominees","SDG 5: Gender Equality\nSDG 8: Decent Work and Economic Growth"]
[null,"GRI 400 SOCIAL","405 Diversity and Equal Opportunity","405-2","Ratio of basic salary and remuneration of women to men","It is our policy to make all employment decisions on the basis of merit and the essential functions of a position and provide equal pay and benefit opportunities to persons with equal skill, effort and job responsibilities. ","SDG 5: Gender Equality\nSDG 8: Decent Work and Economic Growth\nSDG 10: Reduced Inequalities"]
[null,"GRI 400 SOCIAL","406 Non-discrimination","103-1","Explanation of the material topic and its Boundary","Annual Report on Sustainability: Our Approach; Inclusion & Diversity \n\nHuman Rights Policy"]
[null,"GRI 400 SOCIAL","406 Non-discrimination","103-2","The management approach and its components","Annual Report on Sustainability: Our Approach; Business Integrity"]
[null,"GRI 400 SOCIAL","406 Non-discrimination","103-3","Evaluation of the management approach","Annual Report on Sustainability: Our Approach"]
[null,"GRI 400 SOCIAL","406 Non-discrimination","406-1","Incidents of discrimination and corrective actions taken","Annual Report on Sustainability: Inclusion & Diversity; Labor Relations; Human Rights; Compliance Line","SDG 5: Gender Equality\nSDG 8: Decent Work and Economic Growth\nSDG 16: Peace, Justice and Strong Institutions"]
[null,"GRI 400 SOCIAL","407 Freedom of Association and Collective Bargaining","103-1","Explanation of the material topic and its Boundary","Annual Report on Sustainability: Our Approach; Workforce; Labor Relations\n\nHuman Rights Policy\n\nWorkforce and Labor Relations on fcx.com\n"]
[null,"GRI 400 SOCIAL","407 Freedom of Association and Collective Bargaining","103-2","The management approach and its components","Annual Report on Sustainability: Our Approach; Workforce\n\nForm 10-K"]
[null,"GRI 400 SOCIAL","407 Freedom of Association and Collective Bargaining","103-3","Evaluation of the management approach","Annual Report on Sustainability: Our Approach"]
[null,"GRI 400 SOCIAL","407 Freedom of Association and Collective Bargaining","407-1","Operations and suppliers in which the right to freedom of association and collective bargaining may be at risk","We do not believe that the right to exercise freedom of association and collective bargaining is at significant risk at any of our operations.\n\nAnnual Report on Sustainability: Labor Relations: Human Rights\n\nHuman Rights on fcx.com","SDG 8: Decent Work and Economic Growth"]
[null,"GRI 400 SOCIAL","408 Child Labor","103-1","Explanation of the material topic and its Boundary","Annual Report on Sustainability: Our Approach; Responsible Value Chains; Human Rights\n\nHuman Rights Policy\n\nResponsible Sourcing of Minerals Policy\n\nHuman Rights on fcx.com"]
[null,"GRI 400 SOCIAL","408 Child Labor","103-2","The management approach and its components","Annual Report on Sustainability: Our Approach; Responsible Value Chains; Human Rights\n\nHuman Rights Policy\n\nResponsible Sourcing of Minerals Policy\n\nHuman Rights on fcx.com"]
[null,"GRI 400 SOCIAL","408 Child Labor","103-3","Evaluation of the management approach","Annual Report on Sustainability: Our Approach; Responsible Value Chains; Human Rights\n\nHuman Rights on fcx.com"]
[null,"GRI 400 SOCIAL","408 Child Labor","408-1","Operations and suppliers at significant risk for incidents of child labor","We do not believe that any of our operations are at significant risk for incidents of child, forced or compulsory labor.\n\nAnnual Report on Sustainability: Business Integrity; Human Rights; Responsible Value Chains\n\nHuman Rights Policy\n\nSupplier Code of Conduct\n\nResponsible Souring of Minerals Policy\n\nUK MSA Statement","SDG 8: Decent Work and Economic Growth\nSDG 16: Peace, Justice and Strong Institutions"]
[null,"GRI 400 SOCIAL","409 Forced or Compulsory Labor","103-1","Explanation of the material topic and its Boundary","Annual Report on Sustainability: Our Approach; Human Rights; \n\nResponsible Value Chains\n\nHuman Rights Policy\n\nResponsible Sourcing of Minerals Policy\n\nHuman Rights on fcx.com"]
[null,"GRI 400 SOCIAL","409 Forced or Compulsory Labor","103-2","The management approach and its components","Annual Report on Sustainability: Our Approach; Responsible Value Chains; Human Rights\n\nHuman Rights Policy\n\nResponsible Sourcing of Minerals Policy\n\nHuman Rights on fcx.com"]
[null,"GRI 400 SOCIAL","409 Forced or Compulsory Labor","103-3","Evaluation of the management approach","Annual Report on Sustainability: Our Approach; Responsible Value Chains; Human Rights\n\nHuman Rights on fcx.com"]
[null,"GRI 400 SOCIAL","409 Forced or Compulsory Labor","409-1","Operations and suppliers at significant risk for incidents of forced or compulsory labor","Our Human Rights Policy requires fair treatment and working conditions for all employees and prohibits child, forced, or compulsory labor. We do not believe that any of our operations are at significant risk for incidents of child, forced or compulsory labor.\n\nAnnual Report on Sustainability: Responsible Value Chains; Human Rights\n\nSupplier Code of Conduct \n\nHuman Rights Policy\n\nResponsible Souring of Minerals Policy\n\nHuman Rights on fcx.com\n\nUK MSA Statement","SDG 8: Decent Work and Economic Growth"]
[null,"GRI 400 SOCIAL","410 Security Practices","103-1","Explanation of the material topic and its Boundary","Annual Report on Sustainability: Our Approach\n\nHuman Rights Policy"]
[null,"GRI 400 SOCIAL","410 Security Practices","103-2","The management approach and its components","Annual Report on Sustainability: Our Approach"]
[null,"GRI 400 SOCIAL","410 Security Practices","103-3","Evaluation of the management approach","Annual Report on Sustainability: Our Approach"]
[null,"GRI 400 SOCIAL","410 Security Practices","410-1","Security personnel trained in human rights policies or procedures","Voluntary Principles Report ","SDG 16: Peace, Justice and Strong Institutions"]
[null,"GRI 400 SOCIAL","411 Rights of Indigenous Peoples","103-1","Explanation of the material topic and its Boundary","Annual Report on Sustainability: Our Approach; Human Rights; Communities; Indigenous Peoples\n\nSocial Performance Policy\n\nHuman Rights Policy\n\nIndigenous Peoples on fcx.com\n"]
[null,"GRI 400 SOCIAL","411 Rights of Indigenous Peoples","103-2","The management approach and its components","Annual Report on Sustainability: Our Approach; Indigenous Peoples; Communities\n\nIndigenous Peoples, Land Use and Customary Rights and  Communities on fcx.com"]
[null,"GRI 400 SOCIAL","411 Rights of Indigenous Peoples","103-3","Evaluation of the management approach","Annual Report on Sustainability: Our Approach; Human Rights; Communities\n\nHuman Rights and Communities on fcx.com"]
[null,"GRI 400 SOCIAL","411 Rights of Indigenous Peoples","411-1","Incidents of violations involving rights of indigenous peoples","Annual Report on Sustainability: Indigenous Peoples; Human Rights; Communities\n\nHuman Rights, Assessing and Managing Impacts, Indigenous Peoples, Land Use and Customary Rights and Communities on fcx.com","SDG 2: Zero Hunger\nSDG 10: Reduced Inequalities"]
[null,"GRI 400 SOCIAL","411 Rights of Indigenous Peoples","MM5","Total number of operations taking place in or adjacent to Indigenous Peoples' territories, and number and percentage of operations or sites where there are formal agreements with Indigenous Peoples' communities","Annual Report on Sustainability: Indigenous Peoples\n\nIndigenous Peoples and Land Use and Customary Rights on fcx.com\n\nVoluntary Principles Report","SDG 1: No Poverty\nSDG 2: Zero Hunger\nSDG 3: Good Health and Well-Being\nSDG 10: Reduced Inequalities"]
[null,"GRI 400 SOCIAL","412 Human Rights Assessment","103-1","Explanation of the material topic and its Boundary","Annual Report on Sustainability: Our Approach; Human Rights\n\nHuman Rights on fcx.com"]
[null,"GRI 400 SOCIAL","412 Human Rights Assessment","103-2","The management approach and its components","Annual Report on Sustainability: Our Approach; Human Rights\n"]
[null,"GRI 400 SOCIAL","412 Human Rights Assessment","103-3","Evaluation of the management approach","Annual Report on Sustainability: Our Approach; Human Rights\n"]
[null,"GRI 400 SOCIAL","412 Human Rights Assessment","412-1","Operations that have been subject to human rights reviews or impact assessments","Human Rights on fcx.com","SDG 5: Gender Equality\nSDG 10: Reduced Inequalities\nSDG 16: Peace, Justice and Strong Institutions"]
[null,"GRI 400 SOCIAL","412 Human Rights Assessment","412-2","Employee training on human rights policies or procedures","Annual Report on Sustainability: Business Integrity; Human Rights\n\nVoluntary Principles Report\n\nHuman Rights on fcx.com"]
[null,"GRI 400 SOCIAL","413 Local Communities","103-1","Explanation of the material topic and its Boundary","Annual Report on Sustainability: Our Approach\n\nSocial Performance Policy"]
[null,"GRI 400 SOCIAL","413 Local Communities","103-2","The management approach and its components","Annual Report on Sustainability: Our Approach; Communities\n\n"]
[null,"GRI 400 SOCIAL","413 Local Communities","103-3","Evaluation of the management approach","Annual Report on Sustainability: Our Approach; Communities\n\n"]
[null,"GRI 400 SOCIAL","413 Local Communities","413-1","Operations with local community engagement, impact assessments, and development programs","Annual Report on Sustainability: Our Approach; Communities; Stakeholder Engagement\n\nCommunities, Stakeholder Engagement, Assessing and Managing Impacts on fcx.com","SDG 4: Quality Education\nSDG 8: Decent Work and Economic Growth\nSDG 10: Reduced Inequalities\nSDG 11: Sustainable Cities and Communities\n"]
[null,"GRI 400 SOCIAL","413 Local Communities","MM6","Number and description of significant disputes relating to land use, customary rights of local communities and Indigenous Peoples","Indigenous Peoples, Land Use and Customary Rights and Community Grievance Mechanisms on fcx.com","SDG 1: No Poverty\nSDG 2: Zero Hunger\nSDG 8: Decent Work and Economic Growth\nSDG 10: Reduced Inequalities\nSDG 11: Sustainable Cities and Communities"]
[null,"GRI 400 SOCIAL","413 Local Communities","MM7","The extent to which grievance mechanisms were used to resolve disputes relating to land use, customary rights of local communities and Indigenous Peoples, and the outcomes","Indigenous Peoples, Land Use and Customary Rights and Community Grievance Mechanisms on fcx.com","SDG 1: No Poverty\nSDG 2: Zero Hunger\nSDG 4: Quality Education\nSDG 8: Decent Work and Economic Growth\nSDG 10: Reduced Inequalities\nSDG 11: Sustainable Cities and Communities"]
[null,"GRI 400 SOCIAL","414 Supplier Social Assessment","103-1","Explanation of the material topic and its Boundary","Annual Report on Sustainability: Our Approach; Business Integrity\n\nSupplier Code of Conduct"]
[null,"GRI 400 SOCIAL","414 Supplier Social Assessment","103-2","The management approach and its components","Annual Report on Sustainability: Our Approach; Business Integrity; Defining Responsible Production\n\nEconomic Value Contributed - Local Suppliers on fcx.com"]
[null,"GRI 400 SOCIAL","414 Supplier Social Assessment","103-3","Evaluation of the management approach","Annual Report on Sustainability: Our Approach\n"]
[null,"GRI 400 SOCIAL","414 Supplier Social Assessment","414-1","414-1 New suppliers that were screened using social criteria","Using our online due diligence system, the Freeport Compliance eXchange (FCeX), our goal is to screen 100 percent of all suppliers at operations in Indonesia, Chile, Peru and selected exploration sites for compliance with the company’s labor standards. All suppliers receive and are expected to perform in accordance with:\n\nSupplier Code of Conduct\n\nAnnual Report on Sustainability: Human Rights ; Business Integrity; Responsible Value Chains\n\nUK MSA Statement\n\nSuppliers > Toolier for Existing Suppliers > Freeport Compliance eXchange on fcx.com","SDG 5: Gender Equality\nSDG 8: Decent Work and Economic Growth\nSDG 12: Responsible Consumption and Production\nSDG 16: Peace, Justice and Strong Institutions"]
[null,"GRI 400 SOCIAL","419 Socioeconomic Compliance","103-1","Explanation of the material topic and its Boundary","Annual Report on Sustainability: Our Approach; Business Integrity"]
[null,"GRI 400 SOCIAL","419 Socioeconomic Compliance","103-2","The management approach and its components","Annual Report on Sustainability: Our Approach"]
[null,"GRI 400 SOCIAL","419 Socioeconomic Compliance","103-3","Evaluation of the management approach","Annual Report on Sustainability: Our Approach"]
[null,"GRI 400 SOCIAL","419 Socioeconomic Compliance","419-1","Non-compliance with laws and regulations in the social and economic area","As a global company in a regulated industry, we are subject to thousands of legislative, judicial and administrative regulations at all levels of government in all jurisdictions. Please refer to our annual report on Form 10-K and quarterly reports on Form 10-Q.\n\nAnnual Report on Sustainability: Environment","SDG 16: Peace, Justice and Strong Institutions\nSDG 12: Responsible Consumption and Production"]
[null,"GRI 400 SOCIAL","Other: Emergency Preparedness","103-1","Explanation of the material topic and its Boundary","Health & Safety on fcx.com"]
[null,"GRI 400 SOCIAL","Other: Emergency Preparedness","103-2","The management approach and its components","Health & Safety on fcx.com","\n\nSDG 3: Good Health and Well-being\nSDG 12: Responsible Consumption and Production\n"]
[null,"GRI 400 SOCIAL","Other: Emergency Preparedness","103-3","Evaluation of the management approach","Health & Safety on fcx.com"]
[null,"GRI 400 SOCIAL","Other: Materials Stewardship","103-1","Explanation of the material topic and its Boundary","Annual Report on Sustainability: Our Approach; Defining Responsible Production; Responsible Value Chains"]
[null,"GRI 400 SOCIAL","Other: Materials Stewardship","103-2","The management approach and its components","Annual Report on Sustainability: Our Approach; Defining Responsible Production; Responsible Value Chains","SDG 1: No Poverty\nSDG 5: Gender Equality\nSDG 7: Affordable and Clean Energy\nSDG 8: Decent Work and Economic Growth\nSDG 9: Industry, Innovation and Infrastructure\nSDG 12: Responsible Consumption and Production\nSDG 13: Climate Action\nSDG 15: Life on Land\nSDG 16: Peace, Justice and Strong Institutions\nSDG 17: Partnerships for the Goals"]
[null,"GRI 400 SOCIAL","Other: Materials Stewardship","103-3","Evaluation of the management approach","Annual Report on Sustainability: Our Approach; Defining Responsible Production"]
[null,"GRI 400 SOCIAL","M&M Sector: Artisanal and Small-Scale Mining","MM8","Number (and percentage) of company operating sites where artisanal and small-scale mining (ASM) takes place on, or adjacent to, the site; the associated risks and the actions taken to manage and mitigate these risks","Annual Report on Sustainability: Artisanal Mining in Papua\n\nArtisanal Mining on fcx.com","SDG 1: No Poverty\nSDG 2: Zero Hunger\nSDG 3: Good Health and Well-Being\nSDG 6: Clean Water and Sanitation\nSDG 8: Decent Work and Economic Growth\nSDG 12: Responsible Consumption and Production"]
[null,"GRI 400 SOCIAL","M&M Sector: Resettlement","MM9","Sites where resettlements took place, the number of households resettled in each, and how their livelihoods were affected in the process","We are committed to respecting the human rights of community members and, when unavoidable, conducting community resettlement activities in alignment with international best practice. This commitment is reflected in our Community Policy and Human Rights Policy. We did not have any community resettlement activities in 2020.","SDG 1: No Poverty\nSDG 2: Zero Hunger"]
[null,"GRI 400 SOCIAL","M&M Sector: Closure Planning","MM10","Number and percentage of operations with closure plans","Form 10-K: Risk Factors\n\nAnnual Report on Sustainability: Mine Closure & Reclamation","SDG 11: Sustainable Cities and Communities\nSDG 14: Life Below Water\nSDG 15: Life on Land\n"]
[]
[null,"CAUTIONARY STATEMENT REGARDING FORWARD-LOOKING STATEMENTS\nThe Sustainability section of our website contains forward-looking statements, which are all statements other than statements of historical facts. The words “anticipates,” “may,” “can,” “plans,” “believes,” “estimates,” “expects,” “projects,” \"targets,\" “intends,” “likely,” “will,” “should,” “could,” “to be,” ”potential,\" “assumptions,” “guidance,” “future” and any similar expressions are intended to identify those assertions as forward- looking statements. Freeport-McMoRan (FCX) cautions readers that forward-looking statements are    not guarantees of future performance and actual results may differ materially from those anticipated, expected, projected or assumed in the forward-looking statements. Important factors that can cause FCX’s actual results to differ materially from those anticipated in the forward-looking statements include, but are not limited to, factors described under the heading “Risk Factors” in FCX’s Annual Report on Form 10-K for the year ended December 31, 2020, filed with the U.S. Securities and Exchange Commission (SEC), as updated by FCX’s subsequent filings with the SEC, and available on our website at fcx.com."]

{"sheet":"ICMM","index":24,"n_rows":43,"n_cols":6,"rows_kept":43,"cut":false,"hidden":false,"merged":[[0,1,0,5]]}
[null,"INTERNATIONAL COUNCIL OF MINING AND METALS (ICMM) PRINCIPLES "]
[]
[null,"We disclose in alignment with the Performance Expectations at the corporate level. For our asset-level reports, please see our website at fcx.com."]
[]
[null,"PRINCIPLE","PRINCIPLE DESCRIPTION","PERFORMANCE EXPECTATION","DESCRIPTION","FCX RESPONSE"]
[null,"PRINCIPLE 1: ETHICAL BUSINESS","Apply ethical business practices and sound systems of corporate governance and transparency to support sustainable development.",1.1000000000000001,"Establish systems to maintain compliance with applicable law.","Freeport is committed to the highest level of ethical and legal conduct in all of our business activities. Acting ethically involves more than simply complying with laws and regulations; it involves recognition that our decisions affect others. By keeping this in mind, we aspire to earn the respect, trust and confidence of our stakeholders.\n\n• Form 10-K\n• Information can be found in our Annual Report on Sustainability and on our website at FCX.com - Our Approach and Business Integrity"]
[null,"PRINCIPLE 1: ETHICAL BUSINESS","Apply ethical business practices and sound systems of corporate governance and transparency to support sustainable development.",1.2,"Implement policies and practices to prevent bribery, corruption and to publicly disclose facilitation payments.","Freeport-McMoRan maintains zero tolerance for corruption of any kind, and we expect the same from our employees, contractors and suppliers. Freeport-McMoRan does not obtain a business advantage through bribery, improper payments, kickbacks or any other illegal means. No employee or contractor may offer, pay, solicit or accept bribes in any form.\n\n• Principles of Business Conduct\n• Anti-Corruption Policy\n• Information can be found in our Annual Report on Sustainability and on our website at FCX.com - Our Approach, Business Integrity and Responsible Value Chains"]
[null,"PRINCIPLE 1: ETHICAL BUSINESS","Apply ethical business practices and sound systems of corporate governance and transparency to support sustainable development.",1.3,"Implement policies and standards consistent with the ICMM policy framework.","To facilitate implementation of our policy commitments and objectives, we utilize a combination of audit and assessment programs along with an annual program for site-level third-party assurance of our sustainability framework – including the implementation of our commitments under the ICMM Mining with Principles Framework. We report and track our progress in our Annual Report on Sustainability as well as other external disclosures including the Voluntary Principles Report to the Plenary, the UK Modern Slavery Act Statement and the OECD Step 5 Report.\n\n• Voluntary Principles Report to the Plenary\n• UK Modern Slavery Act Stetement\n• OECD Step 5 Report\n• Information can be found in our Annual Report on Sustainability and our website at FCX.com - Our Approach"]
[null,"PRINCIPLE 1: ETHICAL BUSINESS","Apply ethical business practices and sound systems of corporate governance and transparency to support sustainable development.",1.4,"Assign accountability for sustainability performance at the Board and/or Executive Committee level.","The Corporate Responsibility Committee (CRC), on behalf of the Board, is responsible for providing advice, recommendations and oversight to the company’s management team on environmental and social matters. The CRC regularly reviews the effectiveness of management’s strategies, programs and policy implementation with respect to safety and health, responsible production frameworks, tailings management and stewardship, climate change, water stewardship, biodiversity, waste management, human capital management (including inclusion and diversity initiatives), human rights, stakeholder relations, social performance and Indigenous Peoples, responsible sourcing, and political activity and spending practices.\n\nOur Chairman and CEO has ultimate responsibility for the company’s sustainability performance. The company’s cross-functional Sustainability Leadership Team (SLT) includes members of the management team tasked with defining the sustainability strategy and implementing our sustainability policies, systems and programs across the organization. In 2020, the SLT met four times and moving forward will meet monthly and regularly report to executive leadership, including to our Chairman & CEO and President & Chief Financial Officer (CFO). In addition, members of the SLT report to the CRC on key ESG matters at regularly scheduled meetings. The SLT is sponsored by our Senior Vice President and Chief Administrative Officer and is led by our Vice President and Chief Sustainability Officer, with active participation from other members of the SLT, including our four operational business unit Presidents. SLT membership also includes Vice Presidents or senior representatives from functional groups, including health and safety, security, supply chain, human resources, sales, legal, compliance, sustainability and finance.\n\nExecutive officers are held accountable for the company’s sustainability performance through the company’s performance-based annual incentive program (AIP). In 2020, ESG metrics collectively accounted for 25% of the AIP (15% safety and 10% sustainability).\n\n• Proxy Statement: Sustainability - Governance\n• Corporate Responsibility Committee Charter\n• Information can be found in our Annual Report on Sustainability and our website at FCX.com -  Our Approach; Letter to Stakeholders; Message from our Corporate Responsibility Committee Chair and Business Integrity"]
[null,"PRINCIPLE 1: ETHICAL BUSINESS","Apply ethical business practices and sound systems of corporate governance and transparency to support sustainable development.",1.5,"Disclose the value and beneficiaries of financial and in-kind political contributions whether directly or through an intermediary.","Freeport-McMoRan Inc.recognizes that public policy decisions can significantly affect our operations, future business opportunities, employees, shareholders and the communities in which FCX operates. For this reason, we exercise our right and responsibility to participate in public policy matters by following public matters that are important to us and interacting, where appropriate, with elected and appointed government officials, regulators and their staff. FCX is committed to the highest level of ethical and legal conduct regarding its political activity and spending practices and to rigorous compliance with applicable laws and regulations.\n\n• Information can be found on our website at FCX.com in our Corporate Responsibility Committee Charter, Anti-Corruption Policy and Political Activity and Spending Practices "]
[null,"PRINCIPLE 2: DECISION MAKING","Integrate sustainable development in corporate strategy and decision-making processes. ",2.1,"Integrate sustainable development principles into corporate strategy and decisionmaking processes relating to investments and in the design, operation and closure of facilities. ","Our commitment to responsible copper production is visible in everything we do, driven by our core values of Safety, Respect, Integrity, Excellence and Commitment. Our values direct the decisions we make as a company and as individual employees. These values represent who we are and how we work – everyone, everywhere, every day. Our focus on responsible production is critical to establish and maintain acceptance from our local stakeholders through shared value creation and to meet society's responsible sourcing objectives necessary to supply the world with responsible copper.\n\n• Information can be found in our Annual Report on Sustainability and on our website at FCX.com - Mine Closure and Reclamation"]
[null,"PRINCIPLE 2: DECISION MAKING","Integrate sustainable development in corporate strategy and decision-making processes. ",2.2000000000000002,"Support the adoption of responsible health and safety, environmental, human rights and labour policies and practices by joint venture partners, suppliers and  Contractors, based on risk.","At the core of our business is people. At each of our operations, Freeport-McMoRan aims to be a preferred employer, neighbor, business partner and supplier. We are committed to responsibly managing our social impacts on people, which includes focusing on the health, safety and security of our workforce and host communities and respecting the rights of people who may be impacted by our business.\n\nFreeport-McMoRan recognizes that the very nature of our business depends on and impacts the natural environment and our communities. Our goal is to conduct our mining and processing operations in a manner that minimizes adverse impacts on the environment and enables local communities and ecosystems to be protected and maintained through responsible stewardship.\n\nOur Supplier Code of Conduct and compliance screening processes are the foundation of our responsible sourcing program for goods and services. Responsible sourcing of goods and services is led by our Global Supply Chain Sustainability Manager under the oversight of the SLT with support from the Human Rights Working Group.\n\n• Information can be found in our Annual Report on Sustainability and on our website at FCX.com - Business Integrity; People, Environment and Responsible Value Chains"]
[null,"PRINCIPLE 3: HUMAN RIGHTS","Respect human rights and the interests, cultures, customs and values of employees and communities affected by our activities.",3.1,"Support the UN Guiding Principles on Business and Human Rights by developing a policy commitment to respect human rights, undertaking human rights due diligence and providing for or cooperating in processes to enable the remediation of adverse human rights impacts that members have caused or contributed to. ","Human rights are internationally recognized, defined in the Universal Declaration of Human Rights and codified in international law. Mining activities have the potential to impact the way people enjoy these rights – whether as employees, contractors, suppliers, community members, human rights defenders or others. Freeport-McMoRan recognizes that respecting human rights, as outlined in the UN Guiding Principles on Business and Human Rights (UNGPs), is an expectation of stakeholders that can influence our social license to operate and affect market access for our products. We are committed to respecting internationally recognised human rights as set out in the Universal Declaration on Human Rights and the Voluntary Principles on Security and Human Rights, and operating in a manner consistent with the UN Guiding Principles on Business and Human Rights and the UNGC Ten Principles\n\nRespect is a core value for Freeport-McMoRan. We are committed to respecting the rights of all people, including our employees, contractors and suppliers, community members, and others who may potentially be impacted by our business activities. We take this obligation seriously in all aspects of our business, and we expect the same of our business partners.\n\nAs we seek to further embed respect for human rights across our organizational activities, we use our Risk Register process to identify risks to people at each operation and address potential and actual impacts on rights-holders. This process is developed by ongoing stakeholder engagement, grievance management and the results of human rights impact assessments (HRIAs).\n\n• Voluntary Principles Report\n• UK Modern Slavery Act Statement\n• 2019 OECD Step 5 Due Diligence Report\n• Information can be found in our Annual Report on Sustainability and on our website at FCX.com - Business Integrity, People and Human Rights > Due Diligence"]
[null,"PRINCIPLE 3: HUMAN RIGHTS","Respect human rights and the interests, cultures, customs and values of employees and communities affected by our activities.",3.2,"Avoid the involuntary physical or economic displacement of families and communities. Where this is not possible apply the mitigation hierarchy and implement actions or remedies that address residual adverse effects to restore or improve livelihoods and standards of living of displaced people.","We are committed to respecting the human rights of community members and, when unavoidable, conducting community resettlement activities in alignment with international best practice. This commitment is reflected in our Social Performance Policy, Human Rights Policy and Responsible Sourcing of Minerals Policy. We did not have any community resettlement activities in 2020."]
[null,"PRINCIPLE 3: HUMAN RIGHTS","Respect human rights and the interests, cultures, customs and values of employees and communities affected by our activities.",3.3,"Implement, based on risk, a human rights and security approach consistent with the Voluntary Principles on Security and Human Rights.","We are committed to respecting internationally recognized human rights as set out in the Voluntary Principles on Security and Human Rights (VPs).\n\nThe VPs serve as guidelines for our security and human rights programs, including interaction with host-government police and military personnel as well as private security contractors. The VPs serve as a key component of our broader human rights program, which includes implementation of the United Nations Guiding Principles on Business and Human Rights (UNGPs). Not all human rights issues are security issues, and not all security issues are human rights issues - it is at the nexus of human rights and security where our implementation of the VPs resides. \n\nWe have remained an active participant in the VPs Initiative since it was first established in 2000.\n\n• Voluntary Principles Report to the Plenary\n• Information can be found in our Annual Report on Sustainability and on our website at FCX.com - Voluntary Principles, Defining Responsible Production and Responsible Value Chains"]
[null,"PRINCIPLE 3: HUMAN RIGHTS","Respect human rights and the interests, cultures, customs and values of employees and communities affected by our activities.",3.4,"Respect the rights of workers by: not employing child or forced labour; avoiding human trafficking; not assigning hazardous/dangerous work to those under 18; eliminating harassment and discrimination; respecting freedom of association and collective bargaining and; providing a mechanism to address workers grievances.","Our Supplier Code of Conduct and compliance screening processes are the foundation of our responsible sourcing program for goods and services. We are committed to operating in a manner consistent with the UNGC Ten Principles, including Labour Principles 3, 4, 5 and 6. \n\n• Principles of Business Conduct\n• Inclusion & Diversity Policy\n• Social Performance Policy\n• Human Rights Policy\n• Responsible Sourcing of Minerals Policy\n• Supplier Code of Conduct\n• UK Modern Slavery Act Statement\n• Information can be found in our Annual Report on Sustainability and on our website at FCX.com - Our Approach, Human Rights, Workforce and Responsible Value Chains"]
[null,"PRINCIPLE 3: HUMAN RIGHTS","Respect human rights and the interests, cultures, customs and values of employees and communities affected by our activities.",3.5,"Remunerate employees with wages that equal or exceed legal requirements or represent a competitive wage within that job market (whichever is higher) and assign regular and overtime working hours within legally required limits.","We focus on attracting and retaining talented people by offering quality employment with competitive compensation and opportunities for professional development. Our approach to compensation and benefits is market-based and competitive and informed by annual benchmarking and analysis. We are committed to respecting the rights of our workforce, including paying fair wages. This includes equal pay for equal work, and compensation levels that support the acquisition of the goods and services necessary for an average size family to meet their basic needs in the geographic locations where we operate. We also develop schedules that keep regular and overtime hours within legally required limits. \n\nIn early 2021, we partnered with BSR, a global sustainability non-profit, to conduct a living wage assessment for both full-time and part-time employees at 14 of our operating and processing sites in the U.S., Chile, Peru and Indonesia. BSR’s living wage benchmark exceeds the minimum country wage in all 14 locations assessed. The analysis found that of the more than 21,000 employees in these locations, all employees met BSR’s living wage benchmark for their respective locations. We plan to complete the assessment for the remainder of our direct employees later in the year and integrate the assessment into our annual compensation review processes across our global operations. We also will seek to extend our living wage commitment to our on-site contractors in the future.\n\n• Principles of Business Conduct\n• Information can be found in our Annual Report on Sustainability and on our website at FCX.com - Workforce - Fair & Equitable Remuneration"]
[null,"PRINCIPLE 3: HUMAN RIGHTS","Respect human rights and the interests, cultures, customs and values of employees and communities affected by our activities.",3.6,"Respect the rights, interests, aspirations, culture and natural resource-based livelihoods of Indigenous Peoples in project design, development and operation; apply the mitigation hierarchy to address adverse impacts and; deliver sustainable benefits for Indigenous Peoples.","Our approach aims to respect the social, economic and cultural rights of indigenous peoples, including supporting their effective representation and participation in engagements with our company. This approach includes adherence to the ICMM Position Statement on Indigenous Peoples and Mining and working towards obtaining free prior and informed consent for new projects and material expansions of existing projects. Through ongoing engagement, cultural promotion and preservation projects, as well as training and development programs, Freeport-McMoRan seeks to address needs while being sensitive to cultures and customs of indigenous peoples.\n\n• Social Performance Policy & Human Rights Policies\n• Information can be found in our Annual Report on Sustainability and on our website at FCX.com - People and Indigenous Peoples"]
[null,"PRINCIPLE 3: HUMAN RIGHTS","Respect human rights and the interests, cultures, customs and values of employees and communities affected by our activities.",3.7,"Work to obtain the free, prior and informed consent of Indigenous Peoples where significant adverse impacts are likely to occur, as a result of relocation, disturbance of lands and territories or of critical cultural heritage, and capture the outcomes of engagement and consent processes in agreements. ","Our approach aims to respect the social, economic and cultural rights of indigenous peoples, including supporting their effective representation and participation in engagements with our company. This approach includes adherence to the ICMM Position Statement on Indigenous Peoples and Mining and working towards obtaining free prior and informed consent for new projects and material expansions of existing projects. Through ongoing engagement, cultural promotion and preservation projects, as well as training and development programs, Freeport-McMoRan seeks to address needs while being sensitive to cultures and customs of indigenous peoples.\n\n• Social Performance Policy\n• Information can be found in our Annual Report on Sustainability - People and on our website at FCX.com in Indigenous Peoples"]
[null,"PRINCIPLE 3: HUMAN RIGHTS","Respect human rights and the interests, cultures, customs and values of employees and communities affected by our activities.",3.8,"Implement policies and practices to respect the rights and interests of women and support diversity in the workplace.","Gender diversity continues to be an important focus for the company. We believe that progressing an inclusive workplace culture that extends beyond our operational boundaries and into our communities, is a critical driver to attracting, promoting and retaining top female talent.\n\n• Information can be found in our Annual Report on Sustainability and on our website at FCX.com - People, Inclusion & Diversity and Human Rights"]
[null,"PRINCIPLE 4: RISK MANAGEMENT","Implement effective risk-management strategies and systems based on sound science\nand which account for stakeholder perceptions of risks.",4.0999999999999996,"Assess environmental and social risks and opportunities of new projects and of significant changes to existing operations in consultation with interested and affected stakeholders, and publicly disclose assessment results.","Our Project Development Sustainability Review process supports the integration of sustainability considerations into development or expansion project phases. The review process also complements our operational Sustainable Development Risk Register procedure for existing operations. We implement Environmental and Social Impact Assessments prior to undertaking greenfield or brownfield expansion projects. These assessments identify potentially affected stakeholders and their representatives, as well as potential impacts from the outset, and provide a framework for developing both stakeholder engagement and mitigation plans. \n\n• Information can be found in our Annual Report on Sustainability and on our website at FCX.com - The Risk Register, People, and Assessing and Managing Impacts"]
[null,"PRINCIPLE 4: RISK MANAGEMENT","Implement effective risk-management strategies and systems based on sound science\nand which account for stakeholder perceptions of risks.",4.2,"Undertake risk-based due diligence on conflict and human rights that aligns with the OECD Due Diligence Guidance on Conflict-Affected and High-Risk Areas, when operating in, or sourcing from, a conflict-affected or high-risk area.","Sourcing of goods and services can have significant impact across all areas of ESG risk. In recent years, human rights, workforce, health and safety, cultural heritage, economic, and, environmental risks in supply chains have become a focus in the mining industry. In addition, automotive and electronics original equipment manufacturers have received significant pressure from shareholders and other stakeholders to improve due diligence in their supply chains, which is putting increasing pressure on minerals producers globally. Freeport-McMoRan is committed to sourcing responsibly across our supply chains wherever we do business. Freeport is committed to the OECD Due Diligence Guidance for Responsible Supply Chains of Minerals in Conflict-Affected and High-Risk Areas, which requires annual Step 5 Reporting detailing risks identified and managed in our mineral supply chains.\n\n• Responsible Sourcing of Minerals Policy\n• 2019 OECD Step 5 Due Diligence Report\n• Information can be found in our Annual Report on Sustainability and on our website at FCX.com - Responsible Value Chains and Responsible Sourcing of Minerals and Metals"]
[null,"PRINCIPLE 4: RISK MANAGEMENT","Implement effective risk-management strategies and systems based on sound science\nand which account for stakeholder perceptions of risks.",4.3,"Implement risk-based controls to avoid/prevent, minimise, mitigate and/or remedy health, safety and environmental impacts to workers, local communities, cultural heritage and the natural environment, based upon a recognised international standard or management system.","Being a Responsible Producer also means evaluating ourselves against our commitments at both a site and corporate level and reporting regularly to our stakeholders in a transparent manner. To translate our commitments to our everyday work, we use our Sustainable Development Risk Register (the Risk Register) process globally to identify and prioritize sustainability risks and actions. Identified risks are mitigated using local and global topic-specific management strategies. The Risk Register prioritizes the most significant risks that could have negative consequences to our business and our stakeholders across areas including health and safety, human rights, environmental management, community development, and economic impacts.\n\n• Information can be found in our Annual Report on Sustainability and on our website at FCX.com - Defining Responsible Production, The Risk Register, People and Environment"]
[null,"PRINCIPLE 4: RISK MANAGEMENT","Implement effective risk-management strategies and systems based on sound science\nand which account for stakeholder perceptions of risks.",4.4000000000000004,"Develop, maintain and test emergency response plans. Where risks to external stakeholders are significant, this should be in collaboration with potentially affected stakeholders and consistent with established industry good practice.","Emergency preparedness and response is a fundamental component of all Freeport-McMoRan activities. Through our Crisis Management Program (CMP) and Sustainable Development Risk Register our operations maintain plans with procedures for preventing and responding to incidents that could cause severe or catastrophic harm to human health and the environment.\n\nAll operations are required to follow our CMP process that includes risk analysis by applying our Sustainable Development risk matrix to risk event scenarios with the intent to eliminate or mitigate the exposure. It also requires identifying the Incident Command Structure and coordinating activities with authorities, such as fire and police departments or federal officials. The plan includes evacuation procedures, employee safety procedures, environmental containment, communications plans and workplace assessments. Disaster recovery and business continuity considerations are core to the planning as well. Operations are required to conduct annual mock or live drills on plan scenarios.\n\nAll of our operations are required to conduct annual mock or live drills on plan scenarios which include, where appropriate, involvement and participation with stakeholders responsible for responding to site related emergencies\n\n• Information can be found in our Annual Report on Sustainability - Health & Safety and on our website at FCX.com in Emergency Preparedness and Response"]
[null,"PRINCIPLE 5: HEALTH AND SAFETY","Pursue continual improvement in health and safety performance with the ultimate goal\nof zero harm.",5.0999999999999996,"Implement practices aimed at continually improving workplace health and safety, and monitor performance for the elimination of workplace fatalities, serious injuries and prevention of occupational diseases, based upon a recognised international standard or management system.","At the foundation of our sustainability approach – and one of our core values – is safety. Our objective is to achieve zero workplace fatalities, injuries and occupational illnesses through our behavior-based safety culture. We are committed to creating a safe and healthy workplace and providing the training, tools and resources needed so our workforce can identify risks and consistently apply effective controls. We share information and key learnings about potentially fatal events, near misses and best practices throughout the company and engage with industry peers to continuously improve our health and safety performance. \n\nOur framework for managing risks and compliance obligations is certified in accordance to OHSAS 18001. We are in the process of migrating to the new ISO 45001 Health and Safety Management System, which will be completed company-wide in 2021.\n\n• Safety & Health Policy\n• ESG Performance Data - Social\n• Information can be found in our Annual Report on Sustainability and on our website at FCX.com - Health & Safety"]
[null,"PRINCIPLE 5: HEALTH AND SAFETY","Pursue continual improvement in health and safety performance with the ultimate goal\nof zero harm.",5.2,"Provide workers with training in accordance with their responsibilities for health and safety, and implement health surveillance and risk-based monitoring programmes based on occupational exposures.","At the foundation of our sustainability approach – and one of our core values – is safety. Our objective is to achieve zero workplace fatalities, injuries and occupational illnesses through our behavior-based safety culture. We are committed to creating a safe and healthy workplace and providing the training, tools and resources needed so our workforce can identify risks and consistently apply effective controls. We share information and key learnings about potentially fatal events, near misses and best practices throughout the company and engage with industry peers to continuously improve our health and safety performance. \n\nIn 2020, we rolled out our new Safe Production Matters strategy, which aims to globally align priorities, empower safe work behaviors and strengthen our safety culture. A principle focus is on the prevention of fatalities and high-risk incidents using data and technology combined with behavioral science principles. Other key focus areas include the elimination of systemic root causes and optimizing health and safety resources across the business. \n\n• Safety & Health Policy\n• ESG Performance Data - Social\n• Information can be found in our Annual Report on Sustainability and on our website at FCX.com -  Health & Safety"]
[null,"PRINCIPLE 6: ENVIRONMENTAL PERFORMANCE","Pursue continual improvement in environmenal performance issues, such as water\nstewardship, energy use and climate change.",6.1," Plan and design for closure in consultation with relevant authorities and\nstakeholders, implement measures to address closure-related environmental and social aspects, and make financial provision to enable agreed closure and postclosure commitments to be realised.","Our reclamation and mine closure planning processes are integral to our site planning and ongoing operations. We engage local communities, governments and other interested stakeholders early and often on these issues, and we seek to minimize land disturbances whenever possible.\n\nAt each of our operations, we have mine closure and reclamation plans with site-specific environmental measures designed to minimize long-term impacts, promote ecosystem re-establishment and protect the watersheds where we operate. To support future anticipated closure and reclamation costs, each operating mine site has asset retirement obligations that are estimated and accounted for in accordance with the Securities and Exchange Commission's requirements and subject to review by an independent accounting firm.\n\n• Environmental Policy\n• Social Performance Policy\n• Information can be found in our Annual Report on Sustainability and on our website at FCX.com - Mine Closure & Reclamation"]
[null,"PRINCIPLE 6: ENVIRONMENTAL PERFORMANCE","Pursue continual improvement in environmenal performance issues, such as water\nstewardship, energy use and climate change.",6.2,"Implement water stewardship practices that provide for strong and transparent water governance, effective and efficient management of water at operations, and collaboration with stakeholders at a catchment level to achieve responsible and sustainable water use.","Freeport-McMoRan believes effective water stewardship means maximizing our water use efficiency and minimizing our use of new freshwater. This includes shifting our water supplies to more sustainable sources, minimizing negative impacts from our operations on water quality and availability in a local catchment, and supporting the development of access to previously unknown, unavailable or undeveloped water resources.\n\n• 2019 Water Report\n• Environmental Policy\n• Information can be found in our Annual Report on Sustainability and on our website at FCX.com - Water Stewardship"]
[null,"PRINCIPLE 6: ENVIRONMENTAL PERFORMANCE","Pursue continual improvement in environmenal performance issues, such as water\nstewardship, energy use and climate change.",6.3,"Design, construct, operate, monitor and decommission tailings disposal/storage facilities using comprehensive, risk-based management and governance practices in line with internationally recognised good practice, to minimise the risk of catastrophic failure.","Freeport has comprehensive measures in place to ensure our facilities are designed, built, operated and monitored to minimize risk to employees, neighboring host communities and the environment. We have a strong commitment from our Board and executive management to provide the necessary financial and technical resources to maintain the safety of our facilities and the integrity of tailings management systems, with a focus on continuous improvement.  \n\n• Environmental Policy\n• Information can be found in our Annual Report on Sustainability - Tailings Management and on our website at FCX.com in Tailings Management and Tailings Management & Stewardship"]
[null,"PRINCIPLE 6: ENVIRONMENTAL PERFORMANCE","Pursue continual improvement in environmenal performance issues, such as water\nstewardship, energy use and climate change.",6.4,"Apply the mitigation hierarchy to prevent pollution, manage releases and waste, and address potential impacts on human health and the environment.","Our Environmental Policy serves as the framework for the protection of natural resources in the regions where we live and work. In addition to maintaining compliance with laws and regulations, our policy objectives are to minimize environmental impacts using risk management strategies based on valid data and sound science. Our Policy also requires that we review and account for the environmental effects of our activities throughout the mining life cycle, and we plan and conduct our operations in a manner that optimizes the economic use of resources while minimizing adverse environmental effects.\n\nAll of our mining and mineral processing operations and technology centers maintain Environmental Management Systems (EMS) certified to the ISO14001:2015 standard. As part of our EMS, our workforce is trained on site specific subject areas, receives annual environmental refresher training and is supported in the field by environmental professionals through our Boots in the Field program.\n\nIn 2020, we continued our efforts to implement the mitigation hierarchy – a framework that emphasizes best practices for managing biodiversity and ecosystem services through the avoidance, minimization, restoration and offsetting of impacts. During the year, we finalized global guidance for consistent and rigorous application of the mitigation hierarchy through which we aim to manage risks and potential impacts with the long-term ambition of ‘no net loss’ for new mines and major expansion projects at existing mines. \n\n• Environmental Policy\n• Information can be found in our Annual Report on Sustainability and on our website at FCX.com - Environment"]
[null,"PRINCIPLE 6: ENVIRONMENTAL PERFORMANCE","Pursue continual improvement in environmenal performance issues, such as water\nstewardship, energy use and climate change.",6.5,"Implement measures to improve energy efficiency and contribute to a low-carbon future, and report the outcomes based on internationally recognised protocols for measuring CO2 equivalent (GHG) emissions.","We believe we have the opportunity to supply the world with responsibly produced copper, which is necessary to support global decarbonization. This includes operating in a way that manages and mitigates our GHG emissions and other climate-related risks. Freeport is committed to implementing the requirements outlined in the ICMM Climate Change Position Statement and Performance Expectations for energy and climate change. In addition, our commitment to the Copper Mark requires that we develop and achieve targets over time and report our progress at a site level. Operational-level data is available in our ESG Performance Data tables.\n\n• 2019 Climate Report\n• ESG Performance Data - Climate\n• Information can be found in our Annual Report on Sustainability and on our website at FCX.com - Climate"]
[null,"PRINCIPLE 7: CONSERVATION OF BIODIVERSITY","Contribute to the conservation of biodiversity and integrated approaches to\nland-use planning.",7.1,"Neither explore nor develop new mines in World Heritage sites, respect legally designated protected areas, and design and operate any new operations or changes to existing operations to be compatible with the value for which such areas were designated.","ICMM Position Statement on Mining and Protected Areas – We have addressed the commitments in our operational practices, including committing to no mining nor exploring in UNESCO World Heritage Sites.\n\nOur proven and probable reserves located near endangered species habitats do not affect habitats. The endangered species habitats near Morenci, Chino, and Climax reserves are located on federal lands managed by the U.S. Forest Service; we do not conduct activities within the habitat. Cerro Verde’s reserves qualify due to an endangered bat species that is known to occur and forage in the general region of the operations and we actively seek to protect the species. PT-FI’s reserves qualify due to the district’s proximity to Lorenz National Park, however we do not conduct any activities in the habitat and maintain significant programs at the operation to protect biodiversity in the area.\n\n• Information can be found in our Annual Report on Sustainability and on our website at FCX.com - Biodiversity"]
[null,"PRINCIPLE 7: CONSERVATION OF BIODIVERSITY","Contribute to the conservation of biodiversity and integrated approaches to\nland-use planning.",7.2,"Assess and address risks and impacts to biodiversity and ecosystem services by implementing the mitigation hierarchy, with the ambition of achieving no-net-loss of biodiversity.","Freeport-McMoRan seeks to avoid or minimize the adverse impacts of our operations on biodiversity and ecosystem services while promoting opportunities to contribute to the conservation and enhancement of biodiversity in the areas where we operate.\n\nIn 2020, we continued our efforts to implement the mitigation hierarchy – a framework that emphasizes best practices for managing biodiversity and ecosystem services through the avoidance, minimization, restoration and offsetting of impacts. During the year, we finalized global guidance for consistent and rigorous application of the mitigation hierarchy through which we aim to manage risks and potential impacts with the long-term ambition of ‘no net loss’ for new mines and major expansion projects at existing mines. \n\n• Information can be found in our Annual Report on Sustainability and on our website at FCX.com - Biodiversity"]
[null,"PRINCIPLE 8: RESPONSIBLE PRODUCTION","Facilitate and support the knowledge-base and systems for responsible design, use,\nre-use, recycling and disposal of products containing metals and minerals.",8.1,"In project design, operation and de-commissioning, implement cost-effective\nmeasures for the recovery, re-use or recycling of energy, natural resources, and materials.","In addition to mining and mineral processing wastes, such as tailings, waste rock, overburden and slag, our operations generate non-mining waste which requires proper end-of-life management. Responsible management of all these materials is critical to complying with environmental regulations, maintaining community and environmental health, and social acceptance of our operations.\n\nWe are committed to reducing our environmental impact, which includes the effective management of our mining and non-mining wastes alike. In addition to responsibly managing our mining and mineral processing waste, we continuously evaluate opportunities to reduce the quantity of non-mining waste generated. We implement robust practices to identify, categorize, store and manage non-mining wastes, and we strive to increase recycling and reuse of materials in our operations whenever possible. We evaluate our hazardous waste streams, and when possible, substitute materials with lower toxicity into our processes.\n\n• 2019 Climate Report\n• 2019 Water Report\n• Information can be found in our Annual Report on Sustainability and on our website at FCX.com - The Risk Register, Project Development Sustainability Review and Environment"]
[null,"PRINCIPLE 8: RESPONSIBLE PRODUCTION","Facilitate and support the knowledge-base and systems for responsible design, use,\nre-use, recycling and disposal of products containing metals and minerals.",8.1999999999999993,"Assess the hazards of the products of mining according to UN Globally Harmonised System of Hazard Classification and Labelling or equivalent relevant regulatory systems and communicate through safety data sheets and labelling as appropriate. ","Our framework for managing risks and compliance obligations is certified in accordance with the internationally recognized Occupational Health and Safety Assessment (OHSAS) 18001 Standard. OHSAS requires third-party site-level verification of requirements, with a goal to prevent fatalities and reduce incidents. This standard is being replaced with the new ISO 45001 Health and Safety Management System, and company-wide conversion currently is expected to be complete in 2021. Our safety management system ISO45001/OHSAS18001 covers handling and use of hazardous materials on site, including maintenance of safety data sheets.\n\n• Safety & Health Policy\n• Information can be found in our Annual Report on Sustainability and on our website at FCX.com - Health & Safety"]
[null,"PRINCIPLE 9: SOCIAL PERFORMANCE","Pursue continual improvement in social performance and contribute to the social,\neconomic and institutional development of host countries and communities.",9.1,"Implement inclusive approaches with local communities to identify their development priorities and support activities that contribute to their lasting social and economic wellbeing, in partnership with government, civil society and development agencies, as appropriate.","Freeport-McMoRan works actively through engagement, investment and partnership activities to support our host communities in maximizing the social and economic benefits of mining. Our work increasingly is focused on supporting our communities to develop the requisite skills to successfully adapt to technological and economic changes in the future to reduce their dependency on mining over the long term. By partnering to increase both individual and institutional capabilities, we help create increasing resiliency, allowing communities to better weather and adapt to commodity market fluctuations or other economic disruptions that may have social impacts.\n\n• Social Performance Policy\n• Information can be found in our Annual Report on Sustainability and our website at FCX.com - Stakeholder Engagement, Communities and Economic Value Contributed"]
[null,"PRINCIPLE 9: SOCIAL PERFORMANCE","Pursue continual improvement in social performance and contribute to the social,\neconomic and institutional development of host countries and communities.",9.1999999999999993,"Enable access by local enterprises to procurement and contracting opportunities across the project life-cycle, both directly and by encouraging larger contractors and suppliers, and also by supporting initiatives to enhance economic opportunities for local communities.","Purchasing goods and services from local suppliers provides a significant direct and indirect benefit to our local communities. Our investment in local communities helps to support the economic vitality of small and medium size enterprises and local entrepreneurship. When we purchase locally, we provide the stimulus for community development and the potential for capacity building.\n\n• ESG Performance Data - Social\n• Information can be found in our Annual Report on Sustainability and our website at FCX.com - Economic Value Contributed and Local Suppliers"]
[null,"PRINCIPLE 9: SOCIAL PERFORMANCE","Pursue continual improvement in social performance and contribute to the social,\neconomic and institutional development of host countries and communities.",9.3000000000000007,"Conduct stakeholder engagement based upon an analysis of the local context and provide local stakeholders with access to effective mechanisms for seeking resolution of grievances related to the company and its activities.","Freeport-McMoRan believes effective stakeholder engagement is founded on transparency and meaningful dialogue. Our goal is to foster mutual understanding, trust and cooperation with stakeholder groups on a variety of topics. We recognize the vital role of stakeholder engagement and calls for collaboration with communities, including indigenous and vulnerable populations, to minimize and mitigate adverse impacts and pursue opportunities to maximize benefits.\n\nWe have a broad range of stakeholders, including shareholders, employees, host communities and Indigenous Peoples, customers and suppliers, regulators and policymakers, host governments, and nongovernmental organizations. We recognize the interests and concerns of our stakeholders can change over time. To learn about these changing needs and expectations, we believe ongoing and proactive engagement is imperative. We maintain an ongoing, constructive and proactive shareholder and non-financial stakeholder engagement program throughout the year.\n\nWe have established site-level grievance mechanisms for employees, community members and members of our supply chain and others to support constructive engagement and resolution of issues that may arise where questions, concerns and complaints can be shared outside of any other engagement forum.\n\n• Social Performance Policy\n• Human Rights Policy\n• Information can be found in our Annual Report on Sustainability and our website at FCX.com - Stakeholder Engagement, Communities, Community Grievance Mechanisms and Human Rights"]
[null,"PRINCIPLE 9: SOCIAL PERFORMANCE","Pursue continual improvement in social performance and contribute to the social,\neconomic and institutional development of host countries and communities.",9.4,"Collaborate with government, where appropriate, to support improvements in environmental and social practices of local Artisanal and Small-scale Mining (ASM).","Artisanal and small-scale and illegal miners seek unrecovered gold from our milling operations by panning and have limited equipment and expertise at operating in hazardous conditions and can create social and environmental impacts as well as place their own health and safety at risk. We recognize that no single solution will entirely address this issue as long as there is cultural esteem associated with artisanal mining, along with unemployment, poverty and buyers for illegal products. However, we believe that a multi-pronged approach that includes security risk management, government cooperation, stakeholder engagement and socioeconomic development for alternative livelihoods is essential.\n\n• Information can be found in our Annual Report on Sustainability and our website at FCX.com - Artisanal Mining"]
[null,"PRINCIPLE 10: STAKEHOLDER ENGAGEMENT","Proactively engage key stakeholders on sustainable development challenges and\nopportunities in an open and transparent manner. Effectively report and independently\nverify progress and performance.",10.1,"Identify and engage with key corporate-level external stakeholders on sustainable development issues in an open and transparent manner","We believe effective stakeholder engagement is founded on transparency and meaningful dialogue. Our primary goal is to foster mutual\nunderstanding, trust and cooperation with stakeholder groups on a variety of topics.\n\nWe have a broad range of stakeholders, including shareholders, employees, host communities and Indigenous Peoples, customers and suppliers, regulators and policymakers, host governments, and nongovernmental organizations. We recognize the interests and concerns of our stakeholders can change over time. To learn about these changing needs and expectations, we believe ongoing and proactive engagement is imperative. We maintain an ongoing, constructive and proactive shareholder and non-financial stakeholder engagement program throughout the year.\n\nOur company is strengthened by this dialogue, which also helps us learn about our stakeholders’ perspectives on the topics that matter to them. These conversations inform our Board’s decision-making, including on our policies, practices, programs and initiatives. These engagements are also an opportunity to share information about our strategy, practices and performance.\n\n• Proxy Statement  - Stockholder and Stakeholder Engagement\n• Information can be found in our Annual Report on Sustainability and our website at FCX.com - Stakeholder Engagement"]
[null,"PRINCIPLE 10: STAKEHOLDER ENGAGEMENT","Proactively engage key stakeholders on sustainable development challenges and\nopportunities in an open and transparent manner. Effectively report and independently\nverify progress and performance.",10.199999999999999,"Publicly support the implementation of the Extractive Industries Transparency Initiative (EITI) and compile information on all material payments, at the appropriate levels of government, by country and by project.","Freeport-McMoRan has endorsed and committed to support the EITI since 2008. This support includes direct financial contributions from the company as well as contributions through the ICMM of which we are a founding member. Freeport maintains significant mining operations in Indonesia and Peru, both of which are EITI-implementing countries, and we actively support and participate in associated in-country processes. In addition to our country-level EITI commitments and regulatory reporting obligations, our practice is to voluntarily report cash payments to governments in all jurisdictions where we conduct business.\n\n• Information can be found in our Annual Report on Sustainability and our website at FCX.com - Transparency of Government Payments and Economic Value Contributed"]
[null,"PRINCIPLE 10: STAKEHOLDER ENGAGEMENT","Proactively engage key stakeholders on sustainable development challenges and\nopportunities in an open and transparent manner. Effectively report and independently\nverify progress and performance.",10.3,"Report annually on economic, social and environmental performance at the corporate level using the GRI Sustainability Reporting Standards. ","Our 2020 Annual Report on Sustainability and sustainability website disclosures have been prepared in accordance with the GRI Standards Core option and the G4 Mining and Metals Sector Supplement. We have reported under GRI guidelines and standards since 2005.\n\n• Information can be found in our Annual Report on Sustainability and our website at FCX.com - GRI Content Index"]
[null,"PRINCIPLE 10: STAKEHOLDER ENGAGEMENT","Proactively engage key stakeholders on sustainable development challenges and\nopportunities in an open and transparent manner. Effectively report and independently\nverify progress and performance.",10.4,"Each year, conduct independent assurance of sustainability performance following the ICMM guidance on assuring and verifying membership requirements. ","Freeport-McMoRan’s sustainability reports have been independently verified since 2005. External assurance of our 2020 reporting was conducted by Corporate Integrity Ltd. in accordance with the ICMM Mining Principles Assurance and Validation Procedure, which can be found at ICMM website. Since 2009, site-level external assurance has been completed multiple times at all active mining and metals processing operations. We conduct site-level external assurance at operations at a minimum of once every three years, with annual assurance engagements at PT-FI and Cerro Verde.\n\n• Information can be found in our Annual Report on Sustainability and our website at FCX.com - External Assurance\n"]